"Body Name","Body","Service Area Categorisation","Service Division Categorisation","Responsible Unit","Expenses Type","Detailed Expenses Type","Payment Date","Transaction Number","Payment Amount","Supplier Type","Supplier Name","Supplier Id"
"Portsmouth City Council","PCC","Highways and Transport Services","Parking Services","Regeneration","Third Party Payments","Private contractors","14/01/21","6406494","52","VENDOR","REL BOARHUNT LIMITED","103726"
"Portsmouth City Council","PCC","Highways and Transport Services","Parking Services","Regeneration","Third Party Payments","Private contractors","14/01/21","6406494","52","VENDOR","REL BOARHUNT LIMITED","103726"
"Portsmouth City Council","PCC","Highways and Transport Services","Parking Services","Regeneration","Third Party Payments","Private contractors","14/01/21","6406494","52","VENDOR","REL BOARHUNT LIMITED","103726"
"Portsmouth City Council","PCC","Highways and Transport Services","Parking Services","Regeneration","Third Party Payments","Private contractors","14/01/21","6406494","52","VENDOR","REL BOARHUNT LIMITED","103726"
"Portsmouth City Council","PCC","Highways and Transport Services","Parking Services","Regeneration","Third Party Payments","Private contractors","14/01/21","6406494","35","VENDOR","REL BOARHUNT LIMITED","103726"
"Portsmouth City Council","PCC","Highways and Transport Services","Parking Services","Regeneration","Third Party Payments","Private contractors","14/01/21","6406494","46","VENDOR","REL BOARHUNT LIMITED","103726"
"Portsmouth City Council","PCC","Highways and Transport Services","Parking Services","Regeneration","Third Party Payments","Private contractors","14/01/21","6406494","46","VENDOR","REL BOARHUNT LIMITED","103726"
"Portsmouth City Council","PCC","Highways and Transport Services","Parking Services","Regeneration","Third Party Payments","Private contractors","14/01/21","6406494","52","VENDOR","REL BOARHUNT LIMITED","103726"
"Portsmouth City Council","PCC","Highways and Transport Services","Parking Services","Regeneration","Third Party Payments","Private contractors","14/01/21","6406494","46","VENDOR","REL BOARHUNT LIMITED","103726"
"Portsmouth City Council","PCC","Highways and Transport Services","Parking Services","Regeneration","Third Party Payments","Private contractors","14/01/21","6406494","35","VENDOR","REL BOARHUNT LIMITED","103726"
"Portsmouth City Council","PCC","Highways and Transport Services","Parking Services","Regeneration","Third Party Payments","Private contractors","14/01/21","6406494","35","VENDOR","REL BOARHUNT LIMITED","103726"
"Portsmouth City Council","PCC","Highways and Transport Services","Parking Services","Regeneration","Third Party Payments","Private contractors","14/01/21","6406494","35","VENDOR","REL BOARHUNT LIMITED","103726"
"Portsmouth City Council","PCC","Highways and Transport Services","Parking Services","Regeneration","Third Party Payments","Private contractors","14/01/21","6406494","70","VENDOR","REL BOARHUNT LIMITED","103726"
"Portsmouth City Council","PCC","Highways and Transport Services","Parking Services","Regeneration","Premises-Related Expenditure","Rents","20/01/21","6408902","1600","VENDOR","REL BOARHUNT LIMITED","103726"
"Portsmouth City Council","PCC","Highways and Transport Services","Parking Services","Regeneration","Third Party Payments","Private contractors","20/01/21","6408902","52","VENDOR","REL BOARHUNT LIMITED","103726"
"Portsmouth City Council","PCC","Highways and Transport Services","Parking Services","Regeneration","Third Party Payments","Private contractors","20/01/21","6408902","46","VENDOR","REL BOARHUNT LIMITED","103726"
"Portsmouth City Council","PCC","Highways and Transport Services","Parking Services","Regeneration","Third Party Payments","Private contractors","20/01/21","6408902","35","VENDOR","REL BOARHUNT LIMITED","103726"
"Portsmouth City Council","PCC","Children's and Education Services","Special Schools","Children's Services and Education","Third Party Payments","Other establishments","18/01/21","6408229","26224","VENDOR","ST EDWARDS SCHOOL","101262"
"Portsmouth City Council","PCC","Children's and Education Services","Special Schools","Children's Services and Education","Third Party Payments","Other establishments","18/01/21","6408229","29382","VENDOR","ST EDWARDS SCHOOL","101262"
"Portsmouth City Council","PCC","Children's and Education Services","Special Schools","Children's Services and Education","Third Party Payments","Other establishments","18/01/21","6408229","27798","VENDOR","ST EDWARDS SCHOOL","101262"
"Portsmouth City Council","PCC","Children's and Education Services","Special Schools","Children's Services and Education","Third Party Payments","Other establishments","18/01/21","6408229","24241","VENDOR","ST EDWARDS SCHOOL","101262"
"Portsmouth City Council","PCC","Children's and Education Services","Special Schools","Children's Services and Education","Third Party Payments","Other establishments","18/01/21","6408229","20434.5","VENDOR","ST EDWARDS SCHOOL","101262"
"Portsmouth City Council","PCC","Children's and Education Services","Special Schools","Children's Services and Education","Third Party Payments","Other establishments","18/01/21","6408229","26583","VENDOR","ST EDWARDS SCHOOL","101262"
"Portsmouth City Council","PCC","Children's and Education Services","Special Schools","Children's Services and Education","Third Party Payments","Other establishments","18/01/21","6408229","51.5","VENDOR","ST EDWARDS SCHOOL","101262"
"Portsmouth City Council","PCC","Children's and Education Services","Children Looked After","Children's Services and Education","Third Party Payments","Other establishments","18/01/21","6408198","-0.01","VENDOR","KEYS PCE LIMITED","137236"
"Portsmouth City Council","PCC","Children's and Education Services","Children Looked After","Children's Services and Education","Third Party Payments","Other establishments","18/01/21","6408198","28785.72","VENDOR","KEYS PCE LIMITED","137236"
"Portsmouth City Council","PCC","Children's and Education Services","Children Looked After","Children's Services and Education","Third Party Payments","Other establishments","18/01/21","6408198","-531.43","VENDOR","KEYS PCE LIMITED","137236"
"Portsmouth City Council","PCC","Children's and Education Services","Children Looked After","Children's Services and Education","Third Party Payments","Other establishments","18/01/21","6408198","19352.86","VENDOR","KEYS PCE LIMITED","137236"
"Portsmouth City Council","PCC","Children's and Education Services","Children Looked After","Children's Services and Education","Third Party Payments","Other establishments","18/01/21","6408198","0.01","VENDOR","KEYS PCE LIMITED","137236"
"Portsmouth City Council","PCC","Children's and Education Services","Children Looked After","Children's Services and Education","Third Party Payments","Other establishments","18/01/21","6408198","18821.42","VENDOR","KEYS PCE LIMITED","137236"
"Portsmouth City Council","PCC","Children's and Education Services","Children Looked After","Children's Services and Education","Third Party Payments","Other establishments","18/01/21","6408198","23250","VENDOR","KEYS PCE LIMITED","137236"
"Portsmouth City Council","PCC","Planning Services","Business support","Regeneration","Supplies and Services","Communications and computing","29/01/21","6411938","48.53","VENDOR","TECHNOLOGY WITHIN LIMITED","143958"
"Portsmouth City Council","PCC","Planning Services","Business support","Regeneration","Supplies and Services","Communications and computing","29/01/21","6411938","827.5","VENDOR","TECHNOLOGY WITHIN LIMITED","143958"
"Portsmouth City Council","PCC","Corporate and Democratic Core","Corporate Management","Corporate Services","Supplies and Services","Miscellaneous expenses","20/01/21","6408695","1000","VENDOR","GLOBAL OUTDOOR MEDIA LIMITED","101462"
"Portsmouth City Council","PCC","Children's and Education Services","Children Looked After","Children's Services and Education","Third Party Payments","Other establishments","15/01/21","6407832","-531.65","VENDOR","HORIZON CARE AND EDUCATION GROUP LTD","138450"
"Portsmouth City Council","PCC","Children's and Education Services","Children Looked After","Children's Services and Education","Third Party Payments","Other establishments","15/01/21","6407832","3082.33","VENDOR","HORIZON CARE AND EDUCATION GROUP LTD","138450"
"Portsmouth City Council","PCC","Children's and Education Services","Children Looked After","Children's Services and Education","Third Party Payments","Other establishments","15/01/21","6407832","1988.6","VENDOR","HORIZON CARE AND EDUCATION GROUP LTD","138450"
"Portsmouth City Council","PCC","Children's and Education Services","Safeguarding Children and Young Peoples Services","Children's Services and Education","Third Party Payments","Other establishments","05/01/21","6403377","-540.73","VENDOR","HORIZON CARE AND EDUCATION GROUP LTD","138450"
"Portsmouth City Council","PCC","Children's and Education Services","Safeguarding Children and Young Peoples Services","Children's Services and Education","Third Party Payments","Other establishments","05/01/21","6403377","3011.43","VENDOR","HORIZON CARE AND EDUCATION GROUP LTD","138450"
"Portsmouth City Council","PCC","Children's and Education Services","Children Looked After","Children's Services and Education","Third Party Payments","Other establishments","15/01/21","6407832","-576.99","VENDOR","HORIZON CARE AND EDUCATION GROUP LTD","138450"
"Portsmouth City Council","PCC","Children's and Education Services","Children Looked After","Children's Services and Education","Third Party Payments","Other establishments","15/01/21","6407832","2914.29","VENDOR","HORIZON CARE AND EDUCATION GROUP LTD","138450"
"Portsmouth City Council","PCC","Children's and Education Services","Safeguarding Children and Young Peoples Services","Children's Services and Education","Third Party Payments","Other establishments","15/01/21","6407832","-523.29","VENDOR","HORIZON CARE AND EDUCATION GROUP LTD","138450"
"Portsmouth City Council","PCC","Children's and Education Services","Safeguarding Children and Young Peoples Services","Children's Services and Education","Third Party Payments","Other establishments","15/01/21","6407832","2914.29","VENDOR","HORIZON CARE AND EDUCATION GROUP LTD","138450"
"Portsmouth City Council","PCC","Children's and Education Services","Asylum seekers","Children's Services and Education","Third Party Payments","Other establishments","12/01/21","6405626","0.04","VENDOR","HORIZON CARE AND EDUCATION GROUP LTD","138450"
"Portsmouth City Council","PCC","Children's and Education Services","Asylum seekers","Children's Services and Education","Third Party Payments","Other establishments","12/01/21","6405626","2982.86","VENDOR","HORIZON CARE AND EDUCATION GROUP LTD","138450"
"Portsmouth City Council","PCC","Children's and Education Services","Children Looked After","Children's Services and Education","Third Party Payments","Other establishments","12/01/21","6405626","0.04","VENDOR","HORIZON CARE AND EDUCATION GROUP LTD","138450"
"Portsmouth City Council","PCC","Children's and Education Services","Children Looked After","Children's Services and Education","Third Party Payments","Other establishments","12/01/21","6405626","2982.86","VENDOR","HORIZON CARE AND EDUCATION GROUP LTD","138450"
"Portsmouth City Council","PCC","Children's and Education Services","Children Looked After","Children's Services and Education","Third Party Payments","Other establishments","26/01/21","6410850","0.04","VENDOR","HORIZON CARE AND EDUCATION GROUP LTD","138450"
"Portsmouth City Council","PCC","Children's and Education Services","Children Looked After","Children's Services and Education","Third Party Payments","Other establishments","26/01/21","6410850","2982.86","VENDOR","HORIZON CARE AND EDUCATION GROUP LTD","138450"
"Portsmouth City Council","PCC","Children's and Education Services","Children Looked After","Children's Services and Education","Third Party Payments","Other establishments","08/01/21","6404310","369.68","VENDOR","KEYS PCE LIMITED","137236"
"Portsmouth City Council","PCC","Children's and Education Services","Children Looked After","Children's Services and Education","Third Party Payments","Other establishments","08/01/21","6404310","416.32","VENDOR","KEYS PCE LIMITED","137236"
"Portsmouth City Council","PCC","Children's and Education Services","Children Looked After","Children's Services and Education","Third Party Payments","Other establishments","26/01/21","6410857","-1392.86","VENDOR","KEYS PCE LIMITED","137236"
"Portsmouth City Council","PCC","Children's and Education Services","Children Looked After","Children's Services and Education","Third Party Payments","Other establishments","26/01/21","6410857","7285.72","VENDOR","KEYS PCE LIMITED","137236"
"Portsmouth City Council","PCC","Children's and Education Services","Children Looked After","Children's Services and Education","Third Party Payments","Other establishments","26/01/21","6410857","-2878.57","VENDOR","KEYS PCE LIMITED","137236"
"Portsmouth City Council","PCC","Children's and Education Services","Children Looked After","Children's Services and Education","Third Party Payments","Other establishments","26/01/21","6410857","15057.14","VENDOR","KEYS PCE LIMITED","137236"
"Portsmouth City Council","PCC","Adult Social Care","Assistive Equipment & Technology","Housing, Neighbourhood and Building Services","Supplies and Services","Equipment, furniture and materials","22/01/21","6410571","334.8","VENDOR","TYNETEC B/U OF LEGRAND ELECTRIC LTD","140439"
"Portsmouth City Council","PCC","Adult Social Care","Assistive Equipment & Technology","Housing, Neighbourhood and Building Services","Supplies and Services","Equipment, furniture and materials","22/01/21","6410571","917.1","VENDOR","TYNETEC B/U OF LEGRAND ELECTRIC LTD","140439"
"Portsmouth City Council","PCC","Adult Social Care","Assistive Equipment & Technology","Housing, Neighbourhood and Building Services","Supplies and Services","Equipment, furniture and materials","15/01/21","6407992","155.64","VENDOR","TYNETEC B/U OF LEGRAND ELECTRIC LTD","140439"
"Portsmouth City Council","PCC","Adult Social Care","Assistive Equipment & Technology","Housing, Neighbourhood and Building Services","Supplies and Services","Equipment, furniture and materials","15/01/21","6407992","405.6","VENDOR","TYNETEC B/U OF LEGRAND ELECTRIC LTD","140439"
"Portsmouth City Council","PCC","Adult Social Care","Assistive Equipment & Technology","Housing, Neighbourhood and Building Services","Supplies and Services","Equipment, furniture and materials","15/01/21","6407992","1622.4","VENDOR","TYNETEC B/U OF LEGRAND ELECTRIC LTD","140439"
"Portsmouth City Council","PCC","Adult Social Care","Assistive Equipment & Technology","Housing, Neighbourhood and Building Services","Supplies and Services","Equipment, furniture and materials","15/01/21","6407992","91","VENDOR","TYNETEC B/U OF LEGRAND ELECTRIC LTD","140439"
"Portsmouth City Council","PCC","Adult Social Care","Assistive Equipment & Technology","Housing, Neighbourhood and Building Services","Supplies and Services","Equipment, furniture and materials","15/01/21","6407992","858","VENDOR","TYNETEC B/U OF LEGRAND ELECTRIC LTD","140439"
"Portsmouth City Council","PCC","Adult Social Care","Assistive Equipment & Technology","Housing, Neighbourhood and Building Services","Supplies and Services","Equipment, furniture and materials","15/01/21","6407992","51.5","VENDOR","TYNETEC B/U OF LEGRAND ELECTRIC LTD","140439"
"Portsmouth City Council","PCC","Adult Social Care","Assistive Equipment & Technology","Housing, Neighbourhood and Building Services","Supplies and Services","Equipment, furniture and materials","15/01/21","6407992","51.5","VENDOR","TYNETEC B/U OF LEGRAND ELECTRIC LTD","140439"
"Portsmouth City Council","PCC","Corporate and Democratic Core","Corporate Management","Corporate Services","Supplies and Services","Miscellaneous expenses","21/01/21","6410248","2526","VENDOR","GLOBAL OUTDOOR MEDIA LIMITED","101462"
"Portsmouth City Council","PCC","Corporate and Democratic Core","Corporate Management","Corporate Services","Supplies and Services","Miscellaneous expenses","21/01/21","6410248","2000","VENDOR","GLOBAL OUTDOOR MEDIA LIMITED","101462"
"Portsmouth City Council","PCC","Other","Suspense and Capital Schemes","Capital - Housing RA","Capital Charges","Capital Expenditure (WIP)","29/01/21","6411876","2500","VENDOR","LANDMARK TREES LIMITED","147379"
"Portsmouth City Council","PCC","Support Service / Transparency Costs Unallocated","Procurement","Finance & Resources","Supplies and Services","Communications and computing","25/01/21","6410747","1530","VENDOR","THE NCC GROUP","100134"
"Portsmouth City Council","PCC","Highways and Transport Services","Transport Planning, Policy and Strategy","Regeneration","Third Party Payments","Private contractors","06/01/21","6404081","6045","VENDOR","TURNER & TOWNSEND GROUP LIMITED","132225"
"Portsmouth City Council","PCC","Highways and Transport Services","Transport Planning, Policy and Strategy","Regeneration","Third Party Payments","Private contractors","15/01/21","6407988","6045","VENDOR","TURNER & TOWNSEND GROUP LIMITED","132225"
"Portsmouth City Council","PCC","Housing Services","Homelessness","Housing, Neighbourhood and Building Services","Supplies and Services","Grants and subscriptions","26/01/21","6410854","900","SOLETRADER","Classified as 'personal data' (under the Data Protection Act 2018)","147639"
"Portsmouth City Council","PCC","Adult Social Care","Physical Support Older People (85+)","Adult Services","Third Party Payments","Other establishments","27/01/21","6410925","1456","VENDOR","ABICARE SERVICES LTD","146674"
"Portsmouth City Council","PCC","Adult Social Care","Physical Support Older People (85+)","Adult Services","Third Party Payments","Other establishments","27/01/21","6410925","1961.68","VENDOR","ABICARE SERVICES LTD","146674"
"Portsmouth City Council","PCC","Adult Social Care","Physical Support Adults (18 - 64)","Adult Services","Third Party Payments","Other establishments","18/01/21","6408017","496.16","VENDOR","ACCESS CARE LTD","106309"
"Portsmouth City Council","PCC","Children's and Education Services","Safeguarding Children and Young Peoples Services","Children's Services and Education","Third Party Payments","Other establishments","28/01/21","6411721","800","VENDOR","YUMAK SOCIAL CARE LIMITED","147279"
"Portsmouth City Council","PCC","Cultural and Related Services","Open Spaces","Culture, Leisure & Regulatory Services","Premises-Related Expenditure","Water Services","11/01/21","6404489","1225","VENDOR","GOSPORT SURVEYING ASSOCIATES LIMITED","147034"
"Portsmouth City Council","PCC","Highways and Transport Services","Airports, Harbours and Toll Facilities","Portsmouth International Port","Premises-Related Expenditure","Repairs, alterations and maintenance of buildings","07/01/21","6404137","2600","COMPANY","BAKER TRAYTE MARINE LIMITED","100563"
"Portsmouth City Council","PCC","Adult Social Care","Physical Support Adults (18 - 64)","Adult Services","Third Party Payments","Other establishments","18/01/21","6408017","3120.32","VENDOR","ACCESS CARE LTD","106309"
"Portsmouth City Council","PCC","Housing Services","Homelessness","Housing, Neighbourhood and Building Services","Supplies and Services","Grants and subscriptions","15/01/21","6407991","18790","VENDOR","TWO SAINTS LTD","102584"
"Portsmouth City Council","PCC","Housing Services","Homelessness","Housing, Neighbourhood and Building Services","Supplies and Services","Grants and subscriptions","15/01/21","6407991","18790","VENDOR","TWO SAINTS LTD","102584"
"Portsmouth City Council","PCC","Children's and Education Services","Safeguarding Children and Young Peoples Services","Children's Services and Education","Third Party Payments","Other establishments","08/01/21","6404365","-8.19","VENDOR","TWO SAINTS LTD","102584"
"Portsmouth City Council","PCC","Children's and Education Services","Safeguarding Children and Young Peoples Services","Children's Services and Education","Third Party Payments","Other establishments","08/01/21","6404365","818.84","VENDOR","TWO SAINTS LTD","102584"
"Portsmouth City Council","PCC","Children's and Education Services","Safeguarding Children and Young Peoples Services","Children's Services and Education","Third Party Payments","Other establishments","08/01/21","6404365","-8.19","VENDOR","TWO SAINTS LTD","102584"
"Portsmouth City Council","PCC","Children's and Education Services","Safeguarding Children and Young Peoples Services","Children's Services and Education","Third Party Payments","Other establishments","08/01/21","6404365","818.84","VENDOR","TWO SAINTS LTD","102584"
"Portsmouth City Council","PCC","Children's and Education Services","Safeguarding Children and Young Peoples Services","Children's Services and Education","Third Party Payments","Other establishments","08/01/21","6404365","-8.19","VENDOR","TWO SAINTS LTD","102584"
"Portsmouth City Council","PCC","Children's and Education Services","Safeguarding Children and Young Peoples Services","Children's Services and Education","Third Party Payments","Other establishments","08/01/21","6404365","818.84","VENDOR","TWO SAINTS LTD","102584"
"Portsmouth City Council","PCC","Children's and Education Services","Safeguarding Children and Young Peoples Services","Children's Services and Education","Third Party Payments","Other establishments","08/01/21","6404365","-8.19","VENDOR","TWO SAINTS LTD","102584"
"Portsmouth City Council","PCC","Children's and Education Services","Safeguarding Children and Young Peoples Services","Children's Services and Education","Third Party Payments","Other establishments","08/01/21","6404365","818.84","VENDOR","TWO SAINTS LTD","102584"
"Portsmouth City Council","PCC","Children's and Education Services","Safeguarding Children and Young Peoples Services","Children's Services and Education","Third Party Payments","Other establishments","08/01/21","6404365","1.06","VENDOR","TWO SAINTS LTD","102584"
"Portsmouth City Council","PCC","Children's and Education Services","Safeguarding Children and Young Peoples Services","Children's Services and Education","Third Party Payments","Other establishments","08/01/21","6404365","814.86","VENDOR","TWO SAINTS LTD","102584"
"Portsmouth City Council","PCC","Children's and Education Services","Children Looked After","Children's Services and Education","Third Party Payments","Other establishments","08/01/21","6404365","-8.19","VENDOR","TWO SAINTS LTD","102584"
"Portsmouth City Council","PCC","Children's and Education Services","Children Looked After","Children's Services and Education","Third Party Payments","Other establishments","08/01/21","6404365","818.84","VENDOR","TWO SAINTS LTD","102584"
"Portsmouth City Council","PCC","Housing Services","Supporting People","Housing, Neighbourhood and Building Services","Third Party Payments","Other establishments","12/01/21","6405712","51946.76","VENDOR","TWO SAINTS LTD","102584"
"Portsmouth City Council","PCC","Housing Services","Supporting People","Housing, Neighbourhood and Building Services","Third Party Payments","Other establishments","12/01/21","6405712","4166.67","VENDOR","TWO SAINTS LTD","102584"
"Portsmouth City Council","PCC","Housing Services","Supporting People","Housing, Neighbourhood and Building Services","Third Party Payments","Other establishments","18/01/21","6408239","34883.06","VENDOR","TWO SAINTS LTD","102584"
"Portsmouth City Council","PCC","Adult Social Care","Social Care Activities","Adult Services","Third Party Payments","Other establishments","19/01/21","6408250","16319.26","VENDOR","ADMIRAL CARE LTD","138025"
"Portsmouth City Council","PCC","Children's and Education Services","Other Education and Community Budget","Children's Services and Education","Supplies and Services","Miscellaneous expenses","29/01/21","6411848","23230","VENDOR","EDENRED (UK GROUP) LIMITED","147462"
"Portsmouth City Council","PCC","Children's and Education Services","Management and Support Services","Children's Services and Education","Supplies and Services","Miscellaneous expenses","29/01/21","6411848","172460","VENDOR","EDENRED (UK GROUP) LIMITED","147462"
"Portsmouth City Council","PCC","Children's and Education Services","Other Education and Community Budget","Children's Services and Education","Supplies and Services","Miscellaneous expenses","29/01/21","6411848","44330","VENDOR","EDENRED (UK GROUP) LIMITED","147462"
"Portsmouth City Council","PCC","Children's and Education Services","Other Education and Community Budget","Children's Services and Education","Supplies and Services","Miscellaneous expenses","29/01/21","6411848","-15","VENDOR","EDENRED (UK GROUP) LIMITED","147462"
"Portsmouth City Council","PCC","Children's and Education Services","Other Education and Community Budget","Children's Services and Education","Supplies and Services","Miscellaneous expenses","29/01/21","6411848","-15","VENDOR","EDENRED (UK GROUP) LIMITED","147462"
"Portsmouth City Council","PCC","Children's and Education Services","Other Education and Community Budget","Children's Services and Education","Supplies and Services","Miscellaneous expenses","29/01/21","6411848","-15","VENDOR","EDENRED (UK GROUP) LIMITED","147462"
"Portsmouth City Council","PCC","Children's and Education Services","Other Education and Community Budget","Children's Services and Education","Supplies and Services","Miscellaneous expenses","29/01/21","6411848","-15","VENDOR","EDENRED (UK GROUP) LIMITED","147462"
"Portsmouth City Council","PCC","Adult Social Care","Physical Support Older People (85+)","Adult Services","Third Party Payments","Other establishments","27/01/21","6410935","3744.6","VENDOR","AGINCARE UK","134367"
"Portsmouth City Council","PCC","Adult Social Care","Physical Support Older People (85+)","Adult Services","Third Party Payments","Other establishments","12/01/21","6405507","2896.64","VENDOR","AGINCARE UK","134367"
"Portsmouth City Council","PCC","Adult Social Care","Support with Memory and Cognition Older People (85+)","Adult Services","Third Party Payments","Other establishments","12/01/21","6405513","2861.3","VENDOR","ALTON HOUSE PARTNERSHIP","119112"
"Portsmouth City Council","PCC","Adult Social Care","Support with Memory and Cognition Older People (85+)","Adult Services","Third Party Payments","Other establishments","12/01/21","6405513","2861.3","VENDOR","ALTON HOUSE PARTNERSHIP","119112"
"Portsmouth City Council","PCC","Adult Social Care","Support with Memory and Cognition Older People (85+)","Adult Services","Third Party Payments","Other establishments","12/01/21","6405513","-461.5","VENDOR","ALTON HOUSE PARTNERSHIP","119112"
"Portsmouth City Council","PCC","Adult Social Care","Support with Memory and Cognition Older People (85+)","Adult Services","Third Party Payments","Other establishments","12/01/21","6405671","1980.59","VENDOR","SHEDFIELD LODGE RESIDENTIAL","120834"
"Portsmouth City Council","PCC","Adult Social Care","Learning Disability Support  Adults (18 - 64)","Adult Services","Third Party Payments","Other establishments","12/01/21","6405522","10232.17","VENDOR","ASPENS CHARITIES","119343"
"Portsmouth City Council","PCC","Adult Social Care","Learning Disability Support  Adults (18 - 64)","Adult Services","Third Party Payments","Other establishments","12/01/21","6405523","9483.21","VENDOR","ASSURE HEALTH CARE GROUP","140779"
"Portsmouth City Council","PCC","Adult Social Care","Learning Disability Support  Adults (18 - 64)","Adult Services","Third Party Payments","Other establishments","12/01/21","6405523","-2654.63","VENDOR","ASSURE HEALTH CARE GROUP","140779"
"Portsmouth City Council","PCC","Adult Social Care","Learning Disability Support  Adults (18 - 64)","Adult Services","Third Party Payments","Other establishments","25/01/21","6410590","1792.56","VENDOR","ASSURE HEALTH CARE GROUP","140779"
"Portsmouth City Council","PCC","Other","Suspense and Capital Schemes","Capital - Traffic & Transportation","Capital Charges","Capital Expenditure (WIP)","06/01/21","6403972","6283","VENDOR","PLEYDELL TECHNOLOGY CONSULTING LTD","144609"
"Portsmouth City Council","PCC","Children's and Education Services","Safeguarding Children and Young Peoples Services","Children's Services and Education","Third Party Payments","Other establishments","12/01/21","6405695","-0.09","VENDOR","STILL WATERS CARE SERVICES LTD","146488"
"Portsmouth City Council","PCC","Children's and Education Services","Safeguarding Children and Young Peoples Services","Children's Services and Education","Third Party Payments","Other establishments","12/01/21","6405695","5254.29","VENDOR","STILL WATERS CARE SERVICES LTD","146488"
"Portsmouth City Council","PCC","Adult Social Care","Learning Disability Support  Adults (18 - 64)","Adult Services","Third Party Payments","Other establishments","25/01/21","6410590","594.63","VENDOR","ASSURE HEALTH CARE GROUP","140779"
"Portsmouth City Council","PCC","Adult Social Care","Social Care Activities","Adult Services","Third Party Payments","Other establishments","28/01/21","6411462","95.7","VENDOR","ADMIRAL CARE LTD","138025"
"Portsmouth City Council","PCC","Other","Suspense and Capital Schemes","Capital - Housing General Fund","Capital Charges","Capital Expenditure (WIP)","20/01/21","6408999","611","VENDOR","WILCE SERVICES UK LTD","146062"
"Portsmouth City Council","PCC","Children's and Education Services","Children Looked After","Children's Services and Education","Third Party Payments","Other establishments","25/01/21","6410738","850.28","VENDOR","STILL WATERS CARE SERVICES LTD","146488"
"Portsmouth City Council","PCC","Children's and Education Services","Children Looked After","Children's Services and Education","Third Party Payments","Other establishments","25/01/21","6410738","-44.33","VENDOR","STILL WATERS CARE SERVICES LTD","146488"
"Portsmouth City Council","PCC","Children's and Education Services","Children Looked After","Children's Services and Education","Third Party Payments","Other establishments","25/01/21","6410738","3985.72","VENDOR","STILL WATERS CARE SERVICES LTD","146488"
"Portsmouth City Council","PCC","Housing Revenue Account","Supervision and Management","Housing, Neighbourhood and Building Services","Supplies and Services","Communications and computing","04/01/21","6403277","460","VENDOR","GRAITEC LIMITED","106525"
"Portsmouth City Council","PCC","Other","Suspense and Capital Schemes","Capital - Traffic & Transportation","Capital Charges","Capital Expenditure (WIP)","04/01/21","6403277","115","VENDOR","GRAITEC LIMITED","106525"
"Portsmouth City Council","PCC","Adult Social Care","Support with Memory and Cognition Older People (65 - 74)","Adult Services","Supplies and Services","Catering","15/01/21","6407780","295.21","VENDOR","DEMERAN LIMITED","147321"
"Portsmouth City Council","PCC","Adult Social Care","Physical Support Older People (65-74)","Adult Services","Supplies and Services","Catering","15/01/21","6407780","137.3","VENDOR","DEMERAN LIMITED","147321"
"Portsmouth City Council","PCC","Adult Social Care","Support with Memory and Cognition Older People (65 - 74)","Adult Services","Supplies and Services","Catering","15/01/21","6407780","242.78","VENDOR","DEMERAN LIMITED","147321"
"Portsmouth City Council","PCC","Other","Suspense and Capital Schemes","Housing, Neighbourhood and Building Services","Supplies and Services","Services","20/01/21","6408887","5320","VENDOR","PORTSMOUTH BATHROOM SPECIALISTS LTD","138960"
"Portsmouth City Council","PCC","Other","Suspense and Capital Schemes","Housing, Neighbourhood and Building Services","Supplies and Services","Services","07/01/21","6404206","6600","VENDOR","PORTSMOUTH BATHROOM SPECIALISTS LTD","138960"
"Portsmouth City Council","PCC","Support Service / Transparency Costs Unallocated","Procurement","Finance & Resources","Supplies and Services","Services","13/01/21","6406316","1339.28","VENDOR","SOCIAL VALUE BUSINESS LTD","147523"
"Portsmouth City Council","PCC","Adult Social Care","Support with Memory and Cognition Older People (65 - 74)","Adult Services","Third Party Payments","Private contractors","11/01/21","6404378","570.24","VENDOR","A24 GROUP LIMITED T/A AMBITION 24 HOURS","139614"
"Portsmouth City Council","PCC","Adult Social Care","Support with Memory and Cognition Older People (65 - 74)","Adult Services","Third Party Payments","Private contractors","07/01/21","6404126","526.6","VENDOR","A24 GROUP LIMITED T/A AMBITION 24 HOURS","139614"
"Portsmouth City Council","PCC","Adult Social Care","Support with Memory and Cognition Older People (65 - 74)","Adult Services","Third Party Payments","Private contractors","07/01/21","6404126","711.81","VENDOR","A24 GROUP LIMITED T/A AMBITION 24 HOURS","139614"
"Portsmouth City Council","PCC","Adult Social Care","Support with Memory and Cognition Older People (65 - 74)","Adult Services","Third Party Payments","Private contractors","07/01/21","6404126","530.18","VENDOR","A24 GROUP LIMITED T/A AMBITION 24 HOURS","139614"
"Portsmouth City Council","PCC","Adult Social Care","Support with Memory and Cognition Older People (65 - 74)","Adult Services","Third Party Payments","Private contractors","07/01/21","6404126","609.94","VENDOR","A24 GROUP LIMITED T/A AMBITION 24 HOURS","139614"
"Portsmouth City Council","PCC","Adult Social Care","Support with Memory and Cognition Older People (65 - 74)","Adult Services","Third Party Payments","Private contractors","14/01/21","6406408","565.81","VENDOR","A24 GROUP LIMITED T/A AMBITION 24 HOURS","139614"
"Portsmouth City Council","PCC","Adult Social Care","Support with Memory and Cognition Older People (65 - 74)","Adult Services","Third Party Payments","Private contractors","18/01/21","6408016","891.24","VENDOR","A24 GROUP LIMITED T/A AMBITION 24 HOURS","139614"
"Portsmouth City Council","PCC","Adult Social Care","Support with Memory and Cognition Older People (65 - 74)","Adult Services","Third Party Payments","Private contractors","18/01/21","6408016","666.85","VENDOR","A24 GROUP LIMITED T/A AMBITION 24 HOURS","139614"
"Portsmouth City Council","PCC","Adult Social Care","Support with Memory and Cognition Older People (65 - 74)","Adult Services","Third Party Payments","Private contractors","18/01/21","6408016","530.18","VENDOR","A24 GROUP LIMITED T/A AMBITION 24 HOURS","139614"
"Portsmouth City Council","PCC","Adult Social Care","Support with Memory and Cognition Older People (65 - 74)","Adult Services","Third Party Payments","Private contractors","18/01/21","6408016","928.38","VENDOR","A24 GROUP LIMITED T/A AMBITION 24 HOURS","139614"
"Portsmouth City Council","PCC","Adult Social Care","Support with Memory and Cognition Older People (65 - 74)","Adult Services","Third Party Payments","Private contractors","18/01/21","6408016","854.11","VENDOR","A24 GROUP LIMITED T/A AMBITION 24 HOURS","139614"
"Portsmouth City Council","PCC","Adult Social Care","Support with Memory and Cognition Older People (65 - 74)","Adult Services","Third Party Payments","Private contractors","18/01/21","6408016","872.67","VENDOR","A24 GROUP LIMITED T/A AMBITION 24 HOURS","139614"
"Portsmouth City Council","PCC","Adult Social Care","Support with Memory and Cognition Older People (65 - 74)","Adult Services","Third Party Payments","Private contractors","18/01/21","6408016","672.19","VENDOR","A24 GROUP LIMITED T/A AMBITION 24 HOURS","139614"
"Portsmouth City Council","PCC","Adult Social Care","Support with Memory and Cognition Older People (65 - 74)","Adult Services","Third Party Payments","Private contractors","25/01/21","6410582","564.77","VENDOR","A24 GROUP LIMITED T/A AMBITION 24 HOURS","139614"
"Portsmouth City Council","PCC","Adult Social Care","Support with Memory and Cognition Older People (65 - 74)","Adult Services","Third Party Payments","Private contractors","25/01/21","6410582","729.33","VENDOR","A24 GROUP LIMITED T/A AMBITION 24 HOURS","139614"
"Portsmouth City Council","PCC","Adult Social Care","Support with Memory and Cognition Older People (65 - 74)","Adult Services","Third Party Payments","Private contractors","25/01/21","6410582","854.11","VENDOR","A24 GROUP LIMITED T/A AMBITION 24 HOURS","139614"
"Portsmouth City Council","PCC","Adult Social Care","Support with Memory and Cognition Older People (65 - 74)","Adult Services","Third Party Payments","Private contractors","25/01/21","6410582","572.24","VENDOR","A24 GROUP LIMITED T/A AMBITION 24 HOURS","139614"
"Portsmouth City Council","PCC","Adult Social Care","Support with Memory and Cognition Older People (65 - 74)","Adult Services","Third Party Payments","Private contractors","25/01/21","6410582","707.59","VENDOR","A24 GROUP LIMITED T/A AMBITION 24 HOURS","139614"
"Portsmouth City Council","PCC","Adult Social Care","Social Care Activities","Adult Services","Third Party Payments","Other establishments","28/01/21","6411462","95.7","VENDOR","ADMIRAL CARE LTD","138025"
"Portsmouth City Council","PCC","Adult Social Care","Social Care Activities","Adult Services","Third Party Payments","Other establishments","28/01/21","6411462","91.35","VENDOR","ADMIRAL CARE LTD","138025"
"Portsmouth City Council","PCC","Adult Social Care","Social Care Activities","Adult Services","Third Party Payments","Other establishments","28/01/21","6411462","535.05","VENDOR","ADMIRAL CARE LTD","138025"
"Portsmouth City Council","PCC","Adult Social Care","Social Care Activities","Adult Services","Third Party Payments","Other establishments","28/01/21","6411462","104.4","VENDOR","ADMIRAL CARE LTD","138025"
"Portsmouth City Council","PCC","Adult Social Care","Social Care Activities","Adult Services","Third Party Payments","Other establishments","28/01/21","6411462","822.15","VENDOR","ADMIRAL CARE LTD","138025"
"Portsmouth City Council","PCC","Adult Social Care","Social Care Activities","Adult Services","Third Party Payments","Other establishments","28/01/21","6411462","822.15","VENDOR","ADMIRAL CARE LTD","138025"
"Portsmouth City Council","PCC","Adult Social Care","Physical Support Older People (85+)","Adult Services","Third Party Payments","Other establishments","28/01/21","6411462","510.24","VENDOR","ADMIRAL CARE LTD","138025"
"Portsmouth City Council","PCC","Adult Social Care","Physical Support Older People (85+)","Adult Services","Third Party Payments","Other establishments","28/01/21","6411462","425.2","VENDOR","ADMIRAL CARE LTD","138025"
"Portsmouth City Council","PCC","Adult Social Care","Mental Health Support Older People (65 - 74)","Adult Services","Third Party Payments","Other establishments","28/01/21","6411462","556.8","VENDOR","ADMIRAL CARE LTD","138025"
"Portsmouth City Council","PCC","Adult Social Care","Mental Health Support Older People (65 - 74)","Adult Services","Third Party Payments","Other establishments","28/01/21","6411462","261","VENDOR","ADMIRAL CARE LTD","138025"
"Portsmouth City Council","PCC","Adult Social Care","Learning Disability Support  Adults (18 - 64)","Adult Services","Third Party Payments","Other establishments","25/01/21","6410590","1009.8","VENDOR","ASSURE HEALTH CARE GROUP","140779"
"Portsmouth City Council","PCC","Adult Social Care","Learning Disability Support  Adults (18 - 64)","Adult Services","Third Party Payments","Other establishments","25/01/21","6410590","4481.4","VENDOR","ASSURE HEALTH CARE GROUP","140779"
"Portsmouth City Council","PCC","Adult Social Care","Mental Health Support Older People (65 - 74)","Adult Services","Third Party Payments","Other establishments","28/01/21","6411462","69.6","VENDOR","ADMIRAL CARE LTD","138025"
"Portsmouth City Council","PCC","Housing Revenue Account","Special Services","Housing, Neighbourhood and Building Services","Supplies and Services","Miscellaneous expenses","22/01/21","6410572","1376.17","VENDOR","UK INSURANCE LTD","144591"
"Portsmouth City Council","PCC","Highways and Transport Services","Parking Services","Regeneration","Premises-Related Expenditure","Repairs, alterations and maintenance of buildings","06/01/21","6404045","1307.65","COMPANY","SSE CONTRACTING LTD","101806"
"Portsmouth City Council","PCC","Other","Suspense and Capital Schemes","Housing, Neighbourhood and Building Services","Premises-Related Expenditure","Repairs, alterations and maintenance of buildings","26/01/21","6410900","960.38","COMPANY","SSE CONTRACTING LTD","101806"
"Portsmouth City Council","PCC","Adult Social Care","Learning Disability Support  Adults (18 - 64)","Adult Services","Third Party Payments","Other establishments","25/01/21","6410590","1675.77","VENDOR","ASSURE HEALTH CARE GROUP","140779"
"Portsmouth City Council","PCC","Other","Suspense and Capital Schemes","Capital - Housing General Fund","Capital Charges","REFCUS","27/01/21","6411054","5000","VENDOR","CRIPPS PROPERTY SERVICES","147361"
"Portsmouth City Council","PCC","Adult Social Care","Learning Disability Support  Adults (18 - 64)","Adult Services","Third Party Payments","Other establishments","25/01/21","6410590","2845.8","VENDOR","ASSURE HEALTH CARE GROUP","140779"
"Portsmouth City Council","PCC","Adult Social Care","Mental Health Support Adults (18 - 64)","Adult Services","Third Party Payments","Other establishments","25/01/21","6410590","4908.54","VENDOR","ASSURE HEALTH CARE GROUP","140779"
"Portsmouth City Council","PCC","Housing Services","Homelessness","Housing, Neighbourhood and Building Services","Supplies and Services","Grants and subscriptions","18/01/21","6408174","1040","SOLETRADER","Classified as 'personal data' (under the Data Protection Act 2018)","147594"
"Portsmouth City Council","PCC","Housing Services","Homelessness","Housing, Neighbourhood and Building Services","Supplies and Services","Grants and subscriptions","15/01/21","6406573","715","VENDOR","AC PROPERTIES","146506"
"Portsmouth City Council","PCC","Housing Services","Homelessness","Housing, Neighbourhood and Building Services","Supplies and Services","Grants and subscriptions","27/01/21","6411101","1856.25","SOLETRADER","Classified as 'personal data' (under the Data Protection Act 2018)","147644"
"Portsmouth City Council","PCC","Cultural and Related Services","Library Service","Culture, Leisure & Regulatory Services","Supplies and Services","Grants and subscriptions","26/01/21","6410862","10000","VENDOR","LITERACY PIRATES","146805"
"Portsmouth City Council","PCC","Housing Revenue Account","Repairs and Maintenance","Housing, Neighbourhood and Building Services","Premises-Related Expenditure","Repairs, alterations and maintenance of buildings","26/01/21","6410772","1174364.43","COMPANY","COMSERV (UK) LIMITED","120542"
"Portsmouth City Council","PCC","Housing Revenue Account","Repairs and Maintenance","Housing, Neighbourhood and Building Services","Premises-Related Expenditure","Repairs, alterations and maintenance of buildings","26/01/21","6410867","1252074.04","COMPANY","MOUNTJOY LIMITED","129869"
"Portsmouth City Council","PCC","Cultural and Related Services","Open Spaces","Culture, Leisure & Regulatory Services","Premises-Related Expenditure","Repairs, alterations and maintenance of buildings","05/01/21","6403408","900","VENDOR","REAL CHRISTMAS TREES LIMITED","147275"
"Portsmouth City Council","PCC","Cultural and Related Services","Open Spaces","Culture, Leisure & Regulatory Services","Premises-Related Expenditure","Repairs, alterations and maintenance of buildings","05/01/21","6403408","2200","VENDOR","REAL CHRISTMAS TREES LIMITED","147275"
"Portsmouth City Council","PCC","Children's and Education Services","Other Children and Family Services","Children's Services and Education","Employees","Indirect employee expenses","12/01/21","6405673","750","VENDOR","SIGNIS LIMITED","140161"
"Portsmouth City Council","PCC","Highways and Transport Services","Airports, Harbours and Toll Facilities","Portsmouth International Port","Premises-Related Expenditure","Repairs, alterations and maintenance of buildings","07/01/21","6404138","13440","VENDOR","BARTER FOR THINGS LIMITED","147196"
"Portsmouth City Council","PCC","Other","Suspense and Capital Schemes","Capital - Leader - Port","Capital Charges","Capital Expenditure (WIP)","21/01/21","6410265","20390.42","COMPANY","SCOUR PROTECTION LIMITED","128162"
"Portsmouth City Council","PCC","Other","Suspense and Capital Schemes","Capital - Housing General Fund","Capital Charges","REFCUS","22/01/21","6410524","780","OTHER LOCAL AUTHORITY","CRAWLEY BOROUGH COUNCIL","147620"
"Portsmouth City Council","PCC","Highways and Transport Services","Transport Planning, Policy and Strategy","Regeneration","Third Party Payments","Private contractors","15/01/21","6407940","2647","VENDOR","SMART VIDEO AND SENSING LTD","141106"
"Portsmouth City Council","PCC","Highways and Transport Services","Transport Planning, Policy and Strategy","Regeneration","Third Party Payments","Private contractors","15/01/21","6407940","545.5","VENDOR","SMART VIDEO AND SENSING LTD","141106"
"Portsmouth City Council","PCC","Solent LEP","Business support","OTHER","Supplies and Services","Services","25/01/21","6410593","2087","VENDOR","BEVAN BRITTAN LLP","108894"
"Portsmouth City Council","PCC","Other","Suspense and Capital Schemes","Capital - Culture, Leisure and Economic Development","Capital Charges","Capital Expenditure (WIP)","28/01/21","6411653","20456","VENDOR","KIER LTD","147351"
"Portsmouth City Council","PCC","Other","Suspense and Capital Schemes","Capital - Leader - Port","Capital Charges","Capital Expenditure (WIP)","05/01/21","6403383","121069.75","VENDOR","KIER LTD","147351"
"Portsmouth City Council","PCC","Other","Suspense and Capital Schemes","Capital - Housing General Fund","Capital Charges","REFCUS","15/01/21","6407860","6789.4","COMPANY","L DEVINE AND CO LIMITED","111002"
"Portsmouth City Council","PCC","Housing Services","Private Sector Housing Renewal","Housing, Neighbourhood and Building Services","Income","Other grants reimbursements and contributions","15/01/21","6407860","-899.5","COMPANY","L DEVINE AND CO LIMITED","111002"
"Portsmouth City Council","PCC","Adult Social Care","Social Care Activities","Adult Services","Third Party Payments","Other establishments","12/01/21","6405525","16177.66","VENDOR","AUTISM HAMPSHIRE","139112"
"Portsmouth City Council","PCC","Other","Suspense and Capital Schemes","Portsmouth International Port","Supplies and Services","Miscellaneous expenses","07/01/21","6404135","2426.89","COMPANY","AVERY WEIGH-TRONIX","107623"
"Portsmouth City Council","PCC","Planning Services","Environmental Initiatives","Regeneration","Third Party Payments","Other local authorities","07/01/21","6404187","4075","COMPANY","HEALTHMATIC LIMITED","137892"
"Portsmouth City Council","PCC","Housing Revenue Account","Rents, Rates, Taxes and Other Charges","Housing, Neighbourhood and Building Services","Supplies and Services","Miscellaneous expenses","14/01/21","6406481","848.84","VENDOR","LIDL UK GMBH","133340"
"Portsmouth City Council","PCC","Children's and Education Services","Special Schools","Children's Services and Education","Third Party Payments","Other establishments","29/01/21","6411743","12155","VENDOR","BRYN MELYN CARE LTD","137131"
"Portsmouth City Council","PCC","Housing Services","Homelessness","Housing, Neighbourhood and Building Services","Supplies and Services","Grants and subscriptions","26/01/21","6410871","1460","VENDOR","OPENRENT LIMITED","146178"
"Portsmouth City Council","PCC","Solent LEP","Business support","OTHER","Supplies and Services","Services","18/01/21","6408166","1435","VENDOR","DEEP SOUTH MEDIA LTD","143218"
"Portsmouth City Council","PCC","Support Service / Transparency Costs Unallocated","Personnel","Corporate Services","Employees","Direct employee expenses","08/01/21","6404254","96042.8","VENDOR","COMENSURA LTD","140265"
"Portsmouth City Council","PCC","Cultural and Related Services","Open Spaces","Culture, Leisure & Regulatory Services","Supplies and Services","Expenses","25/01/21","6410595","858.15","VENDOR","BOTLEY FLOUR MILLING CO LTD","136069"
"Portsmouth City Council","PCC","Support Service / Transparency Costs Unallocated","Personnel","Corporate Services","Employees","Direct employee expenses","15/01/21","6406585","108307.62","VENDOR","COMENSURA LTD","140265"
"Portsmouth City Council","PCC","Cultural and Related Services","Open Spaces","Culture, Leisure & Regulatory Services","Supplies and Services","Expenses","25/01/21","6410595","135.33","VENDOR","BOTLEY FLOUR MILLING CO LTD","136069"
"Portsmouth City Council","PCC","Housing Revenue Account","Supervision and Management","Housing, Neighbourhood and Building Services","Supplies and Services","Communications and computing","05/01/21","6403324","432.86","VENDOR","CIVICA UK LTD","104001"
"Portsmouth City Council","PCC","Housing Revenue Account","Supervision and Management","Housing, Neighbourhood and Building Services","Supplies and Services","Communications and computing","05/01/21","6403324","2164.3","VENDOR","CIVICA UK LTD","104001"
"Portsmouth City Council","PCC","Support Service / Transparency Costs Unallocated","Personnel","Corporate Services","Employees","Direct employee expenses","22/01/21","6410461","113971.75","VENDOR","COMENSURA LTD","140265"
"Portsmouth City Council","PCC","Support Service / Transparency Costs Unallocated","Personnel","Corporate Services","Employees","Direct employee expenses","29/01/21","6411754","116300.6","VENDOR","COMENSURA LTD","140265"
"Portsmouth City Council","PCC","Other","Suspense and Capital Schemes","Capital - Housing General Fund","Capital Charges","REFCUS","18/01/21","6408172","784","COMPANY","DOLPHIN MOBILITY LTD","135682"
"Portsmouth City Council","PCC","Housing Services","Private Sector Housing Renewal","Housing, Neighbourhood and Building Services","Income","Other grants reimbursements and contributions","18/01/21","6408172","-70","COMPANY","DOLPHIN MOBILITY LTD","135682"
"Portsmouth City Council","PCC","Other","Suspense and Capital Schemes","Capital - Housing General Fund","Capital Charges","REFCUS","21/01/21","6410243","784","COMPANY","DOLPHIN MOBILITY LTD","135682"
"Portsmouth City Council","PCC","Housing Services","Private Sector Housing Renewal","Housing, Neighbourhood and Building Services","Income","Other grants reimbursements and contributions","21/01/21","6410243","-70","COMPANY","DOLPHIN MOBILITY LTD","135682"
"Portsmouth City Council","PCC","Costs below Net Cost of Services","Trading","Regeneration","Supplies and Services","Services","15/01/21","6406548","5230.14","VENDOR","GVA GRIMLEY LTD","113804"
"Portsmouth City Council","PCC","Adult Social Care","Mental Health Support Older People (65 - 74)","Adult Services","Third Party Payments","Other establishments","28/01/21","6411462","69.6","VENDOR","ADMIRAL CARE LTD","138025"
"Portsmouth City Council","PCC","Costs below Net Cost of Services","Trading","Regeneration","Supplies and Services","Services","12/01/21","6405705","1922.09","VENDOR","THE OYSTER PARTNERSHIP","120530"
"Portsmouth City Council","PCC","Costs below Net Cost of Services","Trading","Regeneration","Supplies and Services","Services","12/01/21","6405705","303.25","VENDOR","THE OYSTER PARTNERSHIP","120530"
"Portsmouth City Council","PCC","Costs below Net Cost of Services","Trading","Regeneration","Supplies and Services","Services","12/01/21","6405705","1905","VENDOR","THE OYSTER PARTNERSHIP","120530"
"Portsmouth City Council","PCC","Costs below Net Cost of Services","Trading","Regeneration","Supplies and Services","Services","07/01/21","6404146","1470","VENDOR","CLYDE AND CO","134667"
"Portsmouth City Council","PCC","Support Service / Transparency Costs Unallocated","AMS","Housing, Neighbourhood and Building Services","Supplies and Services","Services","13/01/21","6405765","880","VENDOR","BAKER STUART LIMITED","146369"
"Portsmouth City Council","PCC","Highways and Transport Services","Parking Services","Regeneration","Supplies and Services","Communications and computing","07/01/21","6404177","1364.26","VENDOR","EASY NETWORKS LTD","100142"
"Portsmouth City Council","PCC","Cultural and Related Services","Tourism","Culture, Leisure & Regulatory Services","Supplies and Services","Miscellaneous expenses","13/01/21","6406351","300","VENDOR","TOURISM SOUTH EAST","106123"
"Portsmouth City Council","PCC","Cultural and Related Services","Culture and Heritage","Culture, Leisure & Regulatory Services","Supplies and Services","Miscellaneous expenses","13/01/21","6406351","295","VENDOR","TOURISM SOUTH EAST","106123"
"Portsmouth City Council","PCC","Housing Services","Homelessness","Housing, Neighbourhood and Building Services","Supplies and Services","Grants and subscriptions","20/01/21","6408420","420","SOLETRADER","Classified as 'personal data' (under the Data Protection Act 2018)","147614"
"Portsmouth City Council","PCC","Other","Suspense and Capital Schemes","Capital - Planning Policy & City Development","Capital Charges","Capital Expenditure (WIP)","15/01/21","6407972","13750","VENDOR","THE MINISTRY OF DEFENCE","114001"
"Portsmouth City Council","PCC","Environmental and Regulatory Services","Regulatory Services","Culture, Leisure & Regulatory Services","Supplies and Services","Communications and computing","07/01/21","6404189","800","VENDOR","IDOX SOFTWARE LTD","113608"
"Portsmouth City Council","PCC","Children's and Education Services","Other Education and Community Budget","Children's Services and Education","Supplies and Services","Communications and computing","05/01/21","6403430","833","VENDOR","TAYLOR MADE COMPUTER SOLUTIONS LTD","113090"
"Portsmouth City Council","PCC","Planning Services","Business support","Regeneration","Premises-Related Expenditure","Repairs, alterations and maintenance of buildings","15/01/21","6407798","1865.88","COMPANY","ENHANCED FLOORS LTD","136989"
"Portsmouth City Council","PCC","Other","Suspense and Capital Schemes","Capital - Housing RA","Capital Charges","Capital Expenditure (WIP)","18/01/21","6408020","81605","COMPANY","AMIRI CONSTRUCTION LTD","138873"
"Portsmouth City Council","PCC","Other","Suspense and Capital Schemes","Housing, Neighbourhood and Building Services","Third Party Payments","Private contractors","27/01/21","6411135","450000","OTHER LOCAL AUTHORITY","HAMPSHIRE COUNTY COUNCIL","100030"
"Portsmouth City Council","PCC","Adult Social Care","Social Care Activities","Adult Services","Third Party Payments","Other establishments","25/01/21","6410748","4782","VENDOR","THE OUT OF TOWN CENTRE LIMITED","133198"
"Portsmouth City Council","PCC","Adult Social Care","Social Care Activities","Adult Services","Third Party Payments","Other establishments","25/01/21","6410748","5419.6","VENDOR","THE OUT OF TOWN CENTRE LIMITED","133198"
"Portsmouth City Council","PCC","Housing Services","Homelessness","Housing, Neighbourhood and Building Services","Supplies and Services","Grants and subscriptions","26/01/21","6410874","715","SOLETRADER","Classified as 'personal data' (under the Data Protection Act 2018)","147377"
"Portsmouth City Council","PCC","Children's and Education Services","Other Education and Community Budget","Children's Services and Education","Third Party Payments","Private contractors","14/01/21","6406512","10720","VENDOR","THINKING SOLUTIONS FOR EDUCATION","147530"
"Portsmouth City Council","PCC","Central Services","Elections","Corporate Services","Supplies and Services","Printing, stationery and general office expenses","11/01/21","6404484","1028.4","VENDOR","FINANCIAL DATA MANANGEMENT PLC","102246"
"Portsmouth City Council","PCC","Housing Services","Homelessness","Housing, Neighbourhood and Building Services","Supplies and Services","Grants and subscriptions","26/01/21","6410838","1000","SOLETRADER","Classified as 'personal data' (under the Data Protection Act 2018)","147638"
"Portsmouth City Council","PCC","Adult Social Care","Learning Disability Support  Adults (18 - 64)","Adult Services","Third Party Payments","Other establishments","12/01/21","6405525","6084.06","VENDOR","AUTISM HAMPSHIRE","139112"
"Portsmouth City Council","PCC","Children's and Education Services","Management and Support Services","Children's Services and Education","Third Party Payments","Other establishments","06/01/21","6403757","520","VENDOR","FLEET EDUCATION SERVICES LTD","131328"
"Portsmouth City Council","PCC","Children's and Education Services","Management and Support Services","Children's Services and Education","Third Party Payments","Other establishments","25/01/21","6410698","520","VENDOR","EQUAL EDUCATION LIMITED","144960"
"Portsmouth City Council","PCC","Children's and Education Services","Management and Support Services","Children's Services and Education","Third Party Payments","Other establishments","06/01/21","6403757","130","VENDOR","FLEET EDUCATION SERVICES LTD","131328"
"Portsmouth City Council","PCC","Children's and Education Services","Management and Support Services","Children's Services and Education","Third Party Payments","Other establishments","25/01/21","6410698","130","VENDOR","EQUAL EDUCATION LIMITED","144960"
"Portsmouth City Council","PCC","Other","Suspense and Capital Schemes","Capital - Planning Policy & City Development","Capital Charges","Capital Expenditure (WIP)","18/01/21","6408209","3982.8","VENDOR","MJ ABBOTT LIMITED","147261"
"Portsmouth City Council","PCC","Housing Services","Homelessness","Housing, Neighbourhood and Building Services","Supplies and Services","Grants and subscriptions","26/01/21","328136","1076","VENDOR","JEFFRIES LETTINGS LTD","113418"
"Portsmouth City Council","PCC","Housing Services","Homelessness","Housing, Neighbourhood and Building Services","Supplies and Services","Grants and subscriptions","08/01/21","6404276","1507.69","VENDOR","CT MCCANN DEVELOPMENTS","119232"
"Portsmouth City Council","PCC","Housing Services","Homelessness","Housing, Neighbourhood and Building Services","Supplies and Services","Grants and subscriptions","08/01/21","6404373","1050","VENDOR","Classified as 'personal data' (under the Data Protection Act 2018)","144967"
"Portsmouth City Council","PCC","Corporate and Democratic Core","Democratic Representation and Management","Culture, Leisure & Regulatory Services","Third Party Payments","Private contractors","08/01/21","6404326","183.33","COMPANY","POWERWORKS MAINTENANCE SERVICES LTD","141178"
"Portsmouth City Council","PCC","Corporate and Democratic Core","Democratic Representation and Management","Culture, Leisure & Regulatory Services","Third Party Payments","Private contractors","08/01/21","6404326","366.67","COMPANY","POWERWORKS MAINTENANCE SERVICES LTD","141178"
"Portsmouth City Council","PCC","Adult Social Care","Learning Disability Support  Adults (18 - 64)","Adult Services","Third Party Payments","Other establishments","12/01/21","6405525","6332.68","VENDOR","AUTISM HAMPSHIRE","139112"
"Portsmouth City Council","PCC","Adult Social Care","Learning Disability Support  Adults (18 - 64)","Adult Services","Third Party Payments","Other establishments","12/01/21","6405525","3863.22","VENDOR","AUTISM HAMPSHIRE","139112"
"Portsmouth City Council","PCC","Planning Services","Business support","Regeneration","Premises-Related Expenditure","Repairs, alterations and maintenance of buildings","07/01/21","6404214","20.16","VENDOR","SIX DEGREES TECHNOLOGY GROUP LTD","137034"
"Portsmouth City Council","PCC","Planning Services","Business support","Regeneration","Premises-Related Expenditure","Repairs, alterations and maintenance of buildings","07/01/21","6404214","37.32","VENDOR","SIX DEGREES TECHNOLOGY GROUP LTD","137034"
"Portsmouth City Council","PCC","Cultural and Related Services","Recreation and Sport","Culture, Leisure & Regulatory Services","Premises-Related Expenditure","Repairs, alterations and maintenance of buildings","07/01/21","6404214","37.32","VENDOR","SIX DEGREES TECHNOLOGY GROUP LTD","137034"
"Portsmouth City Council","PCC","Support Service / Transparency Costs Unallocated","LLM","Housing, Neighbourhood and Building Services","Premises-Related Expenditure","Repairs, alterations and maintenance of buildings","07/01/21","6404214","57.48","VENDOR","SIX DEGREES TECHNOLOGY GROUP LTD","137034"
"Portsmouth City Council","PCC","Support Service / Transparency Costs Unallocated","LLM","Housing, Neighbourhood and Building Services","Premises-Related Expenditure","Repairs, alterations and maintenance of buildings","07/01/21","6404214","18.66","VENDOR","SIX DEGREES TECHNOLOGY GROUP LTD","137034"
"Portsmouth City Council","PCC","Support Service / Transparency Costs Unallocated","LLM","Housing, Neighbourhood and Building Services","Premises-Related Expenditure","Repairs, alterations and maintenance of buildings","07/01/21","6404214","18.66","VENDOR","SIX DEGREES TECHNOLOGY GROUP LTD","137034"
"Portsmouth City Council","PCC","Support Service / Transparency Costs Unallocated","LLM","Housing, Neighbourhood and Building Services","Premises-Related Expenditure","Repairs, alterations and maintenance of buildings","07/01/21","6404214","18.66","VENDOR","SIX DEGREES TECHNOLOGY GROUP LTD","137034"
"Portsmouth City Council","PCC","Support Service / Transparency Costs Unallocated","LLM","Housing, Neighbourhood and Building Services","Premises-Related Expenditure","Repairs, alterations and maintenance of buildings","07/01/21","6404214","40.32","VENDOR","SIX DEGREES TECHNOLOGY GROUP LTD","137034"
"Portsmouth City Council","PCC","Support Service / Transparency Costs Unallocated","LLM","Housing, Neighbourhood and Building Services","Premises-Related Expenditure","Repairs, alterations and maintenance of buildings","07/01/21","6404214","40.32","VENDOR","SIX DEGREES TECHNOLOGY GROUP LTD","137034"
"Portsmouth City Council","PCC","Support Service / Transparency Costs Unallocated","LLM","Housing, Neighbourhood and Building Services","Premises-Related Expenditure","Repairs, alterations and maintenance of buildings","07/01/21","6404214","20.16","VENDOR","SIX DEGREES TECHNOLOGY GROUP LTD","137034"
"Portsmouth City Council","PCC","Support Service / Transparency Costs Unallocated","LLM","Housing, Neighbourhood and Building Services","Premises-Related Expenditure","Repairs, alterations and maintenance of buildings","07/01/21","6404214","20.16","VENDOR","SIX DEGREES TECHNOLOGY GROUP LTD","137034"
"Portsmouth City Council","PCC","Support Service / Transparency Costs Unallocated","LLM","Housing, Neighbourhood and Building Services","Premises-Related Expenditure","Repairs, alterations and maintenance of buildings","07/01/21","6404214","20.16","VENDOR","SIX DEGREES TECHNOLOGY GROUP LTD","137034"
"Portsmouth City Council","PCC","Support Service / Transparency Costs Unallocated","LLM","Housing, Neighbourhood and Building Services","Premises-Related Expenditure","Repairs, alterations and maintenance of buildings","07/01/21","6404214","18.66","VENDOR","SIX DEGREES TECHNOLOGY GROUP LTD","137034"
"Portsmouth City Council","PCC","Support Service / Transparency Costs Unallocated","LLM","Housing, Neighbourhood and Building Services","Premises-Related Expenditure","Repairs, alterations and maintenance of buildings","07/01/21","6404214","18.66","VENDOR","SIX DEGREES TECHNOLOGY GROUP LTD","137034"
"Portsmouth City Council","PCC","Housing Revenue Account","Repairs and Maintenance","Housing, Neighbourhood and Building Services","Premises-Related Expenditure","Repairs, alterations and maintenance of buildings","07/01/21","6404214","1484.09","VENDOR","SIX DEGREES TECHNOLOGY GROUP LTD","137034"
"Portsmouth City Council","PCC","Housing Services","Homelessness","Housing, Neighbourhood and Building Services","Supplies and Services","Miscellaneous expenses","15/01/21","6407823","9820.91","VENDOR","HELLO STUDENT MANAGEMENT LIMITED","147251"
"Portsmouth City Council","PCC","Housing Services","Homelessness","Housing, Neighbourhood and Building Services","Supplies and Services","Miscellaneous expenses","15/01/21","6407823","28181.82","VENDOR","HELLO STUDENT MANAGEMENT LIMITED","147251"
"Portsmouth City Council","PCC","Housing Services","Homelessness","Housing, Neighbourhood and Building Services","Supplies and Services","Miscellaneous expenses","15/01/21","6407823","461.32","VENDOR","HELLO STUDENT MANAGEMENT LIMITED","147251"
"Portsmouth City Council","PCC","Solent LEP","Business support","OTHER","Supplies and Services","Miscellaneous expenses","28/01/21","6411628","1800","VENDOR","GLOBAL RADIO SERVICES LIMITED","105043"
"Portsmouth City Council","PCC","Adult Social Care","Learning Disability Support  Adults (18 - 64)","Adult Services","Third Party Payments","Other establishments","12/01/21","6405525","9095.4","VENDOR","AUTISM HAMPSHIRE","139112"
"Portsmouth City Council","PCC","Solent LEP","Business support","OTHER","Supplies and Services","Miscellaneous expenses","19/01/21","6408325","1200","VENDOR","GLOBAL RADIO SERVICES LIMITED","105043"
"Portsmouth City Council","PCC","Highways and Transport Services","Airports, Harbours and Toll Facilities","Portsmouth International Port","Premises-Related Expenditure","Cleaning and domestic supplies","21/01/21","6410257","-3053.33","VENDOR","NVIRO LTD","124507"
"Portsmouth City Council","PCC","Support Service / Transparency Costs Unallocated","Procurement","Finance & Resources","Supplies and Services","Communications and computing","29/01/21","6411865","3433.49","VENDOR","IN-TEND LTD","121323"
"Portsmouth City Council","PCC","Other","Suspense and Capital Schemes","Capital - Housing General Fund","Capital Charges","REFCUS","18/01/21","6408197","12000","VENDOR","KEMP BUILDERS","135362"
"Portsmouth City Council","PCC","Housing Services","Private Sector Housing Renewal","Housing, Neighbourhood and Building Services","Supplies and Services","Grants and subscriptions","29/01/21","6411872","-40","VENDOR","KEMP BUILDERS","135362"
"Portsmouth City Council","PCC","Other","Suspense and Capital Schemes","Capital - Housing General Fund","Capital Charges","REFCUS","29/01/21","6411872","2676.8","VENDOR","KEMP BUILDERS","135362"
"Portsmouth City Council","PCC","Other","Suspense and Capital Schemes","Capital - Housing General Fund","Capital Charges","REFCUS","29/01/21","6411872","8000","VENDOR","KEMP BUILDERS","135362"
"Portsmouth City Council","PCC","Housing Services","Private Sector Housing Renewal","Housing, Neighbourhood and Building Services","Income","Other grants reimbursements and contributions","29/01/21","6411872","-120","VENDOR","KEMP BUILDERS","135362"
"Portsmouth City Council","PCC","Housing Services","Private Sector Housing Renewal","Housing, Neighbourhood and Building Services","Income","Other grants reimbursements and contributions","29/01/21","6411872","-1704","VENDOR","KEMP BUILDERS","135362"
"Portsmouth City Council","PCC","Support Service / Transparency Costs Unallocated","Personnel","Corporate Services","Employees","Indirect employee expenses","04/01/21","6403287","1400","VENDOR","MG CARE EXECUTIVE LTD","145566"
"Portsmouth City Council","PCC","Support Service / Transparency Costs Unallocated","Personnel","Corporate Services","Employees","Indirect employee expenses","04/01/21","6403287","148","VENDOR","MG CARE EXECUTIVE LTD","145566"
"Portsmouth City Council","PCC","Support Service / Transparency Costs Unallocated","Procurement","Finance & Resources","Supplies and Services","Equipment, furniture and materials","12/01/21","6405725","1615.68","VENDOR","ZIDAC LABORATORIES LTD","147252"
"Portsmouth City Council","PCC","Support Service / Transparency Costs Unallocated","Personnel","Corporate Services","Employees","Indirect employee expenses","27/01/21","6411317","347.52","VENDOR","RMC EMEA LIMITED","122070"
"Portsmouth City Council","PCC","Support Service / Transparency Costs Unallocated","Personnel","Corporate Services","Employees","Indirect employee expenses","27/01/21","6411317","133.74","VENDOR","RMC EMEA LIMITED","122070"
"Portsmouth City Council","PCC","Support Service / Transparency Costs Unallocated","Personnel","Corporate Services","Employees","Indirect employee expenses","27/01/21","6411317","103.77","VENDOR","RMC EMEA LIMITED","122070"
"Portsmouth City Council","PCC","Support Service / Transparency Costs Unallocated","Personnel","Corporate Services","Employees","Indirect employee expenses","21/01/21","6410255","1349","VENDOR","MG CARE EXECUTIVE LTD","145566"
"Portsmouth City Council","PCC","Support Service / Transparency Costs Unallocated","Personnel","Corporate Services","Employees","Indirect employee expenses","21/01/21","6410255","148","VENDOR","MG CARE EXECUTIVE LTD","145566"
"Portsmouth City Council","PCC","Support Service / Transparency Costs Unallocated","Personnel","Corporate Services","Employees","Indirect employee expenses","27/01/21","6411317","60","VENDOR","RMC EMEA LIMITED","122070"
"Portsmouth City Council","PCC","Support Service / Transparency Costs Unallocated","Personnel","Corporate Services","Employees","Indirect employee expenses","27/01/21","6411317","120","VENDOR","RMC EMEA LIMITED","122070"
"Portsmouth City Council","PCC","Support Service / Transparency Costs Unallocated","Personnel","Corporate Services","Employees","Indirect employee expenses","27/01/21","6411317","120","VENDOR","RMC EMEA LIMITED","122070"
"Portsmouth City Council","PCC","Support Service / Transparency Costs Unallocated","Personnel","Corporate Services","Employees","Indirect employee expenses","27/01/21","6411317","120","VENDOR","RMC EMEA LIMITED","122070"
"Portsmouth City Council","PCC","Support Service / Transparency Costs Unallocated","Personnel","Corporate Services","Employees","Indirect employee expenses","27/01/21","6411317","120","VENDOR","RMC EMEA LIMITED","122070"
"Portsmouth City Council","PCC","Support Service / Transparency Costs Unallocated","Personnel","Corporate Services","Employees","Indirect employee expenses","27/01/21","6411317","96","VENDOR","RMC EMEA LIMITED","122070"
"Portsmouth City Council","PCC","Support Service / Transparency Costs Unallocated","Personnel","Corporate Services","Employees","Indirect employee expenses","27/01/21","6411317","60","VENDOR","RMC EMEA LIMITED","122070"
"Portsmouth City Council","PCC","Support Service / Transparency Costs Unallocated","Personnel","Corporate Services","Employees","Indirect employee expenses","27/01/21","6411317","120","VENDOR","RMC EMEA LIMITED","122070"
"Portsmouth City Council","PCC","Support Service / Transparency Costs Unallocated","Personnel","Corporate Services","Employees","Indirect employee expenses","29/01/21","6411890","1486","VENDOR","MG CARE EXECUTIVE LTD","145566"
"Portsmouth City Council","PCC","Support Service / Transparency Costs Unallocated","Personnel","Corporate Services","Employees","Indirect employee expenses","29/01/21","6411890","157","VENDOR","MG CARE EXECUTIVE LTD","145566"
"Portsmouth City Council","PCC","Highways and Transport Services","Airports, Harbours and Toll Facilities","Portsmouth International Port","Premises-Related Expenditure","Cleaning and domestic supplies","21/01/21","6410257","225","VENDOR","NVIRO LTD","124507"
"Portsmouth City Council","PCC","Highways and Transport Services","Airports, Harbours and Toll Facilities","Portsmouth International Port","Premises-Related Expenditure","Cleaning and domestic supplies","21/01/21","6410257","16930.33","VENDOR","NVIRO LTD","124507"
"Portsmouth City Council","PCC","Highways and Transport Services","Airports, Harbours and Toll Facilities","Portsmouth International Port","Premises-Related Expenditure","Cleaning and domestic supplies","21/01/21","6410257","2375","VENDOR","NVIRO LTD","124507"
"Portsmouth City Council","PCC","Planning Services","Business support","Regeneration","Premises-Related Expenditure","Repairs, alterations and maintenance of buildings","14/01/21","6406465","983.75","COMPANY","HAMPSHIRE COMMERCIAL REFURBISHMENT LTD","139067"
"Portsmouth City Council","PCC","Planning Services","Business support","Regeneration","Premises-Related Expenditure","Repairs, alterations and maintenance of buildings","14/01/21","6406465","2200","COMPANY","HAMPSHIRE COMMERCIAL REFURBISHMENT LTD","139067"
"Portsmouth City Council","PCC","Highways and Transport Services","Airports, Harbours and Toll Facilities","Portsmouth International Port","Premises-Related Expenditure","Cleaning and domestic supplies","28/01/21","6411667","27505.68","VENDOR","NVIRO LTD","124507"
"Portsmouth City Council","PCC","Highways and Transport Services","Airports, Harbours and Toll Facilities","Portsmouth International Port","Premises-Related Expenditure","Cleaning and domestic supplies","28/01/21","6411667","2375","VENDOR","NVIRO LTD","124507"
"Portsmouth City Council","PCC","Highways and Transport Services","Airports, Harbours and Toll Facilities","Portsmouth International Port","Premises-Related Expenditure","Cleaning and domestic supplies","21/01/21","6410257","100","VENDOR","NVIRO LTD","124507"
"Portsmouth City Council","PCC","Highways and Transport Services","Airports, Harbours and Toll Facilities","Portsmouth International Port","Premises-Related Expenditure","Cleaning and domestic supplies","28/01/21","6411667","200","VENDOR","NVIRO LTD","124507"
"Portsmouth City Council","PCC","Highways and Transport Services","Airports, Harbours and Toll Facilities","Portsmouth International Port","Premises-Related Expenditure","Cleaning and domestic supplies","28/01/21","6411667","610","VENDOR","NVIRO LTD","124507"
"Portsmouth City Council","PCC","Support Service / Transparency Costs Unallocated","AMS","Regeneration","Third Party Payments","Private contractors","29/01/21","6411847","1000","VENDOR","ECD ARCHITECTS LTD","136285"
"Portsmouth City Council","PCC","Adult Social Care","Social Care Activities","Adult Services","Third Party Payments","Other establishments","12/01/21","6405531","3321.65","VENDOR","BETHESDA HEALTHCARE","143824"
"Portsmouth City Council","PCC","Children's and Education Services","Family Support Services","Children's Services and Education","Third Party Payments","Private contractors","27/01/21","6411388","1746.17","VENDOR","THE ALARMING CO LTD","101350"
"Portsmouth City Council","PCC","Children's and Education Services","Other Children and Family Services","Children's Services and Education","Supplies and Services","Services","04/01/21","6403280","2275","SOLETRADER","Classified as 'personal data' (under the Data Protection Act 2018)","133429"
"Portsmouth City Council","PCC","Children's and Education Services","Other Children and Family Services","Children's Services and Education","Supplies and Services","Services","04/01/21","6403294","2050","VENDOR","Classified as 'personal data' (under the Data Protection Act 2018)","147343"
"Portsmouth City Council","PCC","Children's and Education Services","Children Looked After","Children's Services and Education","Third Party Payments","Other establishments","22/01/21","6410567","-213.57","VENDOR","THE BEEHIVE ENTERPRISE","147200"
"Portsmouth City Council","PCC","Children's and Education Services","Children Looked After","Children's Services and Education","Third Party Payments","Other establishments","22/01/21","6410567","6193.57","VENDOR","THE BEEHIVE ENTERPRISE","147200"
"Portsmouth City Council","PCC","Environmental and Regulatory Services","Regulatory Services","Culture, Leisure & Regulatory Services","Third Party Payments","Private contractors","08/01/21","6404231","-728","VENDOR","ADAMS MOREY LTD","100446"
"Portsmouth City Council","PCC","Environmental and Regulatory Services","Regulatory Services","Culture, Leisure & Regulatory Services","Third Party Payments","Private contractors","08/01/21","6404231","728","VENDOR","ADAMS MOREY LTD","100446"
"Portsmouth City Council","PCC","Environmental and Regulatory Services","Regulatory Services","Culture, Leisure & Regulatory Services","Third Party Payments","Private contractors","08/01/21","6404231","104","VENDOR","ADAMS MOREY LTD","100446"
"Portsmouth City Council","PCC","Environmental and Regulatory Services","Regulatory Services","Culture, Leisure & Regulatory Services","Third Party Payments","Private contractors","08/01/21","6404231","624","VENDOR","ADAMS MOREY LTD","100446"
"Portsmouth City Council","PCC","Environmental and Regulatory Services","Regulatory Services","Culture, Leisure & Regulatory Services","Third Party Payments","Private contractors","27/01/21","6410931","468","VENDOR","ADAMS MOREY LTD","100446"
"Portsmouth City Council","PCC","Environmental and Regulatory Services","Regulatory Services","Culture, Leisure & Regulatory Services","Third Party Payments","Private contractors","27/01/21","6410931","780","VENDOR","ADAMS MOREY LTD","100446"
"Portsmouth City Council","PCC","Highways and Transport Services","Airports, Harbours and Toll Facilities","Portsmouth International Port","Transport-Related Expenditure","Direct transport costs","28/01/21","6411697","12864.38","VENDOR","SOUTHERN MARITIME SERVICES LIMITED","120765"
"Portsmouth City Council","PCC","Children's and Education Services","Other Children and Family Services","Children's Services and Education","Supplies and Services","Services","04/01/21","6403294","400","VENDOR","Classified as 'personal data' (under the Data Protection Act 2018)","147343"
"Portsmouth City Council","PCC","Housing Revenue Account","Repairs and Maintenance","Housing, Neighbourhood and Building Services","Premises-Related Expenditure","Repairs, alterations and maintenance of buildings","05/01/21","6403364","296.64","VENDOR","ELMHURST ENERGY SYSTEMS LTD","127591"
"Portsmouth City Council","PCC","Housing Revenue Account","Repairs and Maintenance","Housing, Neighbourhood and Building Services","Premises-Related Expenditure","Repairs, alterations and maintenance of buildings","05/01/21","6403364","203.36","VENDOR","ELMHURST ENERGY SYSTEMS LTD","127591"
"Portsmouth City Council","PCC","Adult Social Care","Social Care Activities","Adult Services","Third Party Payments","Other establishments","12/01/21","6405531","2571.6","VENDOR","BETHESDA HEALTHCARE","143824"
"Portsmouth City Council","PCC","Children's and Education Services","Other Children and Family Services","Children's Services and Education","Supplies and Services","Services","04/01/21","6403282","500","SOLETRADER","Classified as 'personal data' (under the Data Protection Act 2018)","134578"
"Portsmouth City Council","PCC","Children's and Education Services","Asylum seekers","Children's Services and Education","Third Party Payments","Other establishments","12/01/21","6405612","-106.99","VENDOR","FUSION FOSTERING LIMITED","140473"
"Portsmouth City Council","PCC","Cultural and Related Services","Open Spaces","Culture, Leisure & Regulatory Services","Premises-Related Expenditure","Water Services","06/01/21","6403992","1896","COMPANY","REDS BUILDERS LTD","108228"
"Portsmouth City Council","PCC","Cultural and Related Services","Open Spaces","Culture, Leisure & Regulatory Services","Premises-Related Expenditure","Grounds maintenance costs","13/01/21","6406265","1750","COMPANY","REDS BUILDERS LTD","108228"
"Portsmouth City Council","PCC","Cultural and Related Services","Allocation of Management & Admin","Corporate Services","Supplies and Services","Printing, stationery and general office expenses","11/01/21","6404495","3227.43","VENDOR","HOLBROOKS PRINTERS LTD","100893"
"Portsmouth City Council","PCC","Housing Revenue Account","Special Services","Housing, Neighbourhood and Building Services","Employees","Direct employee expenses","11/01/21","6404536","3898.8","VENDOR","THE PORTSMOUTH SITTING SERVICE AND COMMUNITY CARE SERVICES LTD T/A ASSURED CARE","100201"
"Portsmouth City Council","PCC","Adult Social Care","Mental Health Support Older People (65 - 74)","Adult Services","Third Party Payments","Other establishments","28/01/21","6411462","139.2","VENDOR","ADMIRAL CARE LTD","138025"
"Portsmouth City Council","PCC","Adult Social Care","Mental Health Support Older People (65 - 74)","Adult Services","Third Party Payments","Other establishments","28/01/21","6411462","139.2","VENDOR","ADMIRAL CARE LTD","138025"
"Portsmouth City Council","PCC","Adult Social Care","Mental Health Support Older People (65 - 74)","Adult Services","Third Party Payments","Other establishments","28/01/21","6411462","730.8","VENDOR","ADMIRAL CARE LTD","138025"
"Portsmouth City Council","PCC","Adult Social Care","Mental Health Support Older People (65 - 74)","Adult Services","Third Party Payments","Other establishments","28/01/21","6411462","730.8","VENDOR","ADMIRAL CARE LTD","138025"
"Portsmouth City Council","PCC","Adult Social Care","Social Care Activities","Adult Services","Third Party Payments","Other establishments","28/01/21","6411462","274.05","VENDOR","ADMIRAL CARE LTD","138025"
"Portsmouth City Council","PCC","Adult Social Care","Social Care Activities","Adult Services","Third Party Payments","Other establishments","28/01/21","6411462","274.05","VENDOR","ADMIRAL CARE LTD","138025"
"Portsmouth City Council","PCC","Adult Social Care","Physical Support Adults (18 - 64)","Adult Services","Third Party Payments","Other establishments","28/01/21","6411462","217.5","VENDOR","ADMIRAL CARE LTD","138025"
"Portsmouth City Council","PCC","Adult Social Care","Physical Support Adults (18 - 64)","Adult Services","Third Party Payments","Other establishments","28/01/21","6411462","217.5","VENDOR","ADMIRAL CARE LTD","138025"
"Portsmouth City Council","PCC","Adult Social Care","Physical Support Older People (85+)","Adult Services","Third Party Payments","Other establishments","28/01/21","6411462","1774.8","VENDOR","ADMIRAL CARE LTD","138025"
"Portsmouth City Council","PCC","Adult Social Care","Physical Support Older People (85+)","Adult Services","Third Party Payments","Other establishments","28/01/21","6411462","147.9","VENDOR","ADMIRAL CARE LTD","138025"
"Portsmouth City Council","PCC","Adult Social Care","Physical Support Older People (85+)","Adult Services","Third Party Payments","Other establishments","28/01/21","6411462","147.9","VENDOR","ADMIRAL CARE LTD","138025"
"Portsmouth City Council","PCC","Adult Social Care","Physical Support Older People (85+)","Adult Services","Third Party Payments","Other establishments","28/01/21","6411462","761.25","VENDOR","ADMIRAL CARE LTD","138025"
"Portsmouth City Council","PCC","Adult Social Care","Physical Support Older People (85+)","Adult Services","Third Party Payments","Other establishments","28/01/21","6411462","243.6","VENDOR","ADMIRAL CARE LTD","138025"
"Portsmouth City Council","PCC","Adult Social Care","Physical Support Older People (85+)","Adult Services","Third Party Payments","Other establishments","28/01/21","6411462","730.8","VENDOR","ADMIRAL CARE LTD","138025"
"Portsmouth City Council","PCC","Adult Social Care","Physical Support Older People (85+)","Adult Services","Third Party Payments","Other establishments","28/01/21","6411462","730.8","VENDOR","ADMIRAL CARE LTD","138025"
"Portsmouth City Council","PCC","Adult Social Care","Physical Support Older People (85+)","Adult Services","Third Party Payments","Other establishments","28/01/21","6411462","278.4","VENDOR","ADMIRAL CARE LTD","138025"
"Portsmouth City Council","PCC","Adult Social Care","Physical Support Older People (85+)","Adult Services","Third Party Payments","Other establishments","28/01/21","6411462","217.5","VENDOR","ADMIRAL CARE LTD","138025"
"Portsmouth City Council","PCC","Adult Social Care","Physical Support Older People (85+)","Adult Services","Third Party Payments","Other establishments","28/01/21","6411462","104.4","VENDOR","ADMIRAL CARE LTD","138025"
"Portsmouth City Council","PCC","Adult Social Care","Physical Support Older People (85+)","Adult Services","Third Party Payments","Other establishments","28/01/21","6411462","104.4","VENDOR","ADMIRAL CARE LTD","138025"
"Portsmouth City Council","PCC","Adult Social Care","Physical Support Older People (85+)","Adult Services","Third Party Payments","Other establishments","28/01/21","6411462","365.4","VENDOR","ADMIRAL CARE LTD","138025"
"Portsmouth City Council","PCC","Adult Social Care","Physical Support Older People (85+)","Adult Services","Third Party Payments","Other establishments","28/01/21","6411462","565.5","VENDOR","ADMIRAL CARE LTD","138025"
"Portsmouth City Council","PCC","Adult Social Care","Physical Support Older People (85+)","Adult Services","Third Party Payments","Other establishments","28/01/21","6411462","682.95","VENDOR","ADMIRAL CARE LTD","138025"
"Portsmouth City Council","PCC","Adult Social Care","Physical Support Older People (85+)","Adult Services","Third Party Payments","Other establishments","28/01/21","6411462","722.1","VENDOR","ADMIRAL CARE LTD","138025"
"Portsmouth City Council","PCC","Adult Social Care","Physical Support Older People (85+)","Adult Services","Third Party Payments","Other establishments","28/01/21","6411462","974.4","VENDOR","ADMIRAL CARE LTD","138025"
"Portsmouth City Council","PCC","Adult Social Care","Physical Support Older People (85+)","Adult Services","Third Party Payments","Other establishments","28/01/21","6411462","974.4","VENDOR","ADMIRAL CARE LTD","138025"
"Portsmouth City Council","PCC","Adult Social Care","Physical Support Older People (85+)","Adult Services","Third Party Payments","Other establishments","28/01/21","6411462","1218","VENDOR","ADMIRAL CARE LTD","138025"
"Portsmouth City Council","PCC","Adult Social Care","Physical Support Older People (85+)","Adult Services","Third Party Payments","Other establishments","28/01/21","6411462","1218","VENDOR","ADMIRAL CARE LTD","138025"
"Portsmouth City Council","PCC","Adult Social Care","Physical Support Older People (85+)","Adult Services","Third Party Payments","Other establishments","28/01/21","6411462","609","VENDOR","ADMIRAL CARE LTD","138025"
"Portsmouth City Council","PCC","Adult Social Care","Physical Support Older People (85+)","Adult Services","Third Party Payments","Other establishments","28/01/21","6411462","609","VENDOR","ADMIRAL CARE LTD","138025"
"Portsmouth City Council","PCC","Adult Social Care","Physical Support Older People (85+)","Adult Services","Third Party Payments","Other establishments","28/01/21","6411462","487.2","VENDOR","ADMIRAL CARE LTD","138025"
"Portsmouth City Council","PCC","Adult Social Care","Physical Support Older People (85+)","Adult Services","Third Party Payments","Other establishments","28/01/21","6411462","852.6","VENDOR","ADMIRAL CARE LTD","138025"
"Portsmouth City Council","PCC","Adult Social Care","Physical Support Older People (85+)","Adult Services","Third Party Payments","Other establishments","28/01/21","6411462","852.6","VENDOR","ADMIRAL CARE LTD","138025"
"Portsmouth City Council","PCC","Adult Social Care","Social Care Activities","Adult Services","Third Party Payments","Other establishments","15/01/21","6406533","243.6","VENDOR","ADMIRAL CARE LTD","138025"
"Portsmouth City Council","PCC","Adult Social Care","Social Care Activities","Adult Services","Third Party Payments","Other establishments","15/01/21","6406533","243.6","VENDOR","ADMIRAL CARE LTD","138025"
"Portsmouth City Council","PCC","Adult Social Care","Social Care Activities","Adult Services","Third Party Payments","Other establishments","15/01/21","6406533","852.6","VENDOR","ADMIRAL CARE LTD","138025"
"Portsmouth City Council","PCC","Adult Social Care","Social Care Activities","Adult Services","Third Party Payments","Other establishments","15/01/21","6406533","487.2","VENDOR","ADMIRAL CARE LTD","138025"
"Portsmouth City Council","PCC","Adult Social Care","Social Care Activities","Adult Services","Third Party Payments","Other establishments","15/01/21","6406533","104.4","VENDOR","ADMIRAL CARE LTD","138025"
"Portsmouth City Council","PCC","Adult Social Care","Social Care Activities","Adult Services","Third Party Payments","Other establishments","15/01/21","6406533","52.2","VENDOR","ADMIRAL CARE LTD","138025"
"Portsmouth City Council","PCC","Adult Social Care","Social Care Activities","Adult Services","Third Party Payments","Other establishments","15/01/21","6406533","761.25","VENDOR","ADMIRAL CARE LTD","138025"
"Portsmouth City Council","PCC","Adult Social Care","Social Care Activities","Adult Services","Third Party Payments","Other establishments","15/01/21","6406533","761.25","VENDOR","ADMIRAL CARE LTD","138025"
"Portsmouth City Council","PCC","Highways and Transport Services","Transport Planning, Policy and Strategy","Regeneration","Supplies and Services","Services","15/01/21","6407968","2240","VENDOR","THE BLUE LAMP TRUST","136161"
"Portsmouth City Council","PCC","Cultural and Related Services","Open Spaces","Culture, Leisure & Regulatory Services","Premises-Related Expenditure","Grounds maintenance costs","04/01/21","6403263","3923.05","COMPANY","BARHILL PLANT LTD","100355"
"Portsmouth City Council","PCC","Cultural and Related Services","Open Spaces","Culture, Leisure & Regulatory Services","Third Party Payments","Private contractors","04/01/21","6403263","55","COMPANY","BARHILL PLANT LTD","100355"
"Portsmouth City Council","PCC","Cultural and Related Services","Open Spaces","Culture, Leisure & Regulatory Services","Third Party Payments","Private contractors","04/01/21","6403263","86.95","COMPANY","BARHILL PLANT LTD","100355"
"Portsmouth City Council","PCC","Cultural and Related Services","Open Spaces","Culture, Leisure & Regulatory Services","Third Party Payments","Private contractors","04/01/21","6403263","55","COMPANY","BARHILL PLANT LTD","100355"
"Portsmouth City Council","PCC","Cultural and Related Services","Open Spaces","Culture, Leisure & Regulatory Services","Third Party Payments","Private contractors","04/01/21","6403263","45","COMPANY","BARHILL PLANT LTD","100355"
"Portsmouth City Council","PCC","Cultural and Related Services","Open Spaces","Culture, Leisure & Regulatory Services","Third Party Payments","Private contractors","04/01/21","6403263","35","COMPANY","BARHILL PLANT LTD","100355"
"Portsmouth City Council","PCC","Cultural and Related Services","Open Spaces","Culture, Leisure & Regulatory Services","Third Party Payments","Private contractors","04/01/21","6403263","35","COMPANY","BARHILL PLANT LTD","100355"
"Portsmouth City Council","PCC","Cultural and Related Services","Open Spaces","Culture, Leisure & Regulatory Services","Third Party Payments","Private contractors","04/01/21","6403263","30","COMPANY","BARHILL PLANT LTD","100355"
"Portsmouth City Council","PCC","Cultural and Related Services","Open Spaces","Culture, Leisure & Regulatory Services","Third Party Payments","Private contractors","04/01/21","6403263","30","COMPANY","BARHILL PLANT LTD","100355"
"Portsmouth City Council","PCC","Cultural and Related Services","Open Spaces","Culture, Leisure & Regulatory Services","Third Party Payments","Private contractors","04/01/21","6403263","45","COMPANY","BARHILL PLANT LTD","100355"
"Portsmouth City Council","PCC","Cultural and Related Services","Open Spaces","Culture, Leisure & Regulatory Services","Premises-Related Expenditure","Repairs, alterations and maintenance of buildings","04/01/21","6403263","1397.56","COMPANY","BARHILL PLANT LTD","100355"
"Portsmouth City Council","PCC","Cultural and Related Services","Open Spaces","Culture, Leisure & Regulatory Services","Third Party Payments","Private contractors","04/01/21","6403263","2645.95","COMPANY","BARHILL PLANT LTD","100355"
"Portsmouth City Council","PCC","Environmental and Regulatory Services","Flood Defence and Land Drainage","Regeneration","Third Party Payments","Private contractors","04/01/21","6403263","480","COMPANY","BARHILL PLANT LTD","100355"
"Portsmouth City Council","PCC","Cultural and Related Services","Recreation and Sport","Culture, Leisure & Regulatory Services","Premises-Related Expenditure","Grounds maintenance costs","11/01/21","6404381","760","COMPANY","BARHILL PLANT LTD","100355"
"Portsmouth City Council","PCC","Cultural and Related Services","Open Spaces","Culture, Leisure & Regulatory Services","Premises-Related Expenditure","Grounds maintenance costs","11/01/21","6404381","4732.35","COMPANY","BARHILL PLANT LTD","100355"
"Portsmouth City Council","PCC","Highways and Transport Services","Airports, Harbours and Toll Facilities","Portsmouth International Port","Premises-Related Expenditure","Repairs, alterations and maintenance of buildings","07/01/21","6404129","1170","VENDOR","AMARI METALS LIMITED","125138"
"Portsmouth City Council","PCC","Highways and Transport Services","Traffic Management and Road Safety","Regeneration","Supplies and Services","Clothes, uniform and laundry","11/01/21","6404496","581.7","VENDOR","KELTIC","116675"
"Portsmouth City Council","PCC","Highways and Transport Services","Traffic Management and Road Safety","Regeneration","Supplies and Services","Printing, stationery and general office expenses","11/01/21","6404496","9.95","VENDOR","KELTIC","116675"
"Portsmouth City Council","PCC","Support Service / Transparency Costs Unallocated","Information Services","Corporate Services","Supplies and Services","Services","27/01/21","6411278","7770","VENDOR","ORCHID IT SOLUTIONS LTD","147142"
"Portsmouth City Council","PCC","Other","Suspense and Capital Schemes","Capital - Housing General Fund","Capital Charges","Capital Expenditure (WIP)","22/01/21","6410542","16714.61","COMPANY","HAMPSHIRE PARTITIONING CONTRACTS LTD","104637"
"Portsmouth City Council","PCC","Costs below Net Cost of Services","Trading","Finance & Resources","Supplies and Services","Miscellaneous expenses","08/01/21","6404342","5000","VENDOR","SIMPSON MILLAR LLP","111564"
"Portsmouth City Council","PCC","Adult Social Care","Commissioning & service delivery","Adult Services","Supplies and Services","Communications and computing","26/01/21","6410872","52000","VENDOR","OXFORD COMPUTER CONSULTANTS LIMITED","127286"
"Portsmouth City Council","PCC","Adult Social Care","Commissioning & service delivery","Adult Services","Supplies and Services","Communications and computing","26/01/21","6410872","51300","VENDOR","OXFORD COMPUTER CONSULTANTS LIMITED","127286"
"Portsmouth City Council","PCC","Adult Social Care","Social Care Activities","Adult Services","Third Party Payments","Other establishments","12/01/21","6405531","3321.65","VENDOR","BETHESDA HEALTHCARE","143824"
"Portsmouth City Council","PCC","Adult Social Care","Social Care Activities","Adult Services","Third Party Payments","Other establishments","12/01/21","6405531","2612.34","VENDOR","BETHESDA HEALTHCARE","143824"
"Portsmouth City Council","PCC","Adult Social Care","Social Care Activities","Adult Services","Third Party Payments","Other establishments","12/01/21","6405531","3520.98","VENDOR","BETHESDA HEALTHCARE","143824"
"Portsmouth City Council","PCC","Adult Social Care","Physical Support Adults (18 - 64)","Adult Services","Third Party Payments","Other establishments","12/01/21","6405531","2435.98","VENDOR","BETHESDA HEALTHCARE","143824"
"Portsmouth City Council","PCC","Adult Social Care","Physical Support Adults (18 - 64)","Adult Services","Third Party Payments","Other establishments","12/01/21","6405531","-1085.05","VENDOR","BETHESDA HEALTHCARE","143824"
"Portsmouth City Council","PCC","Adult Social Care","Physical Support Adults (18 - 64)","Adult Services","Third Party Payments","Other establishments","12/01/21","6405531","-942.9","VENDOR","BETHESDA HEALTHCARE","143824"
"Portsmouth City Council","PCC","Adult Social Care","Physical Support Adults (18 - 64)","Adult Services","Third Party Payments","Other establishments","12/01/21","6405531","-408.59","VENDOR","BETHESDA HEALTHCARE","143824"
"Portsmouth City Council","PCC","Adult Social Care","Physical Support Older People (85+)","Adult Services","Third Party Payments","Other establishments","12/01/21","6405531","1160.04","VENDOR","BETHESDA HEALTHCARE","143824"
"Portsmouth City Council","PCC","Adult Social Care","Physical Support Older People (85+)","Adult Services","Third Party Payments","Other establishments","12/01/21","6405531","2568.66","VENDOR","BETHESDA HEALTHCARE","143824"
"Portsmouth City Council","PCC","Adult Social Care","Physical Support Older People (85+)","Adult Services","Third Party Payments","Other establishments","12/01/21","6405531","2435.67","VENDOR","BETHESDA HEALTHCARE","143824"
"Portsmouth City Council","PCC","Adult Social Care","Support with Memory and Cognition Older People (85+)","Adult Services","Third Party Payments","Other establishments","12/01/21","6405531","1948.66","VENDOR","BETHESDA HEALTHCARE","143824"
"Portsmouth City Council","PCC","Adult Social Care","Support with Memory and Cognition Older People (85+)","Adult Services","Third Party Payments","Other establishments","12/01/21","6405531","3117.67","VENDOR","BETHESDA HEALTHCARE","143824"
"Portsmouth City Council","PCC","Adult Social Care","Support with Memory and Cognition Older People (85+)","Adult Services","Third Party Payments","Other establishments","12/01/21","6405531","3321.65","VENDOR","BETHESDA HEALTHCARE","143824"
"Portsmouth City Council","PCC","Adult Social Care","Support with Memory and Cognition Older People (85+)","Adult Services","Third Party Payments","Other establishments","12/01/21","6405531","2878.66","VENDOR","BETHESDA HEALTHCARE","143824"
"Portsmouth City Council","PCC","Adult Social Care","Support with Memory and Cognition Older People (85+)","Adult Services","Third Party Payments","Other establishments","12/01/21","6405531","3321.65","VENDOR","BETHESDA HEALTHCARE","143824"
"Portsmouth City Council","PCC","Adult Social Care","Support with Memory and Cognition Older People (85+)","Adult Services","Third Party Payments","Other establishments","12/01/21","6405531","110.72","VENDOR","BETHESDA HEALTHCARE","143824"
"Portsmouth City Council","PCC","Adult Social Care","Support with Memory and Cognition Older People (85+)","Adult Services","Third Party Payments","Other establishments","12/01/21","6405531","3432.32","VENDOR","BETHESDA HEALTHCARE","143824"
"Portsmouth City Council","PCC","Adult Social Care","Support with Memory and Cognition Older People (85+)","Adult Services","Third Party Payments","Other establishments","12/01/21","6405531","3542.99","VENDOR","BETHESDA HEALTHCARE","143824"
"Portsmouth City Council","PCC","Adult Social Care","Support with Memory and Cognition Older People (85+)","Adult Services","Third Party Payments","Other establishments","12/01/21","6405531","1328.04","VENDOR","BETHESDA HEALTHCARE","143824"
"Portsmouth City Council","PCC","Adult Social Care","Support with Memory and Cognition Older People (85+)","Adult Services","Third Party Payments","Other establishments","12/01/21","6405531","214.4","VENDOR","BETHESDA HEALTHCARE","143824"
"Portsmouth City Council","PCC","Adult Social Care","Support with Memory and Cognition Older People (85+)","Adult Services","Third Party Payments","Other establishments","12/01/21","6405531","129.64","VENDOR","BETHESDA HEALTHCARE","143824"
"Portsmouth City Council","PCC","Adult Social Care","Support with Memory and Cognition Older People (85+)","Adult Services","Third Party Payments","Other establishments","12/01/21","6405531","129.64","VENDOR","BETHESDA HEALTHCARE","143824"
"Portsmouth City Council","PCC","Adult Social Care","Support with Memory and Cognition Older People (85+)","Adult Services","Third Party Payments","Other establishments","12/01/21","6405533","2195.11","VENDOR","AKM CARE","147548"
"Portsmouth City Council","PCC","Adult Social Care","Support with Memory and Cognition Older People (85+)","Adult Services","Third Party Payments","Other establishments","12/01/21","6405533","2338.64","VENDOR","AKM CARE","147548"
"Portsmouth City Council","PCC","Adult Social Care","Support with Memory and Cognition Older People (85+)","Adult Services","Third Party Payments","Other establishments","12/01/21","6405533","2338.64","VENDOR","AKM CARE","147548"
"Portsmouth City Council","PCC","Adult Social Care","Support with Memory and Cognition Older People (85+)","Adult Services","Third Party Payments","Other establishments","12/01/21","6405533","3410","VENDOR","AKM CARE","147548"
"Portsmouth City Council","PCC","Adult Social Care","Support with Memory and Cognition Older People (85+)","Adult Services","Third Party Payments","Other establishments","12/01/21","6405533","2338.64","VENDOR","AKM CARE","147548"
"Portsmouth City Council","PCC","Adult Social Care","Support with Memory and Cognition Older People (85+)","Adult Services","Third Party Payments","Other establishments","12/01/21","6405533","2338.64","VENDOR","AKM CARE","147548"
"Portsmouth City Council","PCC","Adult Social Care","Support with Memory and Cognition Older People (85+)","Adult Services","Third Party Payments","Other establishments","12/01/21","6405533","2338.64","VENDOR","AKM CARE","147548"
"Portsmouth City Council","PCC","Adult Social Care","Support with Memory and Cognition Older People (85+)","Adult Services","Third Party Payments","Other establishments","12/01/21","6405533","2338.64","VENDOR","AKM CARE","147548"
"Portsmouth City Council","PCC","Adult Social Care","Support with Memory and Cognition Older People (85+)","Adult Services","Third Party Payments","Other establishments","12/01/21","6405533","3410","VENDOR","AKM CARE","147548"
"Portsmouth City Council","PCC","Adult Social Care","Support with Memory and Cognition Older People (85+)","Adult Services","Third Party Payments","Other establishments","12/01/21","6405533","2338.64","VENDOR","AKM CARE","147548"
"Portsmouth City Council","PCC","Adult Social Care","Support with Memory and Cognition Older People (85+)","Adult Services","Third Party Payments","Other establishments","12/01/21","6405533","2338.64","VENDOR","AKM CARE","147548"
"Portsmouth City Council","PCC","Adult Social Care","Support with Memory and Cognition Older People (85+)","Adult Services","Third Party Payments","Other establishments","12/01/21","6405533","2338.64","VENDOR","AKM CARE","147548"
"Portsmouth City Council","PCC","Adult Social Care","Support with Memory and Cognition Older People (85+)","Adult Services","Third Party Payments","Other establishments","12/01/21","6405533","2338.64","VENDOR","AKM CARE","147548"
"Portsmouth City Council","PCC","Adult Social Care","Mental Health Support Adults (18 - 64)","Adult Services","Third Party Payments","Other establishments","12/01/21","6405533","2289.35","VENDOR","AKM CARE","147548"
"Portsmouth City Council","PCC","Adult Social Care","Mental Health Support Adults (18 - 64)","Adult Services","Third Party Payments","Other establishments","12/01/21","6405533","2289.35","VENDOR","AKM CARE","147548"
"Portsmouth City Council","PCC","Adult Social Care","Social Care Activities","Adult Services","Third Party Payments","Other establishments","18/01/21","6408026","4179.52","VENDOR","AKM CARE","147548"
"Portsmouth City Council","PCC","Adult Social Care","Commissioning & service delivery","Adult Services","Supplies and Services","Communications and computing","29/01/21","6411742","669.84","COMPANY","BRITISH TELECOMMUNICATIONS PLC","100132"
"Portsmouth City Council","PCC","Other","Suspense and Capital Schemes","Capital - Housing RA","Capital Charges","Capital Expenditure (WIP)","12/01/21","6405636","200","VENDOR","MCANDREW MARTIN LIMITED","100997"
"Portsmouth City Council","PCC","Other","Suspense and Capital Schemes","Capital - Housing RA","Capital Charges","Capital Expenditure (WIP)","29/01/21","6411888","200","VENDOR","MCANDREW MARTIN LIMITED","100997"
"Portsmouth City Council","PCC","Other","Suspense and Capital Schemes","Capital - Housing RA","Capital Charges","Capital Expenditure (WIP)","29/01/21","6411888","200","VENDOR","MCANDREW MARTIN LIMITED","100997"
"Portsmouth City Council","PCC","Other","Suspense and Capital Schemes","Capital - Housing RA","Capital Charges","Capital Expenditure (WIP)","29/01/21","6411888","200","VENDOR","MCANDREW MARTIN LIMITED","100997"
"Portsmouth City Council","PCC","Other","Suspense and Capital Schemes","Capital - Housing RA","Capital Charges","Capital Expenditure (WIP)","12/01/21","6405636","200","VENDOR","MCANDREW MARTIN LIMITED","100997"
"Portsmouth City Council","PCC","Other","Suspense and Capital Schemes","Capital - Housing RA","Capital Charges","Capital Expenditure (WIP)","12/01/21","6405636","200","VENDOR","MCANDREW MARTIN LIMITED","100997"
"Portsmouth City Council","PCC","Other","Suspense and Capital Schemes","Capital - Housing RA","Capital Charges","Capital Expenditure (WIP)","12/01/21","6405636","200","VENDOR","MCANDREW MARTIN LIMITED","100997"
"Portsmouth City Council","PCC","Other","Suspense and Capital Schemes","Capital - Housing RA","Capital Charges","Capital Expenditure (WIP)","12/01/21","6405636","200","VENDOR","MCANDREW MARTIN LIMITED","100997"
"Portsmouth City Council","PCC","Other","Suspense and Capital Schemes","Capital - Housing RA","Capital Charges","Capital Expenditure (WIP)","12/01/21","6405636","200","VENDOR","MCANDREW MARTIN LIMITED","100997"
"Portsmouth City Council","PCC","Environmental and Regulatory Services","Agricultural and Fisheries Services","Portsmouth International Port","Third Party Payments","Private contractors","28/01/21","6411650","2949.8","VENDOR","KEN BROWN BOATS LTD","100926"
"Portsmouth City Council","PCC","Environmental and Regulatory Services","Agricultural and Fisheries Services","Portsmouth International Port","Third Party Payments","Private contractors","28/01/21","6411650","244.19","VENDOR","KEN BROWN BOATS LTD","100926"
"Portsmouth City Council","PCC","Costs below Net Cost of Services","Trading","Regeneration","Premises-Related Expenditure","Rents","12/01/21","6405696","15291","VENDOR","STRETTONS","146409"
"Portsmouth City Council","PCC","Costs below Net Cost of Services","Trading","Regeneration","Premises-Related Expenditure","Rents","12/01/21","6405696","7645.5","VENDOR","STRETTONS","146409"
"Portsmouth City Council","PCC","Other","Suspense and Capital Schemes","Capital - Housing General Fund","Capital Charges","Capital Expenditure (WIP)","25/01/21","6410707","21850","VENDOR","HOARE LEA LLP","106505"
"Portsmouth City Council","PCC","Highways and Transport Services","Airports, Harbours and Toll Facilities","Portsmouth International Port","Supplies and Services","Equipment, furniture and materials","21/01/21","6409023","6090.78","VENDOR","CAPCOM LAND SEA & AIR COMMUNICATIONS LIMITED","102054"
"Portsmouth City Council","PCC","Highways and Transport Services","Airports, Harbours and Toll Facilities","Portsmouth International Port","Premises-Related Expenditure","Repairs, alterations and maintenance of buildings","28/01/21","6411665","485","COMPANY","ML (UK) LTD","101018"
"Portsmouth City Council","PCC","Support Service / Transparency Costs Unallocated","Procurement","Finance & Resources","Third Party Payments","Private contractors","15/01/21","6407968","-672","VENDOR","THE BLUE LAMP TRUST","136161"
"Portsmouth City Council","PCC","Children's and Education Services","Children Looked After","Children's Services and Education","Third Party Payments","Other establishments","26/01/21","6410904","5980","VENDOR","THE BEEHIVE ENTERPRISE","147200"
"Portsmouth City Council","PCC","Highways and Transport Services","Traffic Management and Road Safety","Regeneration","Third Party Payments","Private contractors","15/01/21","6407952","3075","VENDOR","STANTEC UK LTD","146701"
"Portsmouth City Council","PCC","Highways and Transport Services","Traffic Management and Road Safety","Regeneration","Third Party Payments","Private contractors","15/01/21","6407952","3075","VENDOR","STANTEC UK LTD","146701"
"Portsmouth City Council","PCC","Central Services","Local Tax Collection","Finance & Resources","Supplies and Services","Communications and computing","18/01/21","6408211","1893.64","VENDOR","ORACLE CORPORATION UK LTD","100470"
"Portsmouth City Council","PCC","Housing Services","Housing Benefits Administration","Finance & Resources","Supplies and Services","Communications and computing","18/01/21","6408211","1893.63","VENDOR","ORACLE CORPORATION UK LTD","100470"
"Portsmouth City Council","PCC","Housing Revenue Account","Supervision and Management","Housing, Neighbourhood and Building Services","Supplies and Services","Communications and computing","18/01/21","6408211","3787.27","VENDOR","ORACLE CORPORATION UK LTD","100470"
"Portsmouth City Council","PCC","Adult Social Care","Physical Support Older People (85+)","Adult Services","Third Party Payments","Other establishments","15/01/21","6406533","510.24","VENDOR","ADMIRAL CARE LTD","138025"
"Portsmouth City Council","PCC","Cultural and Related Services","Recreation and Sport","Culture, Leisure & Regulatory Services","Supplies and Services","Catering","07/01/21","6404139","217.57","VENDOR","BFS GROUP LTD T/A BIDFOOD","100106"
"Portsmouth City Council","PCC","Adult Social Care","Social Care Activities","Adult Services","Supplies and Services","Communications and computing","11/01/21","6404384","39.47","COMPANY","BRITISH TELECOMMUNICATIONS PLC","100132"
"Portsmouth City Council","PCC","Adult Social Care","Social Care Activities","Adult Services","Third Party Payments","Other establishments","20/01/21","6408466","6090","VENDOR","BROOKVALE HEALTHCARE","101126"
"Portsmouth City Council","PCC","Adult Social Care","Social Care Activities","Adult Services","Third Party Payments","Other establishments","20/01/21","6408466","2604","VENDOR","BROOKVALE HEALTHCARE","101126"
"Portsmouth City Council","PCC","Adult Social Care","Social Care Activities","Adult Services","Third Party Payments","Other establishments","20/01/21","6408466","10416","VENDOR","BROOKVALE HEALTHCARE","101126"
"Portsmouth City Council","PCC","Adult Social Care","Social Care Activities","Adult Services","Third Party Payments","Other establishments","20/01/21","6408466","1116","VENDOR","BROOKVALE HEALTHCARE","101126"
"Portsmouth City Council","PCC","Adult Social Care","Physical Support Adults (18 - 64)","Adult Services","Third Party Payments","Other establishments","20/01/21","6408466","8400","VENDOR","BROOKVALE HEALTHCARE","101126"
"Portsmouth City Council","PCC","Adult Social Care","Social Care Activities","Adult Services","Third Party Payments","Other establishments","20/01/21","6408466","420","VENDOR","BROOKVALE HEALTHCARE","101126"
"Portsmouth City Council","PCC","Adult Social Care","Social Care Activities","Adult Services","Third Party Payments","Other establishments","20/01/21","6408466","2604","VENDOR","BROOKVALE HEALTHCARE","101126"
"Portsmouth City Council","PCC","Adult Social Care","Social Care Activities","Adult Services","Third Party Payments","Other establishments","20/01/21","6408466","2976","VENDOR","BROOKVALE HEALTHCARE","101126"
"Portsmouth City Council","PCC","Adult Social Care","Social Care Activities","Adult Services","Third Party Payments","Other establishments","20/01/21","6408466","10416","VENDOR","BROOKVALE HEALTHCARE","101126"
"Portsmouth City Council","PCC","Adult Social Care","Social Care Activities","Adult Services","Third Party Payments","Other establishments","20/01/21","6408466","2520","VENDOR","BROOKVALE HEALTHCARE","101126"
"Portsmouth City Council","PCC","Adult Social Care","Social Care Activities","Adult Services","Third Party Payments","Other establishments","12/01/21","6405540","341.57","VENDOR","BROOKVALE HEALTHCARE","101126"
"Portsmouth City Council","PCC","Adult Social Care","Social Care Activities","Adult Services","Third Party Payments","Other establishments","12/01/21","6405540","761.95","VENDOR","BROOKVALE HEALTHCARE","101126"
"Portsmouth City Council","PCC","Cultural and Related Services","Recreation and Sport","Culture, Leisure & Regulatory Services","Supplies and Services","Catering","14/01/21","6406416","64.04","VENDOR","BFS GROUP LTD T/A BIDFOOD","100106"
"Portsmouth City Council","PCC","Adult Social Care","Physical Support Older People (85+)","Adult Services","Third Party Payments","Other establishments","15/01/21","6406533","255.12","VENDOR","ADMIRAL CARE LTD","138025"
"Portsmouth City Council","PCC","Adult Social Care","Mental Health Support Older People (65 - 74)","Adult Services","Third Party Payments","Other establishments","15/01/21","6406533","556.8","VENDOR","ADMIRAL CARE LTD","138025"
"Portsmouth City Council","PCC","Adult Social Care","Mental Health Support Older People (65 - 74)","Adult Services","Third Party Payments","Other establishments","15/01/21","6406533","261","VENDOR","ADMIRAL CARE LTD","138025"
"Portsmouth City Council","PCC","Adult Social Care","Mental Health Support Older People (65 - 74)","Adult Services","Third Party Payments","Other establishments","15/01/21","6406533","69.6","VENDOR","ADMIRAL CARE LTD","138025"
"Portsmouth City Council","PCC","Adult Social Care","Mental Health Support Older People (65 - 74)","Adult Services","Third Party Payments","Other establishments","15/01/21","6406533","69.6","VENDOR","ADMIRAL CARE LTD","138025"
"Portsmouth City Council","PCC","Children's and Education Services","Other Children and Family Services","Children's Services and Education","Supplies and Services","Services","19/01/21","6408251","2403.7","VENDOR","AHIMSA (SAFER FAMILIES) LIMITED","140481"
"Portsmouth City Council","PCC","Other","Suspense and Capital Schemes","Capital - Housing RA","Capital Charges","Capital Expenditure (WIP)","27/01/21","6411315","5500","VENDOR","RIDGE AND PARTNERS LLP","139659"
"Portsmouth City Council","PCC","Other","Suspense and Capital Schemes","Capital - Housing RA","Capital Charges","Capital Expenditure (WIP)","27/01/21","6411315","1000","VENDOR","RIDGE AND PARTNERS LLP","139659"
"Portsmouth City Council","PCC","Adult Social Care","Social Care Activities","Adult Services","Third Party Payments","Other establishments","12/01/21","6405540","7156.97","VENDOR","BROOKVALE HEALTHCARE","101126"
"Portsmouth City Council","PCC","Adult Social Care","Social Care Activities","Adult Services","Third Party Payments","Other establishments","12/01/21","6405540","78.82","VENDOR","BROOKVALE HEALTHCARE","101126"
"Portsmouth City Council","PCC","Adult Social Care","Social Care Activities","Adult Services","Third Party Payments","Other establishments","12/01/21","6405540","778.47","VENDOR","BROOKVALE HEALTHCARE","101126"
"Portsmouth City Council","PCC","Adult Social Care","Social Care Activities","Adult Services","Third Party Payments","Other establishments","12/01/21","6405540","814.5","VENDOR","BROOKVALE HEALTHCARE","101126"
"Portsmouth City Council","PCC","Adult Social Care","Social Care Activities","Adult Services","Third Party Payments","Other establishments","12/01/21","6405540","8044.19","VENDOR","BROOKVALE HEALTHCARE","101126"
"Portsmouth City Council","PCC","Adult Social Care","Social Care Activities","Adult Services","Third Party Payments","Other establishments","12/01/21","6405540","9814.29","VENDOR","BROOKVALE HEALTHCARE","101126"
"Portsmouth City Council","PCC","Adult Social Care","Social Care Activities","Adult Services","Third Party Payments","Other establishments","12/01/21","6405540","-814.5","VENDOR","BROOKVALE HEALTHCARE","101126"
"Portsmouth City Council","PCC","Adult Social Care","Social Care Activities","Adult Services","Third Party Payments","Other establishments","12/01/21","6405540","-761.95","VENDOR","BROOKVALE HEALTHCARE","101126"
"Portsmouth City Council","PCC","Adult Social Care","Physical Support Adults (18 - 64)","Adult Services","Third Party Payments","Other establishments","12/01/21","6405540","7307.32","VENDOR","BROOKVALE HEALTHCARE","101126"
"Portsmouth City Council","PCC","Adult Social Care","Physical Support Adults (18 - 64)","Adult Services","Third Party Payments","Other establishments","12/01/21","6405540","-371.28","VENDOR","BROOKVALE HEALTHCARE","101126"
"Portsmouth City Council","PCC","Adult Social Care","Physical Support Adults (18 - 64)","Adult Services","Third Party Payments","Other establishments","12/01/21","6405540","7085.98","VENDOR","BROOKVALE HEALTHCARE","101126"
"Portsmouth City Council","PCC","Adult Social Care","Social Care Activities","Adult Services","Third Party Payments","Other establishments","12/01/21","6405540","6979.03","VENDOR","BROOKVALE HEALTHCARE","101126"
"Portsmouth City Council","PCC","Adult Social Care","Social Care Activities","Adult Services","Third Party Payments","Other establishments","12/01/21","6405540","7412.1","VENDOR","BROOKVALE HEALTHCARE","101126"
"Portsmouth City Council","PCC","Adult Social Care","Social Care Activities","Adult Services","Third Party Payments","Other establishments","12/01/21","6405540","9029.99","VENDOR","BROOKVALE HEALTHCARE","101126"
"Portsmouth City Council","PCC","Adult Social Care","Social Care Activities","Adult Services","Third Party Payments","Other establishments","12/01/21","6405540","7118.53","VENDOR","BROOKVALE HEALTHCARE","101126"
"Portsmouth City Council","PCC","Adult Social Care","Social Care Activities","Adult Services","Third Party Payments","Other establishments","12/01/21","6405540","7971.65","VENDOR","BROOKVALE HEALTHCARE","101126"
"Portsmouth City Council","PCC","Adult Social Care","Social Care Activities","Adult Services","Third Party Payments","Other establishments","12/01/21","6405540","5846.91","VENDOR","BROOKVALE HEALTHCARE","101126"
"Portsmouth City Council","PCC","Adult Social Care","Social Care Activities","Adult Services","Third Party Payments","Other establishments","12/01/21","6405540","-2023","VENDOR","BROOKVALE HEALTHCARE","101126"
"Portsmouth City Council","PCC","Adult Social Care","Social Care Activities","Adult Services","Third Party Payments","Other establishments","12/01/21","6405540","6746.22","VENDOR","BROOKVALE HEALTHCARE","101126"
"Portsmouth City Council","PCC","Adult Social Care","Social Care Activities","Adult Services","Third Party Payments","Other establishments","12/01/21","6405540","5978.66","VENDOR","BROOKVALE HEALTHCARE","101126"
"Portsmouth City Council","PCC","Adult Social Care","Social Care Activities","Adult Services","Third Party Payments","Other establishments","12/01/21","6405540","7269.5","VENDOR","BROOKVALE HEALTHCARE","101126"
"Portsmouth City Council","PCC","Adult Social Care","Social Care Activities","Adult Services","Third Party Payments","Other establishments","12/01/21","6405540","5501.88","VENDOR","BROOKVALE HEALTHCARE","101126"
"Portsmouth City Council","PCC","Adult Social Care","Social Care Activities","Adult Services","Third Party Payments","Other establishments","12/01/21","6405540","3891.6","VENDOR","BROOKVALE HEALTHCARE","101126"
"Portsmouth City Council","PCC","Adult Social Care","Social Care Activities","Adult Services","Third Party Payments","Other establishments","12/01/21","6405540","8042.64","VENDOR","BROOKVALE HEALTHCARE","101126"
"Portsmouth City Council","PCC","Adult Social Care","Social Care Activities","Adult Services","Third Party Payments","Other establishments","12/01/21","6405540","183.92","VENDOR","BROOKVALE HEALTHCARE","101126"
"Portsmouth City Council","PCC","Adult Social Care","Social Care Activities","Adult Services","Third Party Payments","Other establishments","12/01/21","6405540","525.49","VENDOR","BROOKVALE HEALTHCARE","101126"
"Portsmouth City Council","PCC","Adult Social Care","Social Care Activities","Adult Services","Third Party Payments","Other establishments","12/01/21","6405540","814.5","VENDOR","BROOKVALE HEALTHCARE","101126"
"Portsmouth City Council","PCC","Adult Social Care","Social Care Activities","Adult Services","Third Party Payments","Other establishments","12/01/21","6405540","814.5","VENDOR","BROOKVALE HEALTHCARE","101126"
"Portsmouth City Council","PCC","Adult Social Care","Social Care Activities","Adult Services","Third Party Payments","Other establishments","12/01/21","6405540","814.5","VENDOR","BROOKVALE HEALTHCARE","101126"
"Portsmouth City Council","PCC","Adult Social Care","Social Care Activities","Adult Services","Third Party Payments","Other establishments","12/01/21","6405540","814.5","VENDOR","BROOKVALE HEALTHCARE","101126"
"Portsmouth City Council","PCC","Adult Social Care","Social Care Activities","Adult Services","Third Party Payments","Other establishments","12/01/21","6405540","814.5","VENDOR","BROOKVALE HEALTHCARE","101126"
"Portsmouth City Council","PCC","Adult Social Care","Social Care Activities","Adult Services","Third Party Payments","Other establishments","12/01/21","6405540","814.5","VENDOR","BROOKVALE HEALTHCARE","101126"
"Portsmouth City Council","PCC","Adult Social Care","Social Care Activities","Adult Services","Third Party Payments","Other establishments","12/01/21","6405540","814.5","VENDOR","BROOKVALE HEALTHCARE","101126"
"Portsmouth City Council","PCC","Adult Social Care","Social Care Activities","Adult Services","Third Party Payments","Other establishments","12/01/21","6405540","814.5","VENDOR","BROOKVALE HEALTHCARE","101126"
"Portsmouth City Council","PCC","Adult Social Care","Social Care Activities","Adult Services","Third Party Payments","Other establishments","12/01/21","6405540","814.5","VENDOR","BROOKVALE HEALTHCARE","101126"
"Portsmouth City Council","PCC","Adult Social Care","Physical Support Adults (18 - 64)","Adult Services","Third Party Payments","Other establishments","12/01/21","6405540","7453.02","VENDOR","BROOKVALE HEALTHCARE","101126"
"Portsmouth City Council","PCC","Adult Social Care","Physical Support Older People (85+)","Adult Services","Third Party Payments","Other establishments","12/01/21","6405540","2451.48","VENDOR","BROOKVALE HEALTHCARE","101126"
"Portsmouth City Council","PCC","Adult Social Care","Physical Support Older People (85+)","Adult Services","Third Party Payments","Other establishments","12/01/21","6405540","5714.4","VENDOR","BROOKVALE HEALTHCARE","101126"
"Portsmouth City Council","PCC","Adult Social Care","Physical Support Older People (85+)","Adult Services","Third Party Payments","Other establishments","12/01/21","6405540","8857.32","VENDOR","BROOKVALE HEALTHCARE","101126"
"Portsmouth City Council","PCC","Adult Social Care","Physical Support Older People (85+)","Adult Services","Third Party Payments","Other establishments","12/01/21","6405540","7593.14","VENDOR","BROOKVALE HEALTHCARE","101126"
"Portsmouth City Council","PCC","Adult Social Care","Physical Support Older People (85+)","Adult Services","Third Party Payments","Other establishments","12/01/21","6405540","1923.86","VENDOR","BROOKVALE HEALTHCARE","101126"
"Portsmouth City Council","PCC","Adult Social Care","Commissioning & service delivery","Adult Services","Employees","Indirect employee expenses","15/01/21","6406560","650","SOLETRADER","Classified as 'personal data' (under the Data Protection Act 2018)","114545"
"Portsmouth City Council","PCC","Adult Social Care","Physical Support Older People (85+)","Adult Services","Third Party Payments","Other establishments","04/01/21","6403266","165.12","VENDOR","CEDDAR HOUSE","102425"
"Portsmouth City Council","PCC","Adult Social Care","Physical Support Older People (85+)","Adult Services","Third Party Payments","Other establishments","04/01/21","6403266","330.24","VENDOR","CEDDAR HOUSE","102425"
"Portsmouth City Council","PCC","Adult Social Care","Physical Support Older People (85+)","Adult Services","Third Party Payments","Other establishments","04/01/21","6403266","41.28","VENDOR","CEDDAR HOUSE","102425"
"Portsmouth City Council","PCC","Adult Social Care","Physical Support Older People (85+)","Adult Services","Third Party Payments","Other establishments","04/01/21","6403266","165.12","VENDOR","CEDDAR HOUSE","102425"
"Portsmouth City Council","PCC","Adult Social Care","Physical Support Older People (85+)","Adult Services","Third Party Payments","Other establishments","04/01/21","6403266","165.12","VENDOR","CEDDAR HOUSE","102425"
"Portsmouth City Council","PCC","Adult Social Care","Physical Support Older People (85+)","Adult Services","Third Party Payments","Other establishments","04/01/21","6403266","82.56","VENDOR","CEDDAR HOUSE","102425"
"Portsmouth City Council","PCC","Adult Social Care","Physical Support Older People (85+)","Adult Services","Third Party Payments","Other establishments","18/01/21","6408033","165.12","VENDOR","CEDDAR HOUSE","102425"
"Portsmouth City Council","PCC","Adult Social Care","Physical Support Older People (85+)","Adult Services","Third Party Payments","Other establishments","18/01/21","6408033","330.24","VENDOR","CEDDAR HOUSE","102425"
"Portsmouth City Council","PCC","Adult Social Care","Physical Support Older People (85+)","Adult Services","Third Party Payments","Other establishments","18/01/21","6408033","165.12","VENDOR","CEDDAR HOUSE","102425"
"Portsmouth City Council","PCC","Adult Social Care","Physical Support Older People (85+)","Adult Services","Third Party Payments","Other establishments","18/01/21","6408033","165.12","VENDOR","CEDDAR HOUSE","102425"
"Portsmouth City Council","PCC","Adult Social Care","Physical Support Older People (85+)","Adult Services","Third Party Payments","Other establishments","18/01/21","6408033","165.12","VENDOR","CEDDAR HOUSE","102425"
"Portsmouth City Council","PCC","Adult Social Care","Physical Support Older People (85+)","Adult Services","Third Party Payments","Other establishments","18/01/21","6408033","165.12","VENDOR","CEDDAR HOUSE","102425"
"Portsmouth City Council","PCC","Adult Social Care","Social Care Activities","Adult Services","Third Party Payments","Other establishments","18/01/21","6408033","4.16","VENDOR","CEDDAR HOUSE","102425"
"Portsmouth City Council","PCC","Adult Social Care","Mental Health Support Older People (65 - 74)","Adult Services","Third Party Payments","Other establishments","15/01/21","6406580","678.16","VENDOR","CHOICE CARE GROUP","134468"
"Portsmouth City Council","PCC","Adult Social Care","Social Care Activities","Adult Services","Third Party Payments","Other establishments","12/01/21","6405549","10428.09","VENDOR","CHOICE CARE GROUP","134468"
"Portsmouth City Council","PCC","Adult Social Care","Physical Support Adults (18 - 64)","Adult Services","Third Party Payments","Other establishments","12/01/21","6405549","8402.55","VENDOR","CHOICE CARE GROUP","134468"
"Portsmouth City Council","PCC","Adult Social Care","Physical Support Adults (18 - 64)","Adult Services","Third Party Payments","Other establishments","12/01/21","6405549","2552.85","VENDOR","CHOICE CARE GROUP","134468"
"Portsmouth City Council","PCC","Adult Social Care","Learning Disability Support  Adults (18 - 64)","Adult Services","Third Party Payments","Other establishments","12/01/21","6405549","9021.93","VENDOR","CHOICE CARE GROUP","134468"
"Portsmouth City Council","PCC","Adult Social Care","Learning Disability Support  Adults (18 - 64)","Adult Services","Third Party Payments","Other establishments","12/01/21","6405549","7205.64","VENDOR","CHOICE CARE GROUP","134468"
"Portsmouth City Council","PCC","Adult Social Care","Learning Disability Support  Adults (18 - 64)","Adult Services","Third Party Payments","Other establishments","12/01/21","6405549","4343.41","VENDOR","CHOICE CARE GROUP","134468"
"Portsmouth City Council","PCC","Adult Social Care","Mental Health Support Adults (18 - 64)","Adult Services","Third Party Payments","Other establishments","12/01/21","6405549","2942.83","VENDOR","CHOICE CARE GROUP","134468"
"Portsmouth City Council","PCC","Adult Social Care","Mental Health Support Adults (18 - 64)","Adult Services","Third Party Payments","Other establishments","12/01/21","6405549","3246.01","VENDOR","CHOICE CARE GROUP","134468"
"Portsmouth City Council","PCC","Adult Social Care","Mental Health Support Adults (18 - 64)","Adult Services","Third Party Payments","Other establishments","12/01/21","6405549","3317","VENDOR","CHOICE CARE GROUP","134468"
"Portsmouth City Council","PCC","Adult Social Care","Mental Health Support Adults (18 - 64)","Adult Services","Third Party Payments","Other establishments","12/01/21","6405549","2608.65","VENDOR","CHOICE CARE GROUP","134468"
"Portsmouth City Council","PCC","Adult Social Care","Mental Health Support Adults (18 - 64)","Adult Services","Third Party Payments","Other establishments","12/01/21","6405549","2550.99","VENDOR","CHOICE CARE GROUP","134468"
"Portsmouth City Council","PCC","Adult Social Care","Mental Health Support Adults (18 - 64)","Adult Services","Third Party Payments","Other establishments","12/01/21","6405549","2523.71","VENDOR","CHOICE CARE GROUP","134468"
"Portsmouth City Council","PCC","Adult Social Care","Mental Health Support Adults (18 - 64)","Adult Services","Third Party Payments","Other establishments","12/01/21","6405549","3098.45","VENDOR","CHOICE CARE GROUP","134468"
"Portsmouth City Council","PCC","Adult Social Care","Mental Health Support Adults (18 - 64)","Adult Services","Third Party Payments","Other establishments","12/01/21","6405549","4549.87","VENDOR","CHOICE CARE GROUP","134468"
"Portsmouth City Council","PCC","Adult Social Care","Physical Support Adults (18 - 64)","Adult Services","Third Party Payments","Other establishments","12/01/21","6405550","416.64","VENDOR","CHOICE SUPPORT","101204"
"Portsmouth City Council","PCC","Adult Social Care","Physical Support Adults (18 - 64)","Adult Services","Third Party Payments","Other establishments","12/01/21","6405550","1595.28","VENDOR","CHOICE SUPPORT","101204"
"Portsmouth City Council","PCC","Adult Social Care","Physical Support Adults (18 - 64)","Adult Services","Third Party Payments","Other establishments","12/01/21","6405550","714.24","VENDOR","CHOICE SUPPORT","101204"
"Portsmouth City Council","PCC","Adult Social Care","Learning Disability Support  Adults (18 - 64)","Adult Services","Third Party Payments","Other establishments","12/01/21","6405550","297.6","VENDOR","CHOICE SUPPORT","101204"
"Portsmouth City Council","PCC","Adult Social Care","Learning Disability Support  Adults (18 - 64)","Adult Services","Third Party Payments","Other establishments","12/01/21","6405550","1042.8","VENDOR","CHOICE SUPPORT","101204"
"Portsmouth City Council","PCC","Adult Social Care","Learning Disability Support  Adults (18 - 64)","Adult Services","Third Party Payments","Other establishments","12/01/21","6405550","316","VENDOR","CHOICE SUPPORT","101204"
"Portsmouth City Council","PCC","Adult Social Care","Learning Disability Support  Adults (18 - 64)","Adult Services","Third Party Payments","Other establishments","12/01/21","6405550","126.4","VENDOR","CHOICE SUPPORT","101204"
"Portsmouth City Council","PCC","Adult Social Care","Learning Disability Support  Adults (18 - 64)","Adult Services","Third Party Payments","Other establishments","12/01/21","6405550","136","VENDOR","CHOICE SUPPORT","101204"
"Portsmouth City Council","PCC","Adult Social Care","Learning Disability Support  Adults (18 - 64)","Adult Services","Third Party Payments","Other establishments","12/01/21","6405550","252.8","VENDOR","CHOICE SUPPORT","101204"
"Portsmouth City Council","PCC","Adult Social Care","Learning Disability Support  Adults (18 - 64)","Adult Services","Third Party Payments","Other establishments","12/01/21","6405550","948","VENDOR","CHOICE SUPPORT","101204"
"Portsmouth City Council","PCC","Adult Social Care","Learning Disability Support  Adults (18 - 64)","Adult Services","Third Party Payments","Other establishments","12/01/21","6405550","632","VENDOR","CHOICE SUPPORT","101204"
"Portsmouth City Council","PCC","Adult Social Care","Physical Support Adults (18 - 64)","Adult Services","Third Party Payments","Other establishments","12/01/21","6405552","2338.64","VENDOR","CLARENDON CARE HOME.","138519"
"Portsmouth City Council","PCC","Adult Social Care","Support with Memory and Cognition Older People (85+)","Adult Services","Third Party Payments","Other establishments","12/01/21","6405552","2338.64","VENDOR","CLARENDON CARE HOME.","138519"
"Portsmouth City Council","PCC","Adult Social Care","Support with Memory and Cognition Older People (85+)","Adult Services","Third Party Payments","Other establishments","12/01/21","6405552","2338.64","VENDOR","CLARENDON CARE HOME.","138519"
"Portsmouth City Council","PCC","Adult Social Care","Support with Memory and Cognition Older People (85+)","Adult Services","Third Party Payments","Other establishments","12/01/21","6405552","2343.6","VENDOR","CLARENDON CARE HOME.","138519"
"Portsmouth City Council","PCC","Adult Social Care","Support with Memory and Cognition Older People (85+)","Adult Services","Third Party Payments","Other establishments","12/01/21","6405552","3321.03","VENDOR","CLARENDON CARE HOME.","138519"
"Portsmouth City Council","PCC","Support Service / Transparency Costs Unallocated","AMS","Regeneration","Supplies and Services","Services","04/01/21","6403297","43676.5","VENDOR","RE FORMAT LLP","131569"
"Portsmouth City Council","PCC","Support Service / Transparency Costs Unallocated","AMS","Regeneration","Supplies and Services","Services","27/01/21","6411312","29955","VENDOR","RE FORMAT LLP","131569"
"Portsmouth City Council","PCC","Highways and Transport Services","Airports, Harbours and Toll Facilities","Portsmouth International Port","Supplies and Services","Communications and computing","07/01/21","6404227","1088.5","VENDOR","ULTIMA BUSINESS SOLUTIONS LTD","135978"
"Portsmouth City Council","PCC","Other","Suspense and Capital Schemes","Portsmouth International Port","Supplies and Services","Equipment, furniture and materials","28/01/21","6411476","505","VENDOR","BUSINESS TECHNOLOGY PARTNERS LTD","106282"
"Portsmouth City Council","PCC","Highways and Transport Services","Airports, Harbours and Toll Facilities","Portsmouth International Port","Supplies and Services","Communications and computing","28/01/21","6411476","505","VENDOR","BUSINESS TECHNOLOGY PARTNERS LTD","106282"
"Portsmouth City Council","PCC","Other","Suspense and Capital Schemes","Housing, Neighbourhood and Building Services","Supplies and Services","Miscellaneous expenses","06/01/21","6403827","1020","VENDOR","SGM COMMERICAL","146275"
"Portsmouth City Council","PCC","Housing Services","Homelessness","Housing, Neighbourhood and Building Services","Supplies and Services","Grants and subscriptions","08/01/21","6404287","1050","VENDOR","EUROOMS LTD","147570"
"Portsmouth City Council","PCC","Other","Suspense and Capital Schemes","Capital - Traffic & Transportation","Capital Charges","Capital Expenditure (WIP)","27/01/21","6411455","3232.03","COMPANY","MILDREN CONSTRUCTION LTD","117281"
"Portsmouth City Council","PCC","Children's and Education Services","Children Looked After","Children's Services and Education","Transport-Related Expenditure","Direct transport costs","08/01/21","6404237","2133.3","VENDOR","AQUA CARS LIMITED","100011"
"Portsmouth City Council","PCC","Children's and Education Services","Children Looked After","Children's Services and Education","Transport-Related Expenditure","Direct transport costs","08/01/21","6404237","3946.2","VENDOR","AQUA CARS LIMITED","100011"
"Portsmouth City Council","PCC","Children's and Education Services","Special Schools","Children's Services and Education","Third Party Payments","Other establishments","26/01/21","6410883","60626.85","VENDOR","SHEILING SCHOOL","145872"
"Portsmouth City Council","PCC","Cultural and Related Services","Culture and Heritage","Culture, Leisure & Regulatory Services","Transport-Related Expenditure","Direct transport costs","15/01/21","6407968","180","VENDOR","THE BLUE LAMP TRUST","136161"
"Portsmouth City Council","PCC","Highways and Transport Services","Airports, Harbours and Toll Facilities","Portsmouth International Port","Supplies and Services","Services","07/01/21","6404175","4000","VENDOR","DKB PROJECT MANAGEMENT & CONSULTING LIMITED","146711"
"Portsmouth City Council","PCC","Children's and Education Services","Safeguarding Children and Young Peoples Services","Children's Services and Education","Third Party Payments","Other establishments","15/01/21","6408002","800","VENDOR","WESTERN PATHWAYS LIMITED","147425"
"Portsmouth City Council","PCC","Housing Services","Homelessness","Housing, Neighbourhood and Building Services","Supplies and Services","Grants and subscriptions","20/01/21","6408665","1040","SOLETRADER","Classified as 'personal data' (under the Data Protection Act 2018)","147594"
"Portsmouth City Council","PCC","Children's and Education Services","Other Education and Community Budget","Children's Services and Education","Transport-Related Expenditure","Car allowances","28/01/21","6411672","750","VENDOR","PDS AUTOS LTD","143908"
"Portsmouth City Council","PCC","Children's and Education Services","Other Education and Community Budget","Children's Services and Education","Transport-Related Expenditure","Car allowances","28/01/21","6411672","1120","VENDOR","PDS AUTOS LTD","143908"
"Portsmouth City Council","PCC","Children's and Education Services","Other Education and Community Budget","Children's Services and Education","Transport-Related Expenditure","Car allowances","28/01/21","6411672","1047.2","VENDOR","PDS AUTOS LTD","143908"
"Portsmouth City Council","PCC","Children's and Education Services","Other Education and Community Budget","Children's Services and Education","Third Party Payments","Other establishments","25/01/21","6410726","152","VENDOR","PREPAID FINANCIAL SERVICES","137139"
"Portsmouth City Council","PCC","Children's and Education Services","Other Education and Community Budget","Children's Services and Education","Third Party Payments","Other establishments","25/01/21","6410726","114","VENDOR","PREPAID FINANCIAL SERVICES","137139"
"Portsmouth City Council","PCC","Children's and Education Services","Other Education and Community Budget","Children's Services and Education","Third Party Payments","Other establishments","25/01/21","6410726","103.63","VENDOR","PREPAID FINANCIAL SERVICES","137139"
"Portsmouth City Council","PCC","Children's and Education Services","Other Education and Community Budget","Children's Services and Education","Third Party Payments","Other establishments","25/01/21","6410726","120.9","VENDOR","PREPAID FINANCIAL SERVICES","137139"
"Portsmouth City Council","PCC","Children's and Education Services","Other Education and Community Budget","Children's Services and Education","Third Party Payments","Other establishments","25/01/21","6410726","200.36","VENDOR","PREPAID FINANCIAL SERVICES","137139"
"Portsmouth City Council","PCC","Children's and Education Services","Management and Support Services","Children's Services and Education","Third Party Payments","Other establishments","19/01/21","6408356","2210","VENDOR","PREPAID FINANCIAL SERVICES","137139"
"Portsmouth City Council","PCC","Children's and Education Services","Other Education and Community Budget","Children's Services and Education","Third Party Payments","Other establishments","25/01/21","6410726","283.27","VENDOR","PREPAID FINANCIAL SERVICES","137139"
"Portsmouth City Council","PCC","Children's and Education Services","Other Education and Community Budget","Children's Services and Education","Third Party Payments","Other establishments","25/01/21","6410726","193.45","VENDOR","PREPAID FINANCIAL SERVICES","137139"
"Portsmouth City Council","PCC","Children's and Education Services","Other Education and Community Budget","Children's Services and Education","Third Party Payments","Other establishments","25/01/21","6410726","92.04","VENDOR","PREPAID FINANCIAL SERVICES","137139"
"Portsmouth City Council","PCC","Children's and Education Services","Other Education and Community Budget","Children's Services and Education","Third Party Payments","Other establishments","28/01/21","6411678","37.2","VENDOR","PREPAID FINANCIAL SERVICES","137139"
"Portsmouth City Council","PCC","Children's and Education Services","Other Education and Community Budget","Children's Services and Education","Third Party Payments","Other establishments","25/01/21","6410726","144.4","VENDOR","PREPAID FINANCIAL SERVICES","137139"
"Portsmouth City Council","PCC","Children's and Education Services","Other Education and Community Budget","Children's Services and Education","Third Party Payments","Other establishments","25/01/21","6410726","103.63","VENDOR","PREPAID FINANCIAL SERVICES","137139"
"Portsmouth City Council","PCC","Children's and Education Services","Other Education and Community Budget","Children's Services and Education","Third Party Payments","Other establishments","25/01/21","6410726","206.55","VENDOR","PREPAID FINANCIAL SERVICES","137139"
"Portsmouth City Council","PCC","Children's and Education Services","Other Education and Community Budget","Children's Services and Education","Third Party Payments","Other establishments","25/01/21","6410726","250","VENDOR","PREPAID FINANCIAL SERVICES","137139"
"Portsmouth City Council","PCC","Children's and Education Services","Other Education and Community Budget","Children's Services and Education","Third Party Payments","Other establishments","25/01/21","6410726","132.87","VENDOR","PREPAID FINANCIAL SERVICES","137139"
"Portsmouth City Council","PCC","Children's and Education Services","Other Education and Community Budget","Children's Services and Education","Third Party Payments","Other establishments","25/01/21","6410726","84.72","VENDOR","PREPAID FINANCIAL SERVICES","137139"
"Portsmouth City Council","PCC","Children's and Education Services","Other Education and Community Budget","Children's Services and Education","Third Party Payments","Other establishments","05/01/21","6403407","237.6","VENDOR","PREPAID FINANCIAL SERVICES","137139"
"Portsmouth City Council","PCC","Children's and Education Services","Other Education and Community Budget","Children's Services and Education","Third Party Payments","Other establishments","05/01/21","6403407","399.2","VENDOR","PREPAID FINANCIAL SERVICES","137139"
"Portsmouth City Council","PCC","Children's and Education Services","Other Education and Community Budget","Children's Services and Education","Third Party Payments","Other establishments","28/01/21","6411678","243.2","VENDOR","PREPAID FINANCIAL SERVICES","137139"
"Portsmouth City Council","PCC","Children's and Education Services","Other Education and Community Budget","Children's Services and Education","Third Party Payments","Other establishments","28/01/21","6411678","265.1","VENDOR","PREPAID FINANCIAL SERVICES","137139"
"Portsmouth City Council","PCC","Children's and Education Services","Other Education and Community Budget","Children's Services and Education","Third Party Payments","Other establishments","28/01/21","6411678","1365.5","VENDOR","PREPAID FINANCIAL SERVICES","137139"
"Portsmouth City Council","PCC","Planning Services","Development Control","Regeneration","Supplies and Services","Services","26/01/21","6410903","16920","VENDOR","SYSTRA LIMITED","144447"
"Portsmouth City Council","PCC","Housing Services","Homelessness","Housing, Neighbourhood and Building Services","Supplies and Services","Services","06/01/21","6403881","3750","VENDOR","MANGO PLANNING & DEVELOPMENT LIMITED","147188"
"Portsmouth City Council","PCC","Housing Services","Homelessness","Housing, Neighbourhood and Building Services","Supplies and Services","Grants and subscriptions","12/01/21","6405674","720","SOLETRADER","Classified as 'personal data' (under the Data Protection Act 2018)","147581"
"Portsmouth City Council","PCC","Adult Social Care","Social Care Activities","Adult Services","Third Party Payments","Other establishments","25/01/21","6410594","306","VENDOR","BLUELIGHT HEALTHCARE RECRUITMENT LIMITED","147358"
"Portsmouth City Council","PCC","Adult Social Care","Social Care Activities","Adult Services","Third Party Payments","Other establishments","25/01/21","6410594","495","VENDOR","BLUELIGHT HEALTHCARE RECRUITMENT LIMITED","147358"
"Portsmouth City Council","PCC","Adult Social Care","Social Care Activities","Adult Services","Third Party Payments","Other establishments","25/01/21","6410594","1368","VENDOR","BLUELIGHT HEALTHCARE RECRUITMENT LIMITED","147358"
"Portsmouth City Council","PCC","Adult Social Care","Social Care Activities","Adult Services","Third Party Payments","Other establishments","25/01/21","6410594","-24","VENDOR","BLUELIGHT HEALTHCARE RECRUITMENT LIMITED","147358"
"Portsmouth City Council","PCC","Adult Social Care","Social Care Activities","Adult Services","Third Party Payments","Other establishments","25/01/21","6410594","4041.75","VENDOR","BLUELIGHT HEALTHCARE RECRUITMENT LIMITED","147358"
"Portsmouth City Council","PCC","Adult Social Care","Social Care Activities","Adult Services","Third Party Payments","Other establishments","25/01/21","6410594","1638","VENDOR","BLUELIGHT HEALTHCARE RECRUITMENT LIMITED","147358"
"Portsmouth City Council","PCC","Adult Social Care","Physical Support Older People (85+)","Adult Services","Third Party Payments","Other establishments","25/01/21","6410594","2231","VENDOR","BLUELIGHT HEALTHCARE RECRUITMENT LIMITED","147358"
"Portsmouth City Council","PCC","Adult Social Care","Physical Support Older People (85+)","Adult Services","Third Party Payments","Other establishments","25/01/21","6410594","4031.75","VENDOR","BLUELIGHT HEALTHCARE RECRUITMENT LIMITED","147358"
"Portsmouth City Council","PCC","Adult Social Care","Physical Support Older People (85+)","Adult Services","Third Party Payments","Other establishments","25/01/21","6410594","1333.25","VENDOR","BLUELIGHT HEALTHCARE RECRUITMENT LIMITED","147358"
"Portsmouth City Council","PCC","Adult Social Care","Physical Support Older People (85+)","Adult Services","Third Party Payments","Other establishments","25/01/21","6410594","2057.63","VENDOR","BLUELIGHT HEALTHCARE RECRUITMENT LIMITED","147358"
"Portsmouth City Council","PCC","Adult Social Care","Learning Disability Support  Adults (18 - 64)","Adult Services","Transport-Related Expenditure","Public transport","05/01/21","6403314","2616.1","VENDOR","AQUA CARS LIMITED","100011"
"Portsmouth City Council","PCC","Highways and Transport Services","Transport Planning, Policy and Strategy","Regeneration","Supplies and Services","Services","06/01/21","6403475","11830.02","VENDOR","ATKINS LIMITED","108809"
"Portsmouth City Council","PCC","Highways and Transport Services","Transport Planning, Policy and Strategy","Regeneration","Supplies and Services","Services","07/01/21","6404132","13224.6","VENDOR","ATKINS LIMITED","108809"
"Portsmouth City Council","PCC","Highways and Transport Services","Transport Planning, Policy and Strategy","Regeneration","Supplies and Services","Services","07/01/21","6404132","6806.53","VENDOR","ATKINS LIMITED","108809"
"Portsmouth City Council","PCC","Highways and Transport Services","Transport Planning, Policy and Strategy","Regeneration","Supplies and Services","Services","07/01/21","6404132","11297.19","VENDOR","ATKINS LIMITED","108809"
"Portsmouth City Council","PCC","Highways and Transport Services","Transport Planning, Policy and Strategy","Regeneration","Supplies and Services","Services","07/01/21","6404132","906.84","VENDOR","ATKINS LIMITED","108809"
"Portsmouth City Council","PCC","Other","Suspense and Capital Schemes","Capital - Traffic & Transportation","Capital Charges","Capital Expenditure (WIP)","05/01/21","6403315","7621.9","VENDOR","ATKINS LIMITED","108809"
"Portsmouth City Council","PCC","Other","Suspense and Capital Schemes","Capital - Traffic & Transportation","Capital Charges","Capital Expenditure (WIP)","06/01/21","6403475","14826.82","VENDOR","ATKINS LIMITED","108809"
"Portsmouth City Council","PCC","Other","Suspense and Capital Schemes","Capital - Leader - Port","Capital Charges","Capital Expenditure (WIP)","07/01/21","6404132","2544.67","VENDOR","ATKINS LIMITED","108809"
"Portsmouth City Council","PCC","Other","Suspense and Capital Schemes","Capital - Leader","Capital Charges","Capital Expenditure (WIP)","14/01/21","6406414","69909.7","VENDOR","ATKINS LIMITED","108809"
"Portsmouth City Council","PCC","Adult Social Care","Social Care Activities","Adult Services","Transport-Related Expenditure","Direct transport costs","12/01/21","6405520","3.9","VENDOR","AQUA CARS LIMITED","100011"
"Portsmouth City Council","PCC","Adult Social Care","Learning Disability Support  Adults (18 - 64)","Adult Services","Transport-Related Expenditure","Public transport","12/01/21","6405520","2635.2","VENDOR","AQUA CARS LIMITED","100011"
"Portsmouth City Council","PCC","Adult Social Care","Social Care Activities","Adult Services","Transport-Related Expenditure","Direct transport costs","15/01/21","6406541","3.9","VENDOR","AQUA CARS LIMITED","100011"
"Portsmouth City Council","PCC","Adult Social Care","Learning Disability Support  Adults (18 - 64)","Adult Services","Transport-Related Expenditure","Public transport","15/01/21","6406541","2239.8","VENDOR","AQUA CARS LIMITED","100011"
"Portsmouth City Council","PCC","Adult Social Care","Support with Memory and Cognition Older People (85+)","Adult Services","Third Party Payments","Other establishments","12/01/21","6405552","2338.64","VENDOR","CLARENDON CARE HOME.","138519"
"Portsmouth City Council","PCC","Adult Social Care","Support with Memory and Cognition Older People (85+)","Adult Services","Third Party Payments","Other establishments","12/01/21","6405552","2338.64","VENDOR","CLARENDON CARE HOME.","138519"
"Portsmouth City Council","PCC","Adult Social Care","Support with Memory and Cognition Older People (85+)","Adult Services","Third Party Payments","Other establishments","12/01/21","6405552","2338.64","VENDOR","CLARENDON CARE HOME.","138519"
"Portsmouth City Council","PCC","Adult Social Care","Support with Memory and Cognition Older People (85+)","Adult Services","Third Party Payments","Other establishments","12/01/21","6405552","2338.64","VENDOR","CLARENDON CARE HOME.","138519"
"Portsmouth City Council","PCC","Adult Social Care","Support with Memory and Cognition Older People (85+)","Adult Services","Third Party Payments","Other establishments","12/01/21","6405552","1025.16","VENDOR","CLARENDON CARE HOME.","138519"
"Portsmouth City Council","PCC","Adult Social Care","Support with Memory and Cognition Older People (85+)","Adult Services","Third Party Payments","Other establishments","12/01/21","6405552","170.86","VENDOR","CLARENDON CARE HOME.","138519"
"Portsmouth City Council","PCC","Adult Social Care","Support with Memory and Cognition Older People (65 - 74)","Adult Services","Supplies and Services","Communications and computing","07/01/21","6404149","190.43","VENDOR","COMMUNICATIONS SOUTH NETWORK SERVICES","137179"
"Portsmouth City Council","PCC","Adult Social Care","Learning Disability Support  Adults (18 - 64)","Adult Services","Third Party Payments","Other establishments","22/01/21","6410463","1020","VENDOR","COMMUNITY INTEGRATED CARE (CIC)","102442"
"Portsmouth City Council","PCC","Adult Social Care","Learning Disability Support  Adults (18 - 64)","Adult Services","Third Party Payments","Other establishments","12/01/21","6405556","5944.87","VENDOR","COMMUNITY INTEGRATED CARE (CIC)","102442"
"Portsmouth City Council","PCC","Adult Social Care","Learning Disability Support  Adults (18 - 64)","Adult Services","Third Party Payments","Other establishments","12/01/21","6405556","5944.87","VENDOR","COMMUNITY INTEGRATED CARE (CIC)","102442"
"Portsmouth City Council","PCC","Adult Social Care","Learning Disability Support  Adults (18 - 64)","Adult Services","Third Party Payments","Other establishments","12/01/21","6405556","11618.8","VENDOR","COMMUNITY INTEGRATED CARE (CIC)","102442"
"Portsmouth City Council","PCC","Adult Social Care","Learning Disability Support  Adults (18 - 64)","Adult Services","Third Party Payments","Other establishments","12/01/21","6405556","6570.76","VENDOR","COMMUNITY INTEGRATED CARE (CIC)","102442"
"Portsmouth City Council","PCC","Adult Social Care","Learning Disability Support  Adults (18 - 64)","Adult Services","Third Party Payments","Other establishments","12/01/21","6405556","6570.76","VENDOR","COMMUNITY INTEGRATED CARE (CIC)","102442"
"Portsmouth City Council","PCC","Adult Social Care","Learning Disability Support  Adults (18 - 64)","Adult Services","Third Party Payments","Other establishments","12/01/21","6405556","5944.87","VENDOR","COMMUNITY INTEGRATED CARE (CIC)","102442"
"Portsmouth City Council","PCC","Adult Social Care","Learning Disability Support  Adults (18 - 64)","Adult Services","Third Party Payments","Other establishments","12/01/21","6405556","5944.87","VENDOR","COMMUNITY INTEGRATED CARE (CIC)","102442"
"Portsmouth City Council","PCC","Adult Social Care","Learning Disability Support  Adults (18 - 64)","Adult Services","Third Party Payments","Other establishments","12/01/21","6405556","6570.76","VENDOR","COMMUNITY INTEGRATED CARE (CIC)","102442"
"Portsmouth City Council","PCC","Adult Social Care","Social Care Activities","Adult Services","Third Party Payments","Other establishments","25/01/21","6410602","6057.87","VENDOR","COMMUNITY INTEGRATED CARE (CIC)","102442"
"Portsmouth City Council","PCC","Adult Social Care","Social Care Activities","Adult Services","Third Party Payments","Other establishments","25/01/21","6410602","1750.22","VENDOR","COMMUNITY INTEGRATED CARE (CIC)","102442"
"Portsmouth City Council","PCC","Adult Social Care","Social Care Activities","Adult Services","Third Party Payments","Other establishments","25/01/21","6410602","6826.82","VENDOR","COMMUNITY INTEGRATED CARE (CIC)","102442"
"Portsmouth City Council","PCC","Adult Social Care","Social Care Activities","Adult Services","Third Party Payments","Other establishments","25/01/21","6410602","2500.42","VENDOR","COMMUNITY INTEGRATED CARE (CIC)","102442"
"Portsmouth City Council","PCC","Adult Social Care","Social Care Activities","Adult Services","Third Party Payments","Other establishments","25/01/21","6410602","7877.1","VENDOR","COMMUNITY INTEGRATED CARE (CIC)","102442"
"Portsmouth City Council","PCC","Adult Social Care","Social Care Activities","Adult Services","Third Party Payments","Other establishments","25/01/21","6410602","1575.42","VENDOR","COMMUNITY INTEGRATED CARE (CIC)","102442"
"Portsmouth City Council","PCC","Adult Social Care","Social Care Activities","Adult Services","Third Party Payments","Other establishments","25/01/21","6410602","-1411.47","VENDOR","COMMUNITY INTEGRATED CARE (CIC)","102442"
"Portsmouth City Council","PCC","Adult Social Care","Social Care Activities","Adult Services","Third Party Payments","Other establishments","25/01/21","6410602","9227.46","VENDOR","COMMUNITY INTEGRATED CARE (CIC)","102442"
"Portsmouth City Council","PCC","Adult Social Care","Learning Disability Support  Adults (18 - 64)","Adult Services","Third Party Payments","Other establishments","25/01/21","6410602","9452.52","VENDOR","COMMUNITY INTEGRATED CARE (CIC)","102442"
"Portsmouth City Council","PCC","Adult Social Care","Learning Disability Support  Adults (18 - 64)","Adult Services","Third Party Payments","Other establishments","25/01/21","6410602","1750.22","VENDOR","COMMUNITY INTEGRATED CARE (CIC)","102442"
"Portsmouth City Council","PCC","Adult Social Care","Learning Disability Support  Adults (18 - 64)","Adult Services","Third Party Payments","Other establishments","25/01/21","6410602","4839.54","VENDOR","COMMUNITY INTEGRATED CARE (CIC)","102442"
"Portsmouth City Council","PCC","Adult Social Care","Learning Disability Support  Adults (18 - 64)","Adult Services","Third Party Payments","Other establishments","25/01/21","6410602","1575.42","VENDOR","COMMUNITY INTEGRATED CARE (CIC)","102442"
"Portsmouth City Council","PCC","Adult Social Care","Learning Disability Support  Adults (18 - 64)","Adult Services","Third Party Payments","Other establishments","25/01/21","6410602","7542.3","VENDOR","COMMUNITY INTEGRATED CARE (CIC)","102442"
"Portsmouth City Council","PCC","Adult Social Care","Learning Disability Support  Adults (18 - 64)","Adult Services","Third Party Payments","Other establishments","25/01/21","6410602","1598.36","VENDOR","COMMUNITY INTEGRATED CARE (CIC)","102442"
"Portsmouth City Council","PCC","Adult Social Care","Learning Disability Support  Adults (18 - 64)","Adult Services","Third Party Payments","Other establishments","25/01/21","6410602","6417.21","VENDOR","COMMUNITY INTEGRATED CARE (CIC)","102442"
"Portsmouth City Council","PCC","Adult Social Care","Learning Disability Support  Adults (18 - 64)","Adult Services","Third Party Payments","Other establishments","25/01/21","6410602","1575.42","VENDOR","COMMUNITY INTEGRATED CARE (CIC)","102442"
"Portsmouth City Council","PCC","Adult Social Care","Learning Disability Support  Adults (18 - 64)","Adult Services","Third Party Payments","Other establishments","25/01/21","6410602","7542.3","VENDOR","COMMUNITY INTEGRATED CARE (CIC)","102442"
"Portsmouth City Council","PCC","Adult Social Care","Learning Disability Support  Adults (18 - 64)","Adult Services","Third Party Payments","Other establishments","25/01/21","6410602","1598.36","VENDOR","COMMUNITY INTEGRATED CARE (CIC)","102442"
"Portsmouth City Council","PCC","Adult Social Care","Learning Disability Support  Adults (18 - 64)","Adult Services","Third Party Payments","Other establishments","25/01/21","6410602","3232.41","VENDOR","COMMUNITY INTEGRATED CARE (CIC)","102442"
"Portsmouth City Council","PCC","Adult Social Care","Learning Disability Support  Adults (18 - 64)","Adult Services","Third Party Payments","Other establishments","25/01/21","6410602","532.58","VENDOR","COMMUNITY INTEGRATED CARE (CIC)","102442"
"Portsmouth City Council","PCC","Adult Social Care","Learning Disability Support  Adults (18 - 64)","Adult Services","Third Party Payments","Other establishments","25/01/21","6410602","3232.41","VENDOR","COMMUNITY INTEGRATED CARE (CIC)","102442"
"Portsmouth City Council","PCC","Adult Social Care","Learning Disability Support  Adults (18 - 64)","Adult Services","Third Party Payments","Other establishments","25/01/21","6410602","532.58","VENDOR","COMMUNITY INTEGRATED CARE (CIC)","102442"
"Portsmouth City Council","PCC","Adult Social Care","Learning Disability Support  Adults (18 - 64)","Adult Services","Third Party Payments","Other establishments","25/01/21","6410602","5776.54","VENDOR","COMMUNITY INTEGRATED CARE (CIC)","102442"
"Portsmouth City Council","PCC","Adult Social Care","Learning Disability Support  Adults (18 - 64)","Adult Services","Third Party Payments","Other establishments","25/01/21","6410602","1575.42","VENDOR","COMMUNITY INTEGRATED CARE (CIC)","102442"
"Portsmouth City Council","PCC","Adult Social Care","Learning Disability Support  Adults (18 - 64)","Adult Services","Third Party Payments","Other establishments","25/01/21","6410602","3986.64","VENDOR","COMMUNITY INTEGRATED CARE (CIC)","102442"
"Portsmouth City Council","PCC","Adult Social Care","Learning Disability Support  Adults (18 - 64)","Adult Services","Third Party Payments","Other establishments","25/01/21","6410602","1065.47","VENDOR","COMMUNITY INTEGRATED CARE (CIC)","102442"
"Portsmouth City Council","PCC","Adult Social Care","Learning Disability Support  Adults (18 - 64)","Adult Services","Third Party Payments","Other establishments","25/01/21","6410602","3232.41","VENDOR","COMMUNITY INTEGRATED CARE (CIC)","102442"
"Portsmouth City Council","PCC","Adult Social Care","Learning Disability Support  Adults (18 - 64)","Adult Services","Third Party Payments","Other establishments","25/01/21","6410602","532.58","VENDOR","COMMUNITY INTEGRATED CARE (CIC)","102442"
"Portsmouth City Council","PCC","Adult Social Care","Learning Disability Support  Adults (18 - 64)","Adult Services","Third Party Payments","Other establishments","25/01/21","6410602","2262.69","VENDOR","COMMUNITY INTEGRATED CARE (CIC)","102442"
"Portsmouth City Council","PCC","Adult Social Care","Learning Disability Support  Adults (18 - 64)","Adult Services","Third Party Payments","Other establishments","25/01/21","6410602","6114.13","VENDOR","COMMUNITY INTEGRATED CARE (CIC)","102442"
"Portsmouth City Council","PCC","Adult Social Care","Learning Disability Support  Adults (18 - 64)","Adult Services","Third Party Payments","Other establishments","25/01/21","6410602","1750.22","VENDOR","COMMUNITY INTEGRATED CARE (CIC)","102442"
"Portsmouth City Council","PCC","Adult Social Care","Learning Disability Support  Adults (18 - 64)","Adult Services","Third Party Payments","Other establishments","25/01/21","6410602","1436.63","VENDOR","COMMUNITY INTEGRATED CARE (CIC)","102442"
"Portsmouth City Council","PCC","Adult Social Care","Learning Disability Support  Adults (18 - 64)","Adult Services","Third Party Payments","Other establishments","25/01/21","6410602","3232.41","VENDOR","COMMUNITY INTEGRATED CARE (CIC)","102442"
"Portsmouth City Council","PCC","Adult Social Care","Learning Disability Support  Adults (18 - 64)","Adult Services","Third Party Payments","Other establishments","25/01/21","6410602","532.58","VENDOR","COMMUNITY INTEGRATED CARE (CIC)","102442"
"Portsmouth City Council","PCC","Adult Social Care","Learning Disability Support  Adults (18 - 64)","Adult Services","Third Party Payments","Other establishments","25/01/21","6410602","7025.11","VENDOR","COMMUNITY INTEGRATED CARE (CIC)","102442"
"Portsmouth City Council","PCC","Adult Social Care","Learning Disability Support  Adults (18 - 64)","Adult Services","Third Party Payments","Other establishments","25/01/21","6410602","1065.47","VENDOR","COMMUNITY INTEGRATED CARE (CIC)","102442"
"Portsmouth City Council","PCC","Adult Social Care","Learning Disability Support  Adults (18 - 64)","Adult Services","Third Party Payments","Other establishments","25/01/21","6410602","4812.71","VENDOR","COMMUNITY INTEGRATED CARE (CIC)","102442"
"Portsmouth City Council","PCC","Adult Social Care","Learning Disability Support  Adults (18 - 64)","Adult Services","Third Party Payments","Other establishments","25/01/21","6410602","1065.47","VENDOR","COMMUNITY INTEGRATED CARE (CIC)","102442"
"Portsmouth City Council","PCC","Adult Social Care","Learning Disability Support  Adults (18 - 64)","Adult Services","Third Party Payments","Other establishments","25/01/21","6410602","3232.41","VENDOR","COMMUNITY INTEGRATED CARE (CIC)","102442"
"Portsmouth City Council","PCC","Adult Social Care","Learning Disability Support  Adults (18 - 64)","Adult Services","Third Party Payments","Other establishments","25/01/21","6410602","532.58","VENDOR","COMMUNITY INTEGRATED CARE (CIC)","102442"
"Portsmouth City Council","PCC","Adult Social Care","Learning Disability Support  Adults (18 - 64)","Adult Services","Third Party Payments","Other establishments","25/01/21","6410602","1077.47","VENDOR","COMMUNITY INTEGRATED CARE (CIC)","102442"
"Portsmouth City Council","PCC","Adult Social Care","Learning Disability Support  Adults (18 - 64)","Adult Services","Third Party Payments","Other establishments","25/01/21","6410602","53.87","VENDOR","COMMUNITY INTEGRATED CARE (CIC)","102442"
"Portsmouth City Council","PCC","Adult Social Care","Learning Disability Support  Adults (18 - 64)","Adult Services","Third Party Payments","Other establishments","25/01/21","6410602","3232.41","VENDOR","COMMUNITY INTEGRATED CARE (CIC)","102442"
"Portsmouth City Council","PCC","Adult Social Care","Learning Disability Support  Adults (18 - 64)","Adult Services","Third Party Payments","Other establishments","25/01/21","6410602","861.98","VENDOR","COMMUNITY INTEGRATED CARE (CIC)","102442"
"Portsmouth City Council","PCC","Adult Social Care","Learning Disability Support  Adults (18 - 64)","Adult Services","Third Party Payments","Other establishments","25/01/21","6410602","532.58","VENDOR","COMMUNITY INTEGRATED CARE (CIC)","102442"
"Portsmouth City Council","PCC","Adult Social Care","Learning Disability Support  Adults (18 - 64)","Adult Services","Third Party Payments","Other establishments","25/01/21","6410602","4348.16","VENDOR","COMMUNITY INTEGRATED CARE (CIC)","102442"
"Portsmouth City Council","PCC","Adult Social Care","Learning Disability Support  Adults (18 - 64)","Adult Services","Third Party Payments","Other establishments","25/01/21","6410602","1575.42","VENDOR","COMMUNITY INTEGRATED CARE (CIC)","102442"
"Portsmouth City Council","PCC","Adult Social Care","Commissioning & service delivery","Adult Services","Employees","Indirect employee expenses","06/01/21","6403717","650","VENDOR","DEMENTIA TRAINERS","134994"
"Portsmouth City Council","PCC","Adult Social Care","Physical Support Older People (65-74)","Adult Services","Supplies and Services","Catering","06/01/21","6403721","310.96","VENDOR","DENNIS EDWARDS FOR FOODSERVICE","101586"
"Portsmouth City Council","PCC","Adult Social Care","Support with Memory and Cognition Older People (65 - 74)","Adult Services","Supplies and Services","Catering","06/01/21","6403721","321.67","VENDOR","DENNIS EDWARDS FOR FOODSERVICE","101586"
"Portsmouth City Council","PCC","Adult Social Care","Physical Support Older People (65-74)","Adult Services","Supplies and Services","Catering","08/01/21","6404280","48.4","VENDOR","DENNIS EDWARDS FOR FOODSERVICE","101586"
"Portsmouth City Council","PCC","Adult Social Care","Support with Memory and Cognition Older People (65 - 74)","Adult Services","Supplies and Services","Catering","08/01/21","6404280","413.61","VENDOR","DENNIS EDWARDS FOR FOODSERVICE","101586"
"Portsmouth City Council","PCC","Adult Social Care","Support with Memory and Cognition Older People (65 - 74)","Adult Services","Supplies and Services","Catering","08/01/21","6404280","118.54","VENDOR","DENNIS EDWARDS FOR FOODSERVICE","101586"
"Portsmouth City Council","PCC","Adult Social Care","Support with Memory and Cognition Older People (65 - 74)","Adult Services","Supplies and Services","Catering","11/01/21","6404476","627.98","VENDOR","DENNIS EDWARDS FOR FOODSERVICE","101586"
"Portsmouth City Council","PCC","Adult Social Care","Physical Support Older People (65-74)","Adult Services","Supplies and Services","Catering","13/01/21","6405986","273.93","VENDOR","DENNIS EDWARDS FOR FOODSERVICE","101586"
"Portsmouth City Council","PCC","Adult Social Care","Support with Memory and Cognition Older People (65 - 74)","Adult Services","Supplies and Services","Catering","08/01/21","6404280","9.98","VENDOR","DENNIS EDWARDS FOR FOODSERVICE","101586"
"Portsmouth City Council","PCC","Adult Social Care","Support with Memory and Cognition Older People (65 - 74)","Adult Services","Supplies and Services","Catering","13/01/21","6405986","30","VENDOR","DENNIS EDWARDS FOR FOODSERVICE","101586"
"Portsmouth City Council","PCC","Adult Social Care","Support with Memory and Cognition Older People (65 - 74)","Adult Services","Supplies and Services","Catering","11/01/21","6404476","53.75","VENDOR","DENNIS EDWARDS FOR FOODSERVICE","101586"
"Portsmouth City Council","PCC","Adult Social Care","Support with Memory and Cognition Older People (65 - 74)","Adult Services","Supplies and Services","Catering","13/01/21","6405986","272.64","VENDOR","DENNIS EDWARDS FOR FOODSERVICE","101586"
"Portsmouth City Council","PCC","Adult Social Care","Support with Memory and Cognition Older People (65 - 74)","Adult Services","Supplies and Services","Catering","11/01/21","6404476","66.69","VENDOR","DENNIS EDWARDS FOR FOODSERVICE","101586"
"Portsmouth City Council","PCC","Adult Social Care","Physical Support Older People (65-74)","Adult Services","Supplies and Services","Catering","15/01/21","6407781","64.3","VENDOR","DENNIS EDWARDS FOR FOODSERVICE","101586"
"Portsmouth City Council","PCC","Adult Social Care","Support with Memory and Cognition Older People (65 - 74)","Adult Services","Supplies and Services","Catering","13/01/21","6405986","17.8","VENDOR","DENNIS EDWARDS FOR FOODSERVICE","101586"
"Portsmouth City Council","PCC","Adult Social Care","Support with Memory and Cognition Older People (65 - 74)","Adult Services","Supplies and Services","Catering","15/01/21","6407781","583.01","VENDOR","DENNIS EDWARDS FOR FOODSERVICE","101586"
"Portsmouth City Council","PCC","Adult Social Care","Physical Support Older People (65-74)","Adult Services","Supplies and Services","Catering","18/01/21","6408167","24.63","VENDOR","DENNIS EDWARDS FOR FOODSERVICE","101586"
"Portsmouth City Council","PCC","Adult Social Care","Support with Memory and Cognition Older People (65 - 74)","Adult Services","Supplies and Services","Catering","18/01/21","6408167","474.52","VENDOR","DENNIS EDWARDS FOR FOODSERVICE","101586"
"Portsmouth City Council","PCC","Adult Social Care","Physical Support Older People (65-74)","Adult Services","Supplies and Services","Catering","20/01/21","6408652","37.7","VENDOR","DENNIS EDWARDS FOR FOODSERVICE","101586"
"Portsmouth City Council","PCC","Adult Social Care","Support with Memory and Cognition Older People (65 - 74)","Adult Services","Supplies and Services","Catering","20/01/21","6408652","71.1","VENDOR","DENNIS EDWARDS FOR FOODSERVICE","101586"
"Portsmouth City Council","PCC","Adult Social Care","Support with Memory and Cognition Older People (65 - 74)","Adult Services","Supplies and Services","Catering","20/01/21","6408652","163.04","VENDOR","DENNIS EDWARDS FOR FOODSERVICE","101586"
"Portsmouth City Council","PCC","Adult Social Care","Physical Support Older People (65-74)","Adult Services","Supplies and Services","Catering","20/01/21","6408652","335.48","VENDOR","DENNIS EDWARDS FOR FOODSERVICE","101586"
"Portsmouth City Council","PCC","Adult Social Care","Support with Memory and Cognition Older People (65 - 74)","Adult Services","Supplies and Services","Catering","20/01/21","6408652","9.3","VENDOR","DENNIS EDWARDS FOR FOODSERVICE","101586"
"Portsmouth City Council","PCC","Adult Social Care","Support with Memory and Cognition Older People (65 - 74)","Adult Services","Supplies and Services","Catering","25/01/21","6410690","99.52","VENDOR","DENNIS EDWARDS FOR FOODSERVICE","101586"
"Portsmouth City Council","PCC","Adult Social Care","Physical Support Older People (65-74)","Adult Services","Supplies and Services","Catering","25/01/21","6410690","48.4","VENDOR","DENNIS EDWARDS FOR FOODSERVICE","101586"
"Portsmouth City Council","PCC","Adult Social Care","Support with Memory and Cognition Older People (65 - 74)","Adult Services","Supplies and Services","Catering","25/01/21","6410690","248.38","VENDOR","DENNIS EDWARDS FOR FOODSERVICE","101586"
"Portsmouth City Council","PCC","Adult Social Care","Support with Memory and Cognition Older People (65 - 74)","Adult Services","Supplies and Services","Catering","25/01/21","6410690","238.19","VENDOR","DENNIS EDWARDS FOR FOODSERVICE","101586"
"Portsmouth City Council","PCC","Adult Social Care","Support with Memory and Cognition Older People (65 - 74)","Adult Services","Supplies and Services","Catering","25/01/21","6410690","6.7","VENDOR","DENNIS EDWARDS FOR FOODSERVICE","101586"
"Portsmouth City Council","PCC","Adult Social Care","Social Support - Support for Carer","Adult Services","Third Party Payments","Other establishments","26/01/21","6410835","170.27","VENDOR","DIRECT PAYMENTS - CARERS","147491"
"Portsmouth City Council","PCC","Adult Social Care","Social Support - Support for Carer","Adult Services","Third Party Payments","Other establishments","26/01/21","6410835","-278.19","VENDOR","DIRECT PAYMENTS - CARERS","147491"
"Portsmouth City Council","PCC","Adult Social Care","Social Support - Support for Carer","Adult Services","Third Party Payments","Other establishments","26/01/21","6410835","29.92","VENDOR","DIRECT PAYMENTS - CARERS","147491"
"Portsmouth City Council","PCC","Adult Social Care","Social Support - Support for Carer","Adult Services","Third Party Payments","Other establishments","26/01/21","6410835","-359.04","VENDOR","DIRECT PAYMENTS - CARERS","147491"
"Portsmouth City Council","PCC","Adult Social Care","Social Support - Support for Carer","Adult Services","Third Party Payments","Other establishments","26/01/21","6410835","-359.04","VENDOR","DIRECT PAYMENTS - CARERS","147491"
"Portsmouth City Council","PCC","Adult Social Care","Social Support - Support for Carer","Adult Services","Third Party Payments","Other establishments","26/01/21","6410835","-359.04","VENDOR","DIRECT PAYMENTS - CARERS","147491"
"Portsmouth City Council","PCC","Adult Social Care","Social Support - Support for Carer","Adult Services","Third Party Payments","Other establishments","26/01/21","6410835","-359.04","VENDOR","DIRECT PAYMENTS - CARERS","147491"
"Portsmouth City Council","PCC","Adult Social Care","Social Support - Support for Carer","Adult Services","Third Party Payments","Other establishments","26/01/21","6410835","-359.04","VENDOR","DIRECT PAYMENTS - CARERS","147491"
"Portsmouth City Council","PCC","Adult Social Care","Social Support - Support for Carer","Adult Services","Third Party Payments","Other establishments","26/01/21","6410835","-359.04","VENDOR","DIRECT PAYMENTS - CARERS","147491"
"Portsmouth City Council","PCC","Adult Social Care","Social Support - Support for Carer","Adult Services","Third Party Payments","Other establishments","26/01/21","6410835","-359.04","VENDOR","DIRECT PAYMENTS - CARERS","147491"
"Portsmouth City Council","PCC","Adult Social Care","Social Support - Support for Carer","Adult Services","Third Party Payments","Other establishments","26/01/21","6410835","-64.11","VENDOR","DIRECT PAYMENTS - CARERS","147491"
"Portsmouth City Council","PCC","Adult Social Care","Physical Support Adults (18 - 64)","Adult Services","Third Party Payments","Other establishments","26/01/21","6410835","1568","VENDOR","DIRECT PAYMENTS - CARERS","147491"
"Portsmouth City Council","PCC","Adult Social Care","Physical Support Adults (18 - 64)","Adult Services","Third Party Payments","Other establishments","26/01/21","6410835","168","VENDOR","DIRECT PAYMENTS - CARERS","147491"
"Portsmouth City Council","PCC","Adult Social Care","Social Support - Support for Carer","Adult Services","Third Party Payments","Other establishments","26/01/21","6410835","359.04","VENDOR","DIRECT PAYMENTS - CARERS","147491"
"Portsmouth City Council","PCC","Adult Social Care","Social Support - Support for Carer","Adult Services","Third Party Payments","Other establishments","26/01/21","6410835","359.04","VENDOR","DIRECT PAYMENTS - CARERS","147491"
"Portsmouth City Council","PCC","Adult Social Care","Social Support - Support for Carer","Adult Services","Third Party Payments","Other establishments","26/01/21","6410835","359.04","VENDOR","DIRECT PAYMENTS - CARERS","147491"
"Portsmouth City Council","PCC","Adult Social Care","Social Support - Support for Carer","Adult Services","Third Party Payments","Other establishments","26/01/21","6410835","359.04","VENDOR","DIRECT PAYMENTS - CARERS","147491"
"Portsmouth City Council","PCC","Adult Social Care","Social Support - Support for Carer","Adult Services","Third Party Payments","Other establishments","26/01/21","6410835","359.04","VENDOR","DIRECT PAYMENTS - CARERS","147491"
"Portsmouth City Council","PCC","Adult Social Care","Social Support - Support for Carer","Adult Services","Third Party Payments","Other establishments","26/01/21","6410835","179.52","VENDOR","DIRECT PAYMENTS - CARERS","147491"
"Portsmouth City Council","PCC","Adult Social Care","Social Support - Support for Carer","Adult Services","Third Party Payments","Other establishments","26/01/21","6410835","359.04","VENDOR","DIRECT PAYMENTS - CARERS","147491"
"Portsmouth City Council","PCC","Adult Social Care","Social Support - Support for Carer","Adult Services","Third Party Payments","Other establishments","26/01/21","6410835","359.04","VENDOR","DIRECT PAYMENTS - CARERS","147491"
"Portsmouth City Council","PCC","Adult Social Care","Social Support - Support for Carer","Adult Services","Third Party Payments","Other establishments","26/01/21","6410835","359.04","VENDOR","DIRECT PAYMENTS - CARERS","147491"
"Portsmouth City Council","PCC","Adult Social Care","Social Support - Support for Carer","Adult Services","Third Party Payments","Other establishments","26/01/21","6410835","359.04","VENDOR","DIRECT PAYMENTS - CARERS","147491"
"Portsmouth City Council","PCC","Adult Social Care","Social Support - Support for Carer","Adult Services","Third Party Payments","Other establishments","26/01/21","6410835","538.56","VENDOR","DIRECT PAYMENTS - CARERS","147491"
"Portsmouth City Council","PCC","Adult Social Care","Social Support - Support for Carer","Adult Services","Third Party Payments","Other establishments","26/01/21","6410835","299.2","VENDOR","DIRECT PAYMENTS - CARERS","147491"
"Portsmouth City Council","PCC","Adult Social Care","Social Support - Support for Carer","Adult Services","Third Party Payments","Other establishments","26/01/21","6410835","359.04","VENDOR","DIRECT PAYMENTS - CARERS","147491"
"Portsmouth City Council","PCC","Adult Social Care","Social Support - Support for Carer","Adult Services","Third Party Payments","Other establishments","26/01/21","6410835","359.04","VENDOR","DIRECT PAYMENTS - CARERS","147491"
"Portsmouth City Council","PCC","Adult Social Care","Social Support - Support for Carer","Adult Services","Third Party Payments","Other establishments","26/01/21","6410835","359.04","VENDOR","DIRECT PAYMENTS - CARERS","147491"
"Portsmouth City Council","PCC","Adult Social Care","Social Support - Support for Carer","Adult Services","Third Party Payments","Other establishments","26/01/21","6410835","359.04","VENDOR","DIRECT PAYMENTS - CARERS","147491"
"Portsmouth City Council","PCC","Adult Social Care","Social Support - Support for Carer","Adult Services","Third Party Payments","Other establishments","26/01/21","6410835","359.04","VENDOR","DIRECT PAYMENTS - CARERS","147491"
"Portsmouth City Council","PCC","Adult Social Care","Social Support - Support for Carer","Adult Services","Third Party Payments","Other establishments","26/01/21","6410835","359.04","VENDOR","DIRECT PAYMENTS - CARERS","147491"
"Portsmouth City Council","PCC","Adult Social Care","Social Care Activities","Adult Services","Third Party Payments","Other establishments","26/01/21","6410836","443.48","VENDOR","DIRECT PAYMENTS - CHC","147490"
"Portsmouth City Council","PCC","Adult Social Care","Social Care Activities","Adult Services","Third Party Payments","Other establishments","26/01/21","6410836","1823.76","VENDOR","DIRECT PAYMENTS - CHC","147490"
"Portsmouth City Council","PCC","Adult Social Care","Social Care Activities","Adult Services","Third Party Payments","Other establishments","26/01/21","6410836","-7000","VENDOR","DIRECT PAYMENTS - CHC","147490"
"Portsmouth City Council","PCC","Adult Social Care","Social Care Activities","Adult Services","Third Party Payments","Other establishments","26/01/21","6410836","1344","VENDOR","DIRECT PAYMENTS - CHC","147490"
"Portsmouth City Council","PCC","Adult Social Care","Social Care Activities","Adult Services","Third Party Payments","Other establishments","26/01/21","6410836","1680","VENDOR","DIRECT PAYMENTS - CHC","147490"
"Portsmouth City Council","PCC","Adult Social Care","Social Care Activities","Adult Services","Third Party Payments","Other establishments","26/01/21","6410836","1926.96","VENDOR","DIRECT PAYMENTS - CHC","147490"
"Portsmouth City Council","PCC","Adult Social Care","Social Care Activities","Adult Services","Third Party Payments","Other establishments","26/01/21","6410836","1136","VENDOR","DIRECT PAYMENTS - CHC","147490"
"Portsmouth City Council","PCC","Adult Social Care","Social Care Activities","Adult Services","Third Party Payments","Other establishments","27/01/21","6411072","443.48","VENDOR","DIRECT PAYMENTS - CHC","147490"
"Portsmouth City Council","PCC","Adult Social Care","Social Care Activities","Adult Services","Third Party Payments","Other establishments","27/01/21","6411072","1823.76","VENDOR","DIRECT PAYMENTS - CHC","147490"
"Portsmouth City Council","PCC","Public Health","Miscellaneous Public Services","Public Health","Third Party Payments","Other establishments","28/01/21","6411620","1826.09","VENDOR","DR GJ ROBINSON & PARTNERS","103515"
"Portsmouth City Council","PCC","Public Health","Miscellaneous Public Services","Public Health","Third Party Payments","Other establishments","28/01/21","6411621","753.84","VENDOR","DRAYTON SURGERY","100251"
"Portsmouth City Council","PCC","Public Health","Miscellaneous Public Services","Public Health","Third Party Payments","Other establishments","28/01/21","6411625","1109.84","VENDOR","EAST SHORE PARTNERSHIP","104031"
"Portsmouth City Council","PCC","Adult Social Care","Support with Memory and Cognition Older People (85+)","Adult Services","Third Party Payments","Other establishments","12/01/21","6405601","3720","VENDOR","EASTERLEA REST HOME","102148"
"Portsmouth City Council","PCC","Adult Social Care","Support with Memory and Cognition Older People (65 - 74)","Adult Services","Premises-Related Expenditure","Energy costs","11/01/21","6404480","-2297.84","VENDOR","EDF ENERGY CUSTOMERS PLC","120330"
"Portsmouth City Council","PCC","Adult Social Care","Learning Disability Support  Adults (18 - 64)","Adult Services","Premises-Related Expenditure","Energy costs","11/01/21","6404480","-558.4","VENDOR","EDF ENERGY CUSTOMERS PLC","120330"
"Portsmouth City Council","PCC","Adult Social Care","Learning Disability Support  Adults (18 - 64)","Adult Services","Premises-Related Expenditure","Energy costs","11/01/21","6404480","-1727.2","VENDOR","EDF ENERGY CUSTOMERS PLC","120330"
"Portsmouth City Council","PCC","Adult Social Care","Learning Disability Support  Adults (18 - 64)","Adult Services","Premises-Related Expenditure","Energy costs","11/01/21","6404480","558.39","VENDOR","EDF ENERGY CUSTOMERS PLC","120330"
"Portsmouth City Council","PCC","Adult Social Care","Support with Memory and Cognition Older People (65 - 74)","Adult Services","Premises-Related Expenditure","Energy costs","11/01/21","6404480","2413.97","VENDOR","EDF ENERGY CUSTOMERS PLC","120330"
"Portsmouth City Council","PCC","Adult Social Care","Learning Disability Support  Adults (18 - 64)","Adult Services","Premises-Related Expenditure","Energy costs","11/01/21","6404480","1727.25","VENDOR","EDF ENERGY CUSTOMERS PLC","120330"
"Portsmouth City Council","PCC","Adult Social Care","Support with Memory and Cognition Older People (65 - 74)","Adult Services","Premises-Related Expenditure","Energy costs","11/01/21","6404480","-2772.77","VENDOR","EDF ENERGY CUSTOMERS PLC","120330"
"Portsmouth City Council","PCC","Adult Social Care","Support with Memory and Cognition Older People (65 - 74)","Adult Services","Premises-Related Expenditure","Energy costs","11/01/21","6404480","3543.82","VENDOR","EDF ENERGY CUSTOMERS PLC","120330"
"Portsmouth City Council","PCC","Adult Social Care","Physical Support Older People (65-74)","Adult Services","Premises-Related Expenditure","Energy costs","11/01/21","6404480","1417.16","VENDOR","EDF ENERGY CUSTOMERS PLC","120330"
"Portsmouth City Council","PCC","Adult Social Care","Learning Disability Support  Adults (18 - 64)","Adult Services","Premises-Related Expenditure","Energy costs","11/01/21","6404480","1678.82","VENDOR","EDF ENERGY CUSTOMERS PLC","120330"
"Portsmouth City Council","PCC","Adult Social Care","Support with Memory and Cognition Older People (65 - 74)","Adult Services","Premises-Related Expenditure","Energy costs","11/01/21","6404480","3421.21","VENDOR","EDF ENERGY CUSTOMERS PLC","120330"
"Portsmouth City Council","PCC","Adult Social Care","Social Care Activities","Adult Services","Premises-Related Expenditure","Energy costs","11/01/21","6404480","733.43","VENDOR","EDF ENERGY CUSTOMERS PLC","120330"
"Portsmouth City Council","PCC","Adult Social Care","Learning Disability Support  Adults (18 - 64)","Adult Services","Premises-Related Expenditure","Energy costs","11/01/21","6404480","718.15","VENDOR","EDF ENERGY CUSTOMERS PLC","120330"
"Portsmouth City Council","PCC","Adult Social Care","Learning Disability Support  Adults (18 - 64)","Adult Services","Premises-Related Expenditure","Energy costs","11/01/21","6404480","608.28","VENDOR","EDF ENERGY CUSTOMERS PLC","120330"
"Portsmouth City Council","PCC","Adult Social Care","Support with Memory and Cognition Older People (65 - 74)","Adult Services","Premises-Related Expenditure","Energy costs","11/01/21","6404480","-2413.97","VENDOR","EDF ENERGY CUSTOMERS PLC","120330"
"Portsmouth City Council","PCC","Adult Social Care","Support with Memory and Cognition Older People (65 - 74)","Adult Services","Premises-Related Expenditure","Energy costs","11/01/21","6404480","2689.3","VENDOR","EDF ENERGY CUSTOMERS PLC","120330"
"Portsmouth City Council","PCC","Adult Social Care","Support with Memory and Cognition Older People (85+)","Adult Services","Third Party Payments","Other establishments","12/01/21","6405605","1225.74","VENDOR","ENGLISH OAK CARE HOMES","128286"
"Portsmouth City Council","PCC","Adult Social Care","Support with Memory and Cognition Older People (85+)","Adult Services","Third Party Payments","Other establishments","12/01/21","6405605","5093.3","VENDOR","ENGLISH OAK CARE HOMES","128286"
"Portsmouth City Council","PCC","Adult Social Care","Mental Health Support Adults (18 - 64)","Adult Services","Third Party Payments","Other establishments","12/01/21","6405605","1662.22","VENDOR","ENGLISH OAK CARE HOMES","128286"
"Portsmouth City Council","PCC","Adult Social Care","Social Care Activities","Adult Services","Third Party Payments","Other establishments","06/01/21","6403743","535.05","VENDOR","ENTHUSE CARE","140504"
"Portsmouth City Council","PCC","Adult Social Care","Social Care Activities","Adult Services","Third Party Payments","Other establishments","06/01/21","6403743","513.3","VENDOR","ENTHUSE CARE","140504"
"Portsmouth City Council","PCC","Adult Social Care","Social Care Activities","Adult Services","Third Party Payments","Other establishments","06/01/21","6403743","65.25","VENDOR","ENTHUSE CARE","140504"
"Portsmouth City Council","PCC","Adult Social Care","Social Care Activities","Adult Services","Third Party Payments","Other establishments","06/01/21","6403743","487.2","VENDOR","ENTHUSE CARE","140504"
"Portsmouth City Council","PCC","Adult Social Care","Social Care Activities","Adult Services","Third Party Payments","Other establishments","06/01/21","6403743","4.35","VENDOR","ENTHUSE CARE","140504"
"Portsmouth City Council","PCC","Adult Social Care","Social Care Activities","Adult Services","Third Party Payments","Other establishments","06/01/21","6403743","1096.2","VENDOR","ENTHUSE CARE","140504"
"Portsmouth City Council","PCC","Adult Social Care","Social Care Activities","Adult Services","Third Party Payments","Other establishments","06/01/21","6403743","1096.2","VENDOR","ENTHUSE CARE","140504"
"Portsmouth City Council","PCC","Adult Social Care","Social Care Activities","Adult Services","Third Party Payments","Other establishments","06/01/21","6403743","187.05","VENDOR","ENTHUSE CARE","140504"
"Portsmouth City Council","PCC","Adult Social Care","Social Care Activities","Adult Services","Third Party Payments","Other establishments","06/01/21","6403743","287.1","VENDOR","ENTHUSE CARE","140504"
"Portsmouth City Council","PCC","Adult Social Care","Social Care Activities","Adult Services","Third Party Payments","Other establishments","06/01/21","6403743","487.2","VENDOR","ENTHUSE CARE","140504"
"Portsmouth City Council","PCC","Adult Social Care","Social Care Activities","Adult Services","Third Party Payments","Other establishments","06/01/21","6403743","87","VENDOR","ENTHUSE CARE","140504"
"Portsmouth City Council","PCC","Adult Social Care","Social Care Activities","Adult Services","Third Party Payments","Other establishments","06/01/21","6403743","1096.2","VENDOR","ENTHUSE CARE","140504"
"Portsmouth City Council","PCC","Adult Social Care","Social Care Activities","Adult Services","Third Party Payments","Other establishments","06/01/21","6403743","1096.2","VENDOR","ENTHUSE CARE","140504"
"Portsmouth City Council","PCC","Adult Social Care","Social Care Activities","Adult Services","Third Party Payments","Other establishments","06/01/21","6403743","243.6","VENDOR","ENTHUSE CARE","140504"
"Portsmouth City Council","PCC","Adult Social Care","Social Care Activities","Adult Services","Third Party Payments","Other establishments","06/01/21","6403743","152.25","VENDOR","ENTHUSE CARE","140504"
"Portsmouth City Council","PCC","Adult Social Care","Social Care Activities","Adult Services","Third Party Payments","Other establishments","06/01/21","6403743","965.7","VENDOR","ENTHUSE CARE","140504"
"Portsmouth City Council","PCC","Adult Social Care","Social Care Activities","Adult Services","Third Party Payments","Other establishments","06/01/21","6403743","174","VENDOR","ENTHUSE CARE","140504"
"Portsmouth City Council","PCC","Adult Social Care","Social Care Activities","Adult Services","Third Party Payments","Other establishments","06/01/21","6403743","130.5","VENDOR","ENTHUSE CARE","140504"
"Portsmouth City Council","PCC","Adult Social Care","Social Care Activities","Adult Services","Third Party Payments","Other establishments","06/01/21","6403743","191.4","VENDOR","ENTHUSE CARE","140504"
"Portsmouth City Council","PCC","Adult Social Care","Social Care Activities","Adult Services","Third Party Payments","Other establishments","06/01/21","6403743","165.3","VENDOR","ENTHUSE CARE","140504"
"Portsmouth City Council","PCC","Adult Social Care","Social Care Activities","Adult Services","Third Party Payments","Other establishments","06/01/21","6403743","652.5","VENDOR","ENTHUSE CARE","140504"
"Portsmouth City Council","PCC","Adult Social Care","Social Care Activities","Adult Services","Third Party Payments","Other establishments","06/01/21","6403743","652.5","VENDOR","ENTHUSE CARE","140504"
"Portsmouth City Council","PCC","Adult Social Care","Social Care Activities","Adult Services","Third Party Payments","Other establishments","06/01/21","6403743","130.5","VENDOR","ENTHUSE CARE","140504"
"Portsmouth City Council","PCC","Adult Social Care","Social Care Activities","Adult Services","Third Party Payments","Other establishments","06/01/21","6403743","130.5","VENDOR","ENTHUSE CARE","140504"
"Portsmouth City Council","PCC","Adult Social Care","Social Care Activities","Adult Services","Third Party Payments","Other establishments","06/01/21","6403743","826.5","VENDOR","ENTHUSE CARE","140504"
"Portsmouth City Council","PCC","Adult Social Care","Social Care Activities","Adult Services","Third Party Payments","Other establishments","06/01/21","6403743","826.5","VENDOR","ENTHUSE CARE","140504"
"Portsmouth City Council","PCC","Adult Social Care","Social Care Activities","Adult Services","Third Party Payments","Other establishments","06/01/21","6403743","60.9","VENDOR","ENTHUSE CARE","140504"
"Portsmouth City Council","PCC","Adult Social Care","Social Care Activities","Adult Services","Third Party Payments","Other establishments","06/01/21","6403743","60.9","VENDOR","ENTHUSE CARE","140504"
"Portsmouth City Council","PCC","Adult Social Care","Social Care Activities","Adult Services","Third Party Payments","Other establishments","06/01/21","6403743","52.2","VENDOR","ENTHUSE CARE","140504"
"Portsmouth City Council","PCC","Adult Social Care","Social Care Activities","Adult Services","Third Party Payments","Other establishments","06/01/21","6403743","113.1","VENDOR","ENTHUSE CARE","140504"
"Portsmouth City Council","PCC","Adult Social Care","Social Care Activities","Adult Services","Third Party Payments","Other establishments","06/01/21","6403743","234.9","VENDOR","ENTHUSE CARE","140504"
"Portsmouth City Council","PCC","Adult Social Care","Social Care Activities","Adult Services","Third Party Payments","Other establishments","06/01/21","6403743","34.8","VENDOR","ENTHUSE CARE","140504"
"Portsmouth City Council","PCC","Adult Social Care","Social Care Activities","Adult Services","Third Party Payments","Other establishments","06/01/21","6403743","391.5","VENDOR","ENTHUSE CARE","140504"
"Portsmouth City Council","PCC","Adult Social Care","Social Care Activities","Adult Services","Third Party Payments","Other establishments","06/01/21","6403743","139.2","VENDOR","ENTHUSE CARE","140504"
"Portsmouth City Council","PCC","Adult Social Care","Social Care Activities","Adult Services","Third Party Payments","Other establishments","06/01/21","6403743","60.9","VENDOR","ENTHUSE CARE","140504"
"Portsmouth City Council","PCC","Adult Social Care","Social Care Activities","Adult Services","Third Party Payments","Other establishments","06/01/21","6403743","522","VENDOR","ENTHUSE CARE","140504"
"Portsmouth City Council","PCC","Adult Social Care","Social Care Activities","Adult Services","Third Party Payments","Other establishments","06/01/21","6403743","487.2","VENDOR","ENTHUSE CARE","140504"
"Portsmouth City Council","PCC","Adult Social Care","Social Care Activities","Adult Services","Third Party Payments","Other establishments","06/01/21","6403743","52.2","VENDOR","ENTHUSE CARE","140504"
"Portsmouth City Council","PCC","Adult Social Care","Social Care Activities","Adult Services","Third Party Payments","Other establishments","06/01/21","6403743","60.9","VENDOR","ENTHUSE CARE","140504"
"Portsmouth City Council","PCC","Adult Social Care","Social Care Activities","Adult Services","Third Party Payments","Other establishments","06/01/21","6403743","26.1","VENDOR","ENTHUSE CARE","140504"
"Portsmouth City Council","PCC","Adult Social Care","Social Care Activities","Adult Services","Third Party Payments","Other establishments","06/01/21","6403743","113.1","VENDOR","ENTHUSE CARE","140504"
"Portsmouth City Council","PCC","Adult Social Care","Social Care Activities","Adult Services","Third Party Payments","Other establishments","06/01/21","6403743","609","VENDOR","ENTHUSE CARE","140504"
"Portsmouth City Council","PCC","Adult Social Care","Social Care Activities","Adult Services","Third Party Payments","Other establishments","06/01/21","6403743","1044","VENDOR","ENTHUSE CARE","140504"
"Portsmouth City Council","PCC","Adult Social Care","Social Care Activities","Adult Services","Third Party Payments","Other establishments","06/01/21","6403743","1044","VENDOR","ENTHUSE CARE","140504"
"Portsmouth City Council","PCC","Adult Social Care","Social Care Activities","Adult Services","Third Party Payments","Other establishments","06/01/21","6403743","147.9","VENDOR","ENTHUSE CARE","140504"
"Portsmouth City Council","PCC","Adult Social Care","Social Care Activities","Adult Services","Third Party Payments","Other establishments","06/01/21","6403743","8.7","VENDOR","ENTHUSE CARE","140504"
"Portsmouth City Council","PCC","Adult Social Care","Social Care Activities","Adult Services","Third Party Payments","Other establishments","06/01/21","6403743","165.3","VENDOR","ENTHUSE CARE","140504"
"Portsmouth City Council","PCC","Adult Social Care","Social Care Activities","Adult Services","Third Party Payments","Other establishments","06/01/21","6403743","139.2","VENDOR","ENTHUSE CARE","140504"
"Portsmouth City Council","PCC","Adult Social Care","Social Care Activities","Adult Services","Third Party Payments","Other establishments","06/01/21","6403743","139.2","VENDOR","ENTHUSE CARE","140504"
"Portsmouth City Council","PCC","Adult Social Care","Social Care Activities","Adult Services","Third Party Payments","Other establishments","06/01/21","6403743","487.2","VENDOR","ENTHUSE CARE","140504"
"Portsmouth City Council","PCC","Adult Social Care","Social Care Activities","Adult Services","Third Party Payments","Other establishments","06/01/21","6403743","487.2","VENDOR","ENTHUSE CARE","140504"
"Portsmouth City Council","PCC","Adult Social Care","Social Care Activities","Adult Services","Third Party Payments","Other establishments","06/01/21","6403743","52.2","VENDOR","ENTHUSE CARE","140504"
"Portsmouth City Council","PCC","Adult Social Care","Social Care Activities","Adult Services","Third Party Payments","Other establishments","06/01/21","6403743","13.05","VENDOR","ENTHUSE CARE","140504"
"Portsmouth City Council","PCC","Adult Social Care","Social Care Activities","Adult Services","Third Party Payments","Other establishments","06/01/21","6403743","13.05","VENDOR","ENTHUSE CARE","140504"
"Portsmouth City Council","PCC","Adult Social Care","Social Care Activities","Adult Services","Third Party Payments","Other establishments","06/01/21","6403743","78.3","VENDOR","ENTHUSE CARE","140504"
"Portsmouth City Council","PCC","Adult Social Care","Social Care Activities","Adult Services","Third Party Payments","Other establishments","06/01/21","6403743","17.4","VENDOR","ENTHUSE CARE","140504"
"Portsmouth City Council","PCC","Adult Social Care","Social Care Activities","Adult Services","Third Party Payments","Other establishments","06/01/21","6403743","435","VENDOR","ENTHUSE CARE","140504"
"Portsmouth City Council","PCC","Adult Social Care","Social Care Activities","Adult Services","Third Party Payments","Other establishments","06/01/21","6403743","17.4","VENDOR","ENTHUSE CARE","140504"
"Portsmouth City Council","PCC","Adult Social Care","Social Care Activities","Adult Services","Third Party Payments","Other establishments","06/01/21","6403743","34.8","VENDOR","ENTHUSE CARE","140504"
"Portsmouth City Council","PCC","Adult Social Care","Social Care Activities","Adult Services","Third Party Payments","Other establishments","06/01/21","6403743","34.8","VENDOR","ENTHUSE CARE","140504"
"Portsmouth City Council","PCC","Adult Social Care","Social Care Activities","Adult Services","Third Party Payments","Other establishments","06/01/21","6403743","52.2","VENDOR","ENTHUSE CARE","140504"
"Portsmouth City Council","PCC","Adult Social Care","Social Care Activities","Adult Services","Third Party Payments","Other establishments","06/01/21","6403743","121.8","VENDOR","ENTHUSE CARE","140504"
"Portsmouth City Council","PCC","Adult Social Care","Social Care Activities","Adult Services","Third Party Payments","Other establishments","06/01/21","6403743","60.9","VENDOR","ENTHUSE CARE","140504"
"Portsmouth City Council","PCC","Adult Social Care","Social Care Activities","Adult Services","Third Party Payments","Other establishments","06/01/21","6403743","213.15","VENDOR","ENTHUSE CARE","140504"
"Portsmouth City Council","PCC","Adult Social Care","Social Care Activities","Adult Services","Third Party Payments","Other establishments","06/01/21","6403743","87","VENDOR","ENTHUSE CARE","140504"
"Portsmouth City Council","PCC","Adult Social Care","Social Care Activities","Adult Services","Third Party Payments","Other establishments","06/01/21","6403743","213.15","VENDOR","ENTHUSE CARE","140504"
"Portsmouth City Council","PCC","Adult Social Care","Social Care Activities","Adult Services","Third Party Payments","Other establishments","06/01/21","6403743","78.3","VENDOR","ENTHUSE CARE","140504"
"Portsmouth City Council","PCC","Adult Social Care","Social Care Activities","Adult Services","Third Party Payments","Other establishments","06/01/21","6403743","113.1","VENDOR","ENTHUSE CARE","140504"
"Portsmouth City Council","PCC","Adult Social Care","Social Care Activities","Adult Services","Third Party Payments","Other establishments","06/01/21","6403743","174","VENDOR","ENTHUSE CARE","140504"
"Portsmouth City Council","PCC","Adult Social Care","Social Care Activities","Adult Services","Third Party Payments","Other establishments","06/01/21","6403743","174","VENDOR","ENTHUSE CARE","140504"
"Portsmouth City Council","PCC","Adult Social Care","Social Care Activities","Adult Services","Third Party Payments","Other establishments","06/01/21","6403743","408.9","VENDOR","ENTHUSE CARE","140504"
"Portsmouth City Council","PCC","Adult Social Care","Social Care Activities","Adult Services","Third Party Payments","Other establishments","06/01/21","6403743","17.4","VENDOR","ENTHUSE CARE","140504"
"Portsmouth City Council","PCC","Adult Social Care","Social Care Activities","Adult Services","Third Party Payments","Other establishments","06/01/21","6403743","43.5","VENDOR","ENTHUSE CARE","140504"
"Portsmouth City Council","PCC","Adult Social Care","Social Care Activities","Adult Services","Third Party Payments","Other establishments","06/01/21","6403743","26.1","VENDOR","ENTHUSE CARE","140504"
"Portsmouth City Council","PCC","Adult Social Care","Social Care Activities","Adult Services","Third Party Payments","Other establishments","06/01/21","6403743","217.5","VENDOR","ENTHUSE CARE","140504"
"Portsmouth City Council","PCC","Adult Social Care","Social Care Activities","Adult Services","Third Party Payments","Other establishments","06/01/21","6403743","226.2","VENDOR","ENTHUSE CARE","140504"
